{"text_format":"1","workbook":"xlsx","n_sheets":3,"sheets":["JUNIO 2020","PIC  JUNIO 2020","CONTRATOS COVIC  19- JUNIO 2020"],"not_rendered":{"charts":0,"images":0,"macros":1,"external_links":0,"defined_names":4,"comments":3,"pivot_tables":0},"unopened":[],"bounds":{"document_bytes":16777216,"sheet_cells":100000,"rows_first":2000,"rows_last":500,"rows_between":2000,"halvings":0,"cell_chars":16384,"cell_head_chars":4096},"cells_cut":0,"cells_raw":0,"read":"whole","date_system":"1900"}

{"sheet":"JUNIO 2020","index":0,"n_rows":469,"n_cols":16,"rows_kept":469,"cut":false,"hidden":false,"merged":[]}
["NO","CEDULA","NOMBRES APELLIDOS CONTRATISTA","ops  #año","OBJETO DEL CONTRATO","FECHA INICIO","FECHA TERMINACION ","VALOR MENSUAL","VALOR TOTAL ","RUBRO","CDP","RP","SUPERVISOR ","CARGO","FECHA  SECOP ","LINK SECOP "]
[1,1129532724,"MICHELLY SANDOVAL ACUÑA","2196-2020","EPIDEMIOLOGA  COORDINACION- EMERGENCIA COVIC 19","01 de Junio 2020","   30 de Junio de 2020",6044000,{"$f":"+H2*1","v":6044000},"HONORARIOS",2728,3679,"BETTY PERTUZ ","SUBGERENTE CIENTIFICO","2020-06-12","https://www.contratos.gov.co/consultas/detalleProceso.do?numConstancia=20-4-10842560"]
[{"$f":"+A2+1","v":2},32870174,"SIRLEY PAOLA PEREZ CARMONA","2197-2020","REFERENTE DE SEGURIDAD DEL PACIENTE","01 de Junio 2020","   30 de Junio de 2020",5800000,5800000,"REMUNERACION",2729,3680,"BETTY PERTUZ ","SUBGERENTE CIENTIFICO","2020-06-12","https://www.contratos.gov.co/consultas/detalleProceso.do?numConstancia=20-4-10842583"]
[{"$f":"+A3+1","v":3},1140846298,"LENIN ALVAREZ PINEDA","2198-2020","AUDITOR DE SISTEMAS Y RESOLUCION 4505","01 de Junio 2020","   30 de Junio de 2020",3000000,3000000,"HONORARIOS",2730,3681,"NILSA ARIZA MARQUEZ","COORDINADOR PYP","2020-06-12","https://www.contratos.gov.co/consultas/detalleProceso.do?numConstancia=20-4-10842591"]
[4,22736159,"ARACELLY HERNANDEZ GARCIA ","2199-2020","AUXILIAR ADMINISTRATIVO TIC  Y SISTEMA DE INFORMACION","01 de Junio 2020","   30 de Junio de 2020",2500000,2500000,"REMUNERACION",2731,3682,"NILSA ARIZA MARQUEZ","COORDINADOR PYP","2020-06-12","https://www.contratos.gov.co/consultas/detalleProceso.do?numConstancia=20-4-10842596"]
[5,1042416953,"GABRIEL JOSE MONTIEL CERVANTES","2200-2020","INGENIERO DE REDES Y HARDWARE ","01 de Junio 2020","   30 de Junio de 2020",3000000,3000000,"HONORARIOS",2732,3683,"ZULLY ROMERO","COORDINADOR TIC","2020-06-12","https://www.contratos.gov.co/consultas/detalleProceso.do?numConstancia=20-4-10842614"]
[6,1043121395,"SHEYLA DEL CARMEN ESTRADA ARIZA","2201-2020","TECNICO DE SISTEMAS ","01 de Junio 2020","   30 de Junio de 2020",1270000,1270000,"REMUNERACION",2733,3684,"ZULLY ROMERO","COORDINADORA TIC ","2020-06-12","https://www.contratos.gov.co/consultas/detalleProceso.do?numConstancia=20-4-10842615"]
[7,8762035,"CESAR AUGUSTO MERIÑO ESCORCIA ","2202-2020","ORIENTADOR","01 de Junio 2020","   30 de Junio de 2020",1270000,1270000,"REMUNERACION",2734,3685,"SANDRA SANMARTIN","SUBGERENTE ADMINISTRATIVO","2020-06-12","https://www.contratos.gov.co/consultas/detalleProceso.do?numConstancia=20-4-10842619"]
[8,1140814033,"STEFANY RINCON TORRES","2203-2020","ASISTENTE ADMINISTRATIVO- COORD EMERGENCIA COVIC 19","01 de Junio 2020","   30 de Junio de 2020",3600000,3600000,"REMUNERACION",2735,3686,"BETTY PERTUZ ","SUBGERENTE CIENTIFICO","2020-06-12","https://www.contratos.gov.co/consultas/detalleProceso.do?numConstancia=20-4-10842628"]
[9,1140874429,"ALBERTO DE LA OSSA DE AVILA","2204-2020","PROFESIONAL  PRESUPUESTO ","01 de Junio 2020","   30 de Junio de 2020",3000000,3000000,"HONORARIOS",2736,3687,"JORGE OLMOS NAVARRO","DIRECTOR FINANCIERO","2020-06-12","https://www.contratos.gov.co/consultas/detalleProceso.do?numConstancia=20-4-10842639"]
[10,22549719,"CARMEN MELINA BOLAÑO COTES ","2205-2020","AUXILIAR ADMINISTRATIVO  ESTADISTICA","01 de Junio 2020","   30 de Junio de 2020",2500000,2500000,"REMUNERACION",2737,3688,"GENARO   GUTIERREZ DE PIÑERES","JEFE DE  ESTADISTICA","2020-06-12","https://www.contratos.gov.co/consultas/detalleProceso.do?numConstancia=20-4-10842645"]
[11,1001798325,"CINDY MILENA SARMIENTO MERIÑO","2206-2020","ESPECIALISTA TALENTO HUMANO ","01 de Junio 2020","   30 de Junio de 2020",4000000,4000000,"HONORARIOS",2738,3689,"FABIAN  COLPAS OROZCO ","JEFE  TALENTO  HUMANO","2020-06-12","https://www.contratos.gov.co/consultas/detalleProceso.do?numConstancia=20-4-10842647"]
[12,32769708,"CLAUDIA ARENAS ALVAREZ","2207-2020","APOYO GESTION CONTROL INTERNO","01 de Junio 2020","   30 de Junio de 2020",3500000,3500000,"REMUNERACION",2739,3690,"SANDRA SANMARTIN","SUBGERENTE ADMINISTRATIVO","2020-06-12","https://www.contratos.gov.co/consultas/detalleProceso.do?numConstancia=20-4-10842653"]
[13,1043611198,"CRISTIAN JESUS RODRIGUEZ QUIROZ","2208-2020","PROFESIONAL CONTADURIA","01 de Junio 2020","   30 de Junio de 2020",3000000,3000000,"HONORARIOS",2740,3691,"JORGE OLMOS NAVARRO","DIRECTOR FINANCIERO","2020-06-12","https://www.contratos.gov.co/consultas/detalleProceso.do?numConstancia=20-4-10842657"]
[14,22704983,"EGUIS ODILA ROLONG LAGUNA","2209-2020","ABOGADO  TALENTO HUMANO","01 de Junio 2020","   30 de Junio de 2020",4500000,4500000,"HONORARIOS",2741,3692,"FABIAN  COLPAS OROZCO ","JEFE  TALENTO  HUMANO","2020-06-12","https://www.contratos.gov.co/consultas/detalleProceso.do?numConstancia=20-4-10842665"]
[15,32866006,"ERIKA ASCENCIO MARQUEZ","2210-2020","PROFESIONAL CONTRATACION   Y  SISTEMAS DE INFORMACION TALENTO HUMANO","01 de Junio 2020","   30 de Junio de 2020",4000000,4000000,"HONORARIOS",2742,3693,"FABIAN  COLPAS OROZCO ","JEFE  TALENTO  HUMANO","2020-06-12","https://www.contratos.gov.co/consultas/detalleProceso.do?numConstancia=20-4-10842674"]
[16,8495176,"JAIME ALBERTO ALVAREZ NORIEGA","2211-2020","INGENIERO AMBIENTAL","01 de Junio 2020","   30 de Junio de 2020",3500000,3500000,"HONORARIOS",2743,3694,"SANDRA SANMARTIN","SUBGERENTE ADMINISTRATIVO","2020-06-12","https://www.contratos.gov.co/consultas/detalleProceso.do?numConstancia=20-4-10842681"]
[17,1010137665,"KAROLINE JUDITH MORENO VARELO","2212-2020","ASISTENTE ADMINISTRATIVO DE ODONTOLOGIA, PROMOCION Y PREVENCION.","01 de Junio 2020","   30 de Junio de 2020",1500000,1500000,"REMUNERACION",2744,3695,"NILSA ARIZA MARQUEZ","COORDINADOR PYP","2020-06-12","https://www.contratos.gov.co/consultas/detalleProceso.do?numConstancia=20-4-10842688"]
[18,72053529,"LEINER DARIO MEDINA HERRERA","2213-2020","CONTROL INTERNO","01 de Junio 2020","   30 de Junio de 2020",3000000,3000000,"HONORARIOS",2745,3696,"SANDRA SANMARTIN","SUBGERENTE ADMINISTRATIVO","2020-06-12","https://www.contratos.gov.co/consultas/detalleProceso.do?numConstancia=20-4-10842694"]
[19,8571868,"ERINSON RAFAEL GUZMAN DE  LA HOZ","2214-2020","PROFESIONAL TALENTO HUMANO","01 de Junio 2020","   30 de Junio de 2020",3000000,3000000,"HONORARIOS",2746,3697,"FABIAN  COLPAS OROZCO ","JEFE  TALENTO  HUMANO","2020-06-12","https://www.contratos.gov.co/consultas/detalleProceso.do?numConstancia=20-4-10842705"]
[20,22732194,"MARLEY VASQUEZ VARGAS","2215-2020","AUXILIAR DE FACTURACION CENTRAL","01 de Junio 2020","   30 de Junio de 2020",1700000,1700000,"REMUNERACION",2747,3698,"SANDRA SANMARTIN","SUBGERENTE ADMINISTRATIVO","2020-06-12","https://www.contratos.gov.co/consultas/detalleProceso.do?numConstancia=20-4-10842710"]
[21,44205287,"MARTHA KATERINE MEJIA FRUTO","2216-2020","AUXILIAR ADMINISTRATIVO  RECEPCION ","01 de Junio 2020","   30 de Junio de 2020",1900000,1900000,"REMUNERACION",2748,3699,"SANDRA SANMARTIN","SUBGERENTE ADMINISTRATIVO","2020-06-12","https://www.contratos.gov.co/consultas/detalleProceso.do?numConstancia=20-4-10842719"]
[22,1043876764,"MELANI ISABEL PERTUZ HERRERA","2217-2020","AUXILIAR ADMINISTRATIVO -  SUBGERENCIA ADMINISTRATIVA","01 de Junio 2020","   30 de Junio de 2020",2200000,2200000,"REMUNERACION",2749,3700,"SANDRA SANMARTIN","SUBGERENTE ADMINISTRATIVO","2020-06-12","https://www.contratos.gov.co/consultas/detalleProceso.do?numConstancia=20-4-10842728"]
[23,72268005,"MILTON SOLARTE RODRIGUEZ","2218-2020","TECNICO DE BASES DE DATOS","01 de Junio 2020","   30 de Junio de 2020",3000000,3000000,"REMUNERACION",2750,3701,"SANDRA SANMARTIN","SUBGERENTE ADMINISTRATIVO","2020-06-12","https://www.contratos.gov.co/consultas/detalleProceso.do?numConstancia=20-4-10842735"]
[24,55239101,"NATALI ANDREA NIEBLES JURADO","2219-2020","AUDITOR DE CALIDAD (JEFE DE UNIDAD)","01 de Junio 2020","   30 de Junio de 2020",5800000,5800000,"HONORARIOS",2751,3702,"BETTY PERTUZ ","SUBGERENTE CIENTIFICO","2020-06-12","https://www.contratos.gov.co/consultas/detalleProceso.do?numConstancia=20-4-10842739"]
[25,1010179685,"NAYIVI OSPINA ARROYAVE","2220-2020","PROFESIONAL  SISTEMA DE GESTION Y SEGURIDAD EN EL TRABAJO","01 de Junio 2020","   30 de Junio de 2020",3500000,3500000,"HONORARIOS",2752,3703,"FABIAN  COLPAS OROZCO ","JEFE  TALENTO  HUMANO","2020-06-12","https://www.contratos.gov.co/consultas/detalleProceso.do?numConstancia=20-4-10842743"]
[26,8603175,"NILSON ORTEGA JIMENEZ","2221-2020","AUXILIAR ADMINISTRATIVO  TALENTO HUMANO","01 de Junio 2020","   30 de Junio de 2020",2000000,2000000,"REMUNERACION",2753,3704,"FABIAN  COLPAS OROZCO ","SUBGERENTE ADMINISTRATIVO","2020-06-12","https://www.contratos.gov.co/consultas/detalleProceso.do?numConstancia=20-4-10842750"]
[27,1047340446,"OSCAR MAURICIO MARENCO ROMERO","2222-2020","MENSAJERO ","01 de Junio 2020","   30 de Junio de 2020",1800000,1800000,"REMUNERACION",2754,3705,"BETTY PERTUZ ","SUBGERENTE CIENTIFICO","2020-06-12","https://www.contratos.gov.co/consultas/detalleProceso.do?numConstancia=20-4-10842753"]
[28,72293492,"RODOLFO ENRIQUE NARVAEZ  GUTIERREZ ","2223-2020","PROFESIONAL ESTADISTICA","01 de Junio 2020","   30 de Junio de 2020",3500000,3500000,"HONORARIOS",2755,3706,"GENARO   GUTIERREZ DE PIÑERES","JEFE DE ESTADISTICA","2020-06-12","https://www.contratos.gov.co/consultas/detalleProceso.do?numConstancia=20-4-10842765"]
[29,22446590,"ROSALBA CERPA MIRANDA ","2224-2020","AUXILIAR ADMINISTRATIVO -  SUBGERENCIA CIENTIFICA","01 de Junio 2020","   30 de Junio de 2020",1900000,1900000,"REMUNERACION",2756,3707,"BETTY PERTUZ ","SUBGERENTE CIENTIFICO","2020-06-12","https://www.contratos.gov.co/consultas/detalleProceso.do?numConstancia=20-4-10842772"]
[30,1140818354,"SAEN DAVID TAJAN NIEBLES","2225-2020","AUXILIAR ADMINISTRATIVO DE SISTEMAS DE INFORMACION EN PROMOCION Y PREVENCION","01 de Junio 2020","   30 de Junio de 2020",2000000,2000000,"REMUNERACION",2757,3708,"NILSA ARIZA MARQUEZ","COORDINADOR PYP","2020-06-12","https://www.contratos.gov.co/consultas/detalleProceso.do?numConstancia=20-4-10842778"]
[31,57105527,"ZOILA PATRICIA PABON HERNANDEZ","2226-2020","ASISTENTE COORDINACIÓN MÉDICA","01 de Junio 2020","   30 de Junio de 2020",3500000,3500000,"REMUNERACION",2758,3709,"BETTY PERTUZ ","SUBGERENTE CIENTIFICO","2020-06-12","https://www.contratos.gov.co/consultas/detalleProceso.do?numConstancia=20-4-10842781"]
[32,32825462,"ANAIS DE JESUS RODRIGUEZ DE  LAS AGUAS","2227-2020","PERSONAL  LIMPIEZA Y ASEO","01 de Junio 2020","   30 de Junio de 2020",1215000,1215000,"REMUNERACION",2759,3710,"JAIME ALVAREZ NORIEGA","INGENIERO AMBIENTAL ","2020-06-12","https://www.contratos.gov.co/consultas/detalleProceso.do?numConstancia=20-4-10842790"]
[33,1041898122,"MELIZA MORALES PALLARES","2228-2020","AUXILIAR ADMINISTRATIVO  ","01 de Junio 2020","   30 de Junio de 2020",2000000,2000000,"REMUNERACION",2760,3711,"SANDRA SANMARTIN","SUBGERENTE ADMINISTRATIVO","2020-06-12","https://www.contratos.gov.co/consultas/detalleProceso.do?numConstancia=20-4-10842794"]
[34,1042439853,"KERVY DIYAN JINETTE BARRIOS","2229-2020","AUXILIAR ADMINISTRATIVO  RESOLUCIÓN 2463","01 de Junio 2020","   30 de Junio de 2020",1900000,1900000,"REMUNERACION",2761,3712,"BETTY PERTUZ ","SUBGERENTE CIENTIFICO","2020-06-12","https://www.contratos.gov.co/consultas/detalleProceso.do?numConstancia=20-4-10842801"]
[35,1045732710,"VICTOR JOSE AGUILAR CRUZADO","2230-2020","AUXILIAR ADMINISTRATIVO- CONTRATACION  BIENES Y SERVICIOS","01 de Junio 2020","   30 de Junio de 2020",3000000,3000000,"REMUNERACION",2762,3713,"ORNELLA FIORENTINO","JEFE JURIDICA","2020-06-12","https://www.contratos.gov.co/consultas/detalleProceso.do?numConstancia=20-4-10842809"]
[36,8776312,"JORGE RIVERA MEZA","2231-2020","AUXILIAR RECURSOS FISICOS","01 de Junio 2020","   30 de Junio de 2020",1900000,1900000,"REMUNERACION",2763,3714,"SANDRA SANMARTIN","SUBGERENTE ADMINISTRATIVO","2020-06-12","https://www.contratos.gov.co/consultas/detalleProceso.do?numConstancia=20-4-10842814"]
[37,1042971531,"JULIETH PAOLA FIGUEROA ZAMBRANO","2232-2020","AUXILIAR ADMINISTRATIVO CONTABLE","01 de Junio 2020","   30 de Junio de 2020",2500000,2500000,"REMUNERACION",2764,3715,"JORGE OLMOS NAVARRO","DIRECTOR FINANCIERO","2020-06-12","https://www.contratos.gov.co/consultas/detalleProceso.do?numConstancia=20-4-10842819"]
[38,1042447104,"IVOR ANDRES SANJUAN PEREZ","2233-2020","AUXILIAR  RECURSOS FISICOS ","01 de Junio 2020","   30 de Junio de 2020",1900000,1900000,"REMUNERACION",2765,3716,"SANDRA SANMARTIN","SUBGERENTE ADMINISTRATIVO","2020-06-12","https://www.contratos.gov.co/consultas/detalleProceso.do?numConstancia=20-4-10842823"]
[39,32607428,"TEMILDA MARIA PERTUZ PEREZ","2234-2020","AUDITOR DE  PAMEC","01 de Junio 2020","   30 de Junio de 2020",3180000,3180000,"HONORARIOS",2766,3717,"BETTY PERTUZ ","SUBGERENTE CIENTIFICO","2020-06-12","https://www.contratos.gov.co/consultas/detalleProceso.do?numConstancia=20-4-10842829"]
[40,1045721126,"MARYURIS JOANNA GALVAN NAVARRO","2235-2020","LIDER  LABORATORIO","01 de Junio 2020","   30 de Junio de 2020",5000000,5000000,"HONORARIOS",2767,3718,"BETTY PERTUZ ","SUBGERENTE CIENTIFICO","2020-06-12","https://www.contratos.gov.co/consultas/detalleProceso.do?numConstancia=20-4-10842837"]
[41,1140847982,"LEIDY DANIELA WILSON PEZZOTI","2236-2020"," AUXILIAR ADMINISTRATIVO VENTANILLA UNICA ","01 de Junio 2020","   30 de Junio de 2020",1900000,1900000,"REMUNERACION",2768,3719,"SANDRA SANMARTIN","SUBGERENTE ADMINISTRATIVO","2020-06-12","https://www.contratos.gov.co/consultas/detalleProceso.do?numConstancia=20-4-10842840"]
[42,22804794,"KATHERINE GUERRERO SEPULVEDA","2237-2020","ABOGADO EXTERNO","01 de Junio 2020","   30 de Junio de 2020",5800000,5800000,"HONORARIOS",2769,3720,"ORNELLA FIORENTINO","JEFE JURIDICA","2020-06-12","https://www.contratos.gov.co/consultas/detalleProceso.do?numConstancia=20-4-10842849"]
[43,22504159,"FLOR MILENA GOICOCHEA OROZCO ","2238-2020","AUXILIAR  FACTURACION CENTRAL","01 de Junio 2020","   30 de Junio de 2020",2000000,2000000,"REMUNERACION",2770,3721,"SANDRA SANMARTIN","SUBGERENTE ADMINISTRATIVO","2020-06-12","https://www.contratos.gov.co/consultas/detalleProceso.do?numConstancia=20-4-10842854"]
[44,72250386,"RONALD EMIL PADILLA ACUÑA","2239-2020","ABOGADO ","01 de Junio 2020","   30 de Junio de 2020",5000000,5000000,"HONORARIOS",2771,3722,"ORNELLA FIORENTINO","JEFE JURIDICA","2020-06-12","https://www.contratos.gov.co/consultas/detalleProceso.do?numConstancia=20-4-10842860"]
[45,32848040,"LEDIS MARIA MOLINA OQUENDO ","2240-2020","ABOGADO  CONTRATACION ","01 de Junio 2020","   30 de Junio de 2020",5000000,5000000,"HONORARIOS",2772,3723,"ORNELLA FIORENTINO","JEFE JURIDICA","2020-06-12","https://www.contratos.gov.co/consultas/detalleProceso.do?numConstancia=20-4-10842864"]
[46,1045166274,"ALBA MARINA RODRIGUEZ YANCE","2241-2020","ASESORA SALUD PUBLICA EN LA SUBGERENCIA CIENTIFICA ","01 de Junio 2020","   30 de Junio de 2020",5800000,5800000,"HONORARIOS",2773,3724,"JUAN  ESTEBAN SANCHEZ PAEZ ","GERENTE","2020-06-12","https://www.contratos.gov.co/consultas/detalleProceso.do?numConstancia=20-4-10842869"]
[47,44190767,"LUCIBELL ALVAREZ NAVARRO ","2242-2020","ASESORA SUBGERENCIA CIENTIFICA ","01 de Junio 2020","   30 de Junio de 2020",5800000,5800000,"HONORARIOS",2774,3725,"JUAN  ESTEBAN SANCHEZ PAEZ ","GERENTE","2020-06-12","https://www.contratos.gov.co/consultas/detalleProceso.do?numConstancia=20-4-10842878"]
[48,5055447,"CARLOS ALBERTO CARBONELL ALVAREZ","2243-2020","AUDITORIA  MEDICA ","01 de Junio 2020","   30 de Junio de 2020",4500000,4500000,"HONORARIOS",2775,3726,"BETTY PERTUZ ","SUBGERENTE CIENTIFICO","2020-06-12","https://www.contratos.gov.co/consultas/detalleProceso.do?numConstancia=20-4-10842884"]
[49,1045698343,"JOSE FRANCISCO INFANZON CASTRO ","2244-2020","INGENERIO MECANICO- RECURSOS FISICOS","01 de Junio 2020","   30 de Junio de 2020",5800000,5800000,"HONORARIOS",2776,3727,"SANDRA SANMARTIN","SUBGERENTE ADMINISTRATIVO","2020-06-12","https://www.contratos.gov.co/consultas/detalleProceso.do?numConstancia=20-4-10842891"]
[50,40981378,"LIDYS CASTILLO TOVAR","2245-2020","PROFESIONAL OFICINA PAGADURIA  ","01 de Junio 2020","   30 de Junio de 2020",4000000,4000000,"HONORARIOS",2777,3728,"LUIS DE MOYA","TESORERO","2020-06-12","https://www.contratos.gov.co/consultas/detalleProceso.do?numConstancia=20-4-10842894"]
[51,32651445,"MARTIZA SARMIENTO  SANTOS ","2246-2020","ASESOR DE PLANEACION ESTRATÉGICA  Y SISTEMAS DE  GESTIÓN CALIDAD /AMBIENTE/SST ","01 de Junio 2020","   30 de Junio de 2020",5800000,5800000,"HONORARIOS",2778,3729,"JUAN  ESTEBAN SANCHEZ PAEZ ","GERENTE","2020-06-12","https://www.contratos.gov.co/consultas/detalleProceso.do?numConstancia=20-4-10842898"]
[52,32863895,"LUZ ELENA MARRIAGA MONTERO ","2247-2020","PROFESIONAL PLANEACION ","01 de Junio 2020","   30 de Junio de 2020",4000000,4000000,"HONORARIOS",2779,3730,"BETTY PERTUZ","SUBGERENTE CIENTIFICO","2020-06-12","https://www.contratos.gov.co/consultas/detalleProceso.do?numConstancia=20-4-10842901"]
[53,72314953,"LEONEL DANIEL SILVA TAPIAS","2248-2020","REVISOR FISCAL","01 de Junio 2020","   30 de Junio de 2020",8255982,8255982,"HONORARIOS",2780,3731,"JUAN  ESTEBAN SANCHEZ PAEZ ","GERENTE","2020-06-12","https://www.contratos.gov.co/consultas/detalleProceso.do?numConstancia=20-4-10842907"]
[54,73188364,"JORGE MAURICIO MONTOYA OCHOA ","2249-2020","AUXILIAR RECURSOS FISICOS","01 de Junio 2020","   30 de Junio de 2020",1900000,1900000,"REMUNERACION",2781,3732,"SANDRA SANMARTIN","SUBGERENTE ADMINISTRATIVO","2020-06-12","https://www.contratos.gov.co/consultas/detalleProceso.do?numConstancia=20-4-10842911"]
[55,1042997169,"CINDY PAOLA CERA MENDOZA ","2250-2020","PROFESIONAL PRESUPUESTO","01 de Junio 2020","   30 de Junio de 2020",3000000,3000000,"HONORARIOS",2782,3733,"JORGE OLMOS NAVARRO","DIRECTOR FINANCIERO","2020-06-12","https://www.contratos.gov.co/consultas/detalleProceso.do?numConstancia=20-4-10842916"]
[56,52618443,"NATALIA ALONSO CARVAJAL","2251-2020","ASESOR GERENCIA","01 de Junio 2020","   30 de Junio de 2020",5800000,5800000,"HONORARIOS",2783,3734,"JUAN  ESTEBAN SANCHEZ PAEZ ","GERENTE","2020-06-12","https://www.contratos.gov.co/consultas/detalleProceso.do?numConstancia=20-4-10842919"]
[57,45757809,"MILADIS MARINA MARTINEZ MEDINA","2252-2020","LIDER SIAU","01 de Junio 2020","   30 de Junio de 2020",3000000,3000000,"HONORARIOS",2784,3735,"BETTY PERTUZ ","SUBGERENTE CIENTIFICO","2020-06-12","https://www.contratos.gov.co/consultas/detalleProceso.do?numConstancia=20-4-10842928"]
[58,1140871897,"JESICA FERNANDA DE CASTRO MANTILLA","2253-2020","INGENIERA QUIMICA ","01 de Junio 2020","   30 de Junio de 2020",5800000,5800000,"HONORARIOS",2785,3736,"BETTY PERTUZ","SUBGERENTE CIENTIFICO","2020-06-12","https://www.contratos.gov.co/consultas/detalleProceso.do?numConstancia=20-4-10842932"]
[59,1042421404,"MARIAM DEL CARMEN CANTILLO MONTERO","2254-2020","AUDITORA  ODONTOLOGIA ","01 de Junio 2020","   30 de Junio de 2020",4000000,4000000,"HONORARIOS",2786,3737,"BETTY PERTUZ ","SUBGERENTE CIENTIFICO","2020-06-12","https://www.contratos.gov.co/consultas/detalleProceso.do?numConstancia=20-4-10842938"]
[60,32852247,"NORELLYS PAOLA MACHACON PRIETO","2255-2020","APOYO  SISTEMA DE  GESTION","01 de Junio 2020","   30 de Junio de 2020",4000000,4000000,"REMUNERACION",2787,3738,"BETTY PERTUZ ","SUBGERENTE CIENTIFICO","2020-06-12","https://www.contratos.gov.co/consultas/detalleProceso.do?numConstancia=20-4-10842945"]
[61,32862644,"NURYS GARCIA DELGADO","2256-2020","AGENTE CALL CENTER","01 de Junio 2020","   30 de Junio de 2020",1378000,1378000,"REMUNERACION",2788,3739,"WILFRAN JIMENEZ DE LA PEÑA","COORD CENTRO DE SALUD","2020-06-12","https://www.contratos.gov.co/consultas/detalleProceso.do?numConstancia=20-4-10842951"]
[62,8745568,"LUIS ENRIQUE PEREA VASQUEZ ","2257-2020","AUDITORIA  MEDICA ","01 de Junio 2020","   30 de Junio de 2020",4500000,4500000,"HONORARIOS",2789,3740,"BETTY PERTUZ ","SUBGERENTE CIENTIFICO","2020-06-12","https://www.contratos.gov.co/consultas/detalleProceso.do?numConstancia=20-4-10842952"]
[63,72228319,"BLADIMIR ALEXANDER  SARMIENTO QUIÑONES","2258-2020","TECNICO EN SISTEMAS Y ELECTRONICO ","01 de Junio 2020","   30 de Junio de 2020",1900000,1900000,"REMUNERACION",2790,3741,"ZULLY ROMERO","COORDINADORA TIC ","2020-06-12","https://www.contratos.gov.co/consultas/detalleProceso.do?numConstancia=20-4-10842958"]
[64,1042424161,"YENSY ANGELINA ESCALANTE FERRER","2259-2020","AUXILIAR ADMINISTRATIVO CONTABLE","01 de Junio 2020","   30 de Junio de 2020",2000000,2000000,"REMUNERACION",2791,3742,"JORGE OLMOS NAVARRO","DIRECTOR FINANCIERO","2020-06-12","https://www.contratos.gov.co/consultas/detalleProceso.do?numConstancia=20-4-10842960"]
[65,72432594,"RUBEN UCROS ","2260-2020","AUXILIAR FACTURACION ","01 de Junio 2020","   30 de Junio de 2020",2100000,{"$f":"+H66*1","v":2100000},"REMUNERACION",2792,3743,"SANDRA SANMARTIN","SUBGERENTE ADMINISTRATIVO","2020-06-12","https://www.contratos.gov.co/consultas/detalleProceso.do?numConstancia=20-4-10842963"]
[66,22642515,"NOHEMI ESPERANZA CASTRO LOPEZ","2261-2020","AUDITORA SERVICIO DE SALUD","01 de Junio 2020","   30 de Junio de 2020",4000000,4000000,"HONORARIOS",2793,3744,"BETTY PERTUZ ","SUBGERENTE CIENTIFICO","2020-06-12","https://www.contratos.gov.co/consultas/detalleProceso.do?numConstancia=20-4-10842966"]
[{"$f":"+A67+1","v":67},1045670289,"HOLMAN ALEXANDER AVILA FERNANDEZ","2262-2020","AUXILIAR  FACTURACION CENTRAL","01 de Junio 2020","   30 de Junio de 2020",3000000,3000000,"REMUNERACION",2794,3745,"SANDRA SANMARTIN","SUBGERENTE ADMINISTRATIVO","2020-06-12","https://www.contratos.gov.co/consultas/detalleProceso.do?numConstancia=20-4-10842970"]
[68,8639410,"CESAR OCTAVIO VARGAS DURAN ","2263-2020","TECNICO AMBIENTAL ","01 de Junio 2020","   30 de Junio de 2020",2300000,2300000,"REMUNERACION",2795,3746,"JAIME ALVAREZ NORIEGA","INGENIERO AMBIENTAL ","2020-06-12","https://www.contratos.gov.co/consultas/detalleProceso.do?numConstancia=20-4-10842971"]
[69,1047334999,"MARTHA INES SALCEDO HUN","2264-2020","ASESORA GESTION AMBIENTAL ","01 de Junio 2020","   30 de Junio de 2020",5800000,5800000,"HONORARIOS",2796,3747,"JUAN  ESTEBAN SANCHEZ PAEZ ","GERENTE","2020-06-12","https://www.contratos.gov.co/consultas/detalleProceso.do?numConstancia=20-4-10842976"]
[70,1124026102,"LUISA FERNANDA PANA CARABALLO","2265-2020","LIDER PROCESOS FACTURACION CENTRAL","01 de Junio 2020","   30 de Junio de 2020",2500000,2500000,"HONORARIOS",2797,3748,"SANDRA SANMARTIN","SUBGERENTE ADMINISTRATIVO","2020-06-12","https://www.contratos.gov.co/consultas/detalleProceso.do?numConstancia=20-4-10842978"]
[71,1045676054,"JHONNY ALVAREZ TORRENCILLA","2266-2020","AUXILIAR FACTURACION CENTRAL ","01 de Junio 2020","   30 de Junio de 2020",4000000,4000000,"REMUNERACION",2798,3749,"SANDRA SANMARTIN","SUBGERENTE ADMINISTRATIVO","2020-06-12","https://www.contratos.gov.co/consultas/detalleProceso.do?numConstancia=20-4-10842984"]
[72,84453299,"LUIS FERNANDO CUELLAR CANTILLO","2267-2020","ASESOR FINANCIERO ","01 de Junio 2020","   30 de Junio de 2020",4000000,4000000,"HONORARIOS",2799,3750,"SANDRA SANMARTIN","SUBGERENTE ADMINISTRATIVO","2020-06-12","https://www.contratos.gov.co/consultas/detalleProceso.do?numConstancia=20-4-10842989"]
[73,44157462,"DAYAN MARTINEZ PACHECO","2268-2020","ABOGADO ","01 de Junio 2020","   30 de Junio de 2020",{"$f":"5000000/30*6","v":1000000},1000000,"HONORARIOS",2800,3751,"ORNELLA FIORENTINO","JEFE JURIDICA","2020-06-12","https://www.contratos.gov.co/consultas/detalleProceso.do?numConstancia=20-4-10842996"]
[74,44156926,"GLADYS CECILIA ESCALANTE FERRER","2269-2020","AUDITORA","01 de Junio 2020","   30 de Junio de 2020",4000000,4000000,"HONORARIOS",2801,3752,"BETTY PERTUZ","SUBGERENTE CIENTIFICO","2020-06-12","https://www.contratos.gov.co/consultas/detalleProceso.do?numConstancia=20-4-10842998"]
[75,22741244,"ARLETH PATRICIA CARRILLO GARVIN","2270-2020","ENFERMERA JEFE DE PROMOCIÓN Y MANTENIMIENTO DE LA SALUD","01 de Junio 2020","   30 de Junio de 2020",2300000,2300000,"HONORARIOS",2802,3753,"NILSA ARIZA MARQUEZ","COORDINADOR PYP","2020-06-12","https://www.contratos.gov.co/consultas/detalleProceso.do?numConstancia=20-4-10843001"]
[76,1140847587,"MAGANY JUDITH JARAMILLO MOLINA","2271-2020","INGENIERO DE SISTEMAS","01 de Junio 2020","   30 de Junio de 2020",3000000,3000000,"HONORARIOS",2803,3754,"ZULLY ROMERO","COORDINADORA TIC ","2020-06-12","https://www.contratos.gov.co/consultas/detalleProceso.do?numConstancia=20-4-10843003"]
[77,1042451204,"LEIDIS ESTHER MIRANDA MARCHENA","2272-2020","PROFESIONAL CONTADURIA","01 de Junio 2020","   30 de Junio de 2020",3000000,3000000,"HONORARIOS",2804,3755,"JORGE OLMOS NAVARRO","DIRECTOR FINANCIERO","2020-06-12","https://www.contratos.gov.co/consultas/detalleProceso.do?numConstancia=20-4-10843007"]
[78,55225494,"ULDYS ESTHER PONZON PORTO","2273-2020","LIDER SERVICIOS MEDICOS","01 de Junio 2020","   30 de Junio de 2020",3700000,3700000,"HONORARIOS",2805,3756,"BETTY PERTUZ","SUBGERENTE CIENTIFICO","2020-06-12","https://www.contratos.gov.co/consultas/detalleProceso.do?numConstancia=20-4-10843009"]
[79,72045976,"HUMBERTO ZACARIAS CADAVID ALDANA","2274-2020","ASESOR GERENCIA","01 de Junio 2020","   30 de Junio de 2020",4500000,4500000,"HONORARIOS",2806,3757,"JUAN  ESTEBAN SANCHEZ PAEZ ","GERENTE","2020-06-12","https://www.contratos.gov.co/consultas/detalleProceso.do?numConstancia=20-4-10843016"]
[80,1043023724,"JAILINE  SOLANO MERCADO ","2275-2020","ASESOR FINANCIERO ","01 de Junio 2020","   30 de Junio de 2020",5800000,5800000,"HONORARIOS",2807,3758,"JUAN  ESTEBAN SANCHEZ PAEZ ","GERENTE","2020-06-12","https://www.contratos.gov.co/consultas/detalleProceso.do?numConstancia=20-4-10843020"]
[81,1143465478,"YULEIMY LISETH YANCE CAMARGO","2276-2020","ABOGADO","01 de Junio 2020","   30 de Junio de 2020",2200000,2200000,"HONORARIOS",2808,3759,"ORNELLA FIORENTINO","JEFE JURIDICA","2020-06-12","https://www.contratos.gov.co/consultas/detalleProceso.do?numConstancia=20-4-10843024"]
[82,1041899345,"YESMITH ADRIANA VIZCAINO CARRILLO","2277-2020","ASISTENTE ADMINISTRATIVO","01 de Junio 2020","   30 de Junio de 2020",1900000,1900000,"REMUNERACION",2809,3760,"FABIAN  COLPAS OROZCO ","JEFE  TALENTO  HUMANO","2020-06-12","https://www.contratos.gov.co/consultas/detalleProceso.do?numConstancia=20-4-10843030"]
[83,1062815025,"THALIA ANGELICA ARMENTA AMAYA ","2278-2020","PSICOLOGA TALENTO HUMANO ","01 de Junio 2020","   30 de Junio de 2020",4000000,4000000,"HONORARIOS",2810,3761,"FABIAN  COLPAS OROZCO ","JEFE  TALENTO  HUMANO","2020-06-12","https://www.contratos.gov.co/consultas/detalleProceso.do?numConstancia=20-4-10843035"]
[84,57105067,"GINA LETICIA MARCOS FERNANDEZ ","2279-2020","ESPECIALISTA  ESTADISTICA","01 de Junio 2020","   30 de Junio de 2020",5000000,5000000,"HONORARIOS",2811,3762,"GENARO   GUTIERREZ DE PIÑERES","JEFE DE ESTADISTICA","2020-06-12","https://www.contratos.gov.co/consultas/detalleProceso.do?numConstancia=20-4-10843039"]
[85,85468633,"GREGORIO  RUIZ  PACHECO","2280-2020","ABOGADO  EXTERNO  TALENTO  HUMANO ","01 de Junio 2020","   30 de Junio de 2020",4000000,4000000,"HONORARIOS",2812,3763,"FABIAN  COLPAS OROZCO ","JEFE  TALENTO  HUMANO","2020-06-12","https://www.contratos.gov.co/consultas/detalleProceso.do?numConstancia=20-4-10843042"]
[86,32829531,"MILENA DONADO OCHOA","2281-2020","APOYO  COORDINACION  ODONTOLOGIA ","01 de Junio 2020","   30 de Junio de 2020",4000000,4000000,"REMUNERACION",2813,3764,"BETTY PERTUZ","SUBGERENTE CIENTIFICO","2020-06-12","https://www.contratos.gov.co/consultas/detalleProceso.do?numConstancia=20-4-10843045"]
[87,57270649,"MARTHA MATILDE JIMENEZ ROMERO","2282-2020","AUDITORA","01 de Junio 2020","   30 de Junio de 2020",3000000,3000000,"HONORARIOS",2814,3765,"BETTY PERTUZ","SUBGERENTE CIENTIFICO","2020-06-12","https://www.contratos.gov.co/consultas/detalleProceso.do?numConstancia=20-4-10843048"]
[88,72095954,"JUAN  CARLOS  BARROS CARO ","2283-2020","ASESOR GERENCIA","01 de Junio 2020","   30 de Junio de 2020",4500000,4500000,"HONORARIOS",2815,3766,"JUAN  ESTEBAN SANCHEZ PAEZ ","GERENTE","2020-06-12","https://www.contratos.gov.co/consultas/detalleProceso.do?numConstancia=20-4-10843050"]
[89,19619279,"GUSTAVO SEGUNDO FLORIDO HATUN ","2284-2020","AUDITOR","01 de Junio 2020","   30 de Junio de 2020",5000000,5000000,"HONORARIOS",2816,3767,"BETTY PERTUZ","SUBGERENTE CIENTIFICO","2020-06-12","https://www.contratos.gov.co/consultas/detalleProceso.do?numConstancia=20-4-10843053"]
[90,32767778,"BEATRIZ ELENA GUTIERREZ AHUMADA","2285-2020","DIGITADOR PAI WEB ","01 de Junio 2020","   30 de Junio de 2020",1458000,1458000,"REMUNERACION",2817,3768,"YURANIS BONIFAS","COORDINADOR PAIWEB ","2020-06-12","https://www.contratos.gov.co/consultas/detalleProceso.do?numConstancia=20-4-10843060"]
[91,1143439595,"DAYANA PAOLA OTALORA AMAYA","2286-2020","DIGITADOR PAI WEB ","01 de Junio 2020","   30 de Junio de 2020",1458000,1458000,"REMUNERACION",2818,3769,"YURANIS BONIFAS","COORDINADOR PAIWEB ","2020-06-12","https://www.contratos.gov.co/consultas/detalleProceso.do?numConstancia=20-4-10843062"]
[92,72170268,"FABIAN FERNANDO MERCADO","2287-2020","DIGITADOR PAI WEB ","01 de Junio 2020","   30 de Junio de 2020",1458000,1458000,"REMUNERACION",2819,3770,"YURANIS BONIFAS","COORDINADOR PAIWEB ","2020-06-12","https://www.contratos.gov.co/consultas/detalleProceso.do?numConstancia=20-4-10843068"]
[93,1010123461,"IVAN RAMIRO MORENO MENDOZA","2288-2020","DIGITADOR PAI WEB ","01 de Junio 2020","   30 de Junio de 2020",1458000,1458000,"REMUNERACION",2820,3771,"YURANIS BONIFAS","COORDINADOR PAIWEB ","2020-06-12","https://www.contratos.gov.co/consultas/detalleProceso.do?numConstancia=20-4-10843076"]
[94,73140179,"JULIO CESAR LOPEZ ROMERO","2289-2020","DIGITADOR PAI WEB ","01 de Junio 2020","   30 de Junio de 2020",1458000,1458000,"REMUNERACION",2821,3772,"YURANIS BONIFAS","COORDINADOR PAIWEB ","2020-06-12","https://www.contratos.gov.co/consultas/detalleProceso.do?numConstancia=20-4-10843077"]
[95,22468261,"KANYA MALLERLY BERNAL BECERRA ","2290-2020","DIGITADOR PAI WEB ","01 de Junio 2020","   30 de Junio de 2020",2200000,2200000,"REMUNERACION",2822,3773,"YURANIS BONIFAS","COORDINADOR PAIWEB ","2020-06-12","https://www.contratos.gov.co/consultas/detalleProceso.do?numConstancia=20-4-10843083"]
[96,1001798861,"MARTHA LAURA VIZCAINO PEREZ","2291-2020","DIGITADOR PAI WEB ","01 de Junio 2020","   30 de Junio de 2020",1458000,1458000,"REMUNERACION",2823,3774,"YURANIS BONIFAS","COORDINADOR PAIWEB ","2020-06-12","https://www.contratos.gov.co/consultas/detalleProceso.do?numConstancia=20-4-10843091"]
[97,1042439971,"ROGER RAFAEL RAMBAO NIEBLES","2292-2020","DIGITADOR PAI WEB ","01 de Junio 2020","   30 de Junio de 2020",1458000,1458000,"REMUNERACION",2825,3776,"YURANIS BONIFAS","COORDINADOR PAIWEB ","2020-06-12","https://www.contratos.gov.co/consultas/detalleProceso.do?numConstancia=20-4-10843093"]
[98,1143447904,"STEFFANY BRIGGITTE ALVAREZ LLERENA","2293-2020","RESOLUCION 0273","01 de Junio 2020","   30 de Junio de 2020",1653000,1653000,"REMUNERACION",2826,3777,"NILSA ARIZA MARQUEZ","COORDINADOR PYP","2020-06-12","https://www.contratos.gov.co/consultas/detalleProceso.do?numConstancia=20-4-10843097"]
[99,55250327,"YURANIS BONIFAS CAÑAS","2294-2020","COORDINADORA PAIWEB","01 de Junio 2020","   30 de Junio de 2020",3000000,3000000,"HONORARIOS",2827,3778,"NILSA ARIZA MARQUEZ","COORDINADOR PYP","2020-06-12","https://www.contratos.gov.co/consultas/detalleProceso.do?numConstancia=20-4-10843101"]
[100,1143132965,"YERLIS PAOLA GAMARRA BORJA","2295-2020","DIGITADOR PAI WEB ","01 de Junio 2020","   30 de Junio de 2020",4000000,4000000,"REMUNERACION",2828,3779,"YURANIS BONIFAS","COORDINADOR PAIWEB ","2020-06-12","https://www.contratos.gov.co/consultas/detalleProceso.do?numConstancia=20-4-10843103"]
[101,8566775,"ALEJANDRO LIBARDO ALEMAN MARQUEZ","2296-2020","AUXILIAR DE ARCHIVO ","01 de Junio 2020","   30 de Junio de 2020",1500000,1500000,"REMUNERACION",2829,3780,"SANDRA SANMARTIN","SUBGERENTE ADMINISTRATIVO","2020-06-12","https://www.contratos.gov.co/consultas/detalleProceso.do?numConstancia=20-4-10843109"]
[102,15666678,"ALFREDO ANTONIO RAMIREZ PEREIRA","2297-2020","LIDER ARCHIVO  CENTRAL","01 de Junio 2020","   30 de Junio de 2020",3000000,3000000,"HONORARIOS",2830,3781,"SANDRA SANMARTIN","SUBGERENTE ADMINISTRATIVO","2020-06-12","https://www.contratos.gov.co/consultas/detalleProceso.do?numConstancia=20-4-10843114"]
[103,32813366,"ANA GONZALEZ ZAMBRANO","2298-2020","AUXILIAR DE ARCHIVO ","01 de Junio 2020","   30 de Junio de 2020",1500000,1500000,"REMUNERACION",2831,3782,"SANDRA SANMARTIN","SUBGERENTE ADMINISTRATIVO","2020-06-12","https://www.contratos.gov.co/consultas/detalleProceso.do?numConstancia=20-4-10843119"]
[104,32772038,"ELIANA BEATRIZ ABRIL DE LA ROSA ","2299-2020","AUXILIAR ADMINISTRATIVO - GESTION DOCUMENTAL TALENTO HUMANO","01 de Junio 2020","   30 de Junio de 2020",1900000,1900000,"REMUNERACION",2832,3783,"FABIAN  COLPAS OROZCO ","JEFE  TALENTO  HUMANO","2020-06-12","https://www.contratos.gov.co/consultas/detalleProceso.do?numConstancia=20-4-10843122"]
[105,1007045398,"ELIEZER VEGA ARAGON","2300-2020","AUXILIAR DE ARCHIVO ","01 de Junio 2020","   30 de Junio de 2020",1500000,1500000,"REMUNERACION",2833,3784,"SANDRA SANMARTIN","SUBGERENTE ADMINISTRATIVO","2020-06-12","https://www.contratos.gov.co/consultas/detalleProceso.do?numConstancia=20-4-10843125"]
[106,1042448309,"GERALDINE ALEXANDRA MEDRANO IGLESIAS","2301-2020","AUXILIAR DE ARCHIVO ","01 de Junio 2020","   30 de Junio de 2020",1500000,1500000,"REMUNERACION",2834,3785,"SANDRA SANMARTIN","SUBGERENTE ADMINISTRATIVO","2020-06-12","https://www.contratos.gov.co/consultas/detalleProceso.do?numConstancia=20-4-10843128"]
[107,1047337864,"MARTHA MARÍA ARIZA FONTALVO","2302-2020","AUXILIAR DE ARCHIVO ","01 de Junio 2020","   30 de Junio de 2020",1500000,1500000,"REMUNERACION",2835,3786,"SANDRA SANMARTIN","SUBGERENTE ADMINISTRATIVO","2020-06-12","https://www.contratos.gov.co/consultas/detalleProceso.do?numConstancia=20-4-10843129"]
[108,22562553,"SILVANA BEATRIZ GONZALEZ MORENO ","2303-2020","AUXILIAR ADMINISTRATIVO  ALMACEN ","01 de Junio 2020","   30 de Junio de 2020",1900000,1900000,"REMUNERACION",2836,3787,"ESTARLEN LECHUGA","JEFE DE  ALMACEN","2020-06-12","https://www.contratos.gov.co/consultas/detalleProceso.do?numConstancia=20-4-10843131"]
[109,32826802,"ROCIO ISABEL FRIAS COLPAS","2304-2020","PERSONAL  LIMPIEZA Y ASEO","01 de Junio 2020","   30 de Junio de 2020",1215000,1215000,"REMUNERACION",2837,3788,"JAIME ALVAREZ NORIEGA","INGENIERO AMBIENTAL ","2020-06-12","https://www.contratos.gov.co/consultas/detalleProceso.do?numConstancia=20-4-10843132"]
[110,1043142073,"DORALIZ ECHEVERRI PEREZ","2305-2020","AUXILIAR DE ARCHIVO ","01 de Junio 2020","   30 de Junio de 2020",1500000,1500000,"REMUNERACION",2838,3789,"FABIAN  COLPAS OROZCO ","JEFE  TALENTO  HUMANO","2020-06-12","https://www.contratos.gov.co/consultas/detalleProceso.do?numConstancia=20-4-10843133"]
[111,32826839,"BEATRIZ ISABEL SANMARTIN ESCORCIA","2306-2020","VACUNADORA  PAI WEB","01 de Junio 2020","   30 de Junio de 2020",1400000,1400000,"REMUNERACION",2839,3790,"YURANIS BONIFAS","COORDINADOR PAIWEB ","2020-06-12","https://www.contratos.gov.co/consultas/detalleProceso.do?numConstancia=20-4-10843138"]
[112,32811232,"YOLANDA SOFIA MORALES BERMUDEZ","2307-2020","VACUNADOR(A) CUARTO FRIO","01 de Junio 2020","   30 de Junio de 2020",1600000,1600000,"REMUNERACION",2840,3791,"ALCIRA DEL SOCORRO GOMEZ ARRIETA","COORDINADORA PAI","2020-06-12","https://www.contratos.gov.co/consultas/detalleProceso.do?numConstancia=20-4-10843144"]
[113,60355382,"YEIGNE CONTRERAS BAYONA","2308-2020","VACUNADOR(A)","01 de Junio 2020","   30 de Junio de 2020",1400000,1400000,"REMUNERACION",2841,3792,"ALCIRA DEL SOCORRO GOMEZ ARRIETA","COORDINADORA PAI","2020-06-12","https://www.contratos.gov.co/consultas/detalleProceso.do?numConstancia=20-4-10843150"]
[114,8647518,"LUIS CARLOS MERCADO MARTINEZ","2309-2020","AUXILIAR DE ARCHIVO ","01 de Junio 2020","   30 de Junio de 2020",1900000,1900000,"REMUNERACION",2842,3793,"SANDRA SANMARTIN","SUBGERENTE ADMINISTRATIVO","2020-06-12","https://www.contratos.gov.co/consultas/detalleProceso.do?numConstancia=20-4-10843178"]
[115,1007124107,"JEAN CARLOS PEÑA CERVANTES","2310-2020","AUXILIAR DE ARCHIVO ","01 de Junio 2020","   30 de Junio de 2020",1900000,1900000,"REMUNERACION",2843,3794,"SANDRA SANMARTIN","SUBGERENTE ADMINISTRATIVO","2020-06-12","https://www.contratos.gov.co/consultas/detalleProceso.do?numConstancia=20-4-10843186"]
[116,32818371,"IVETTE CECILIA SARMIENTO DONADO ","2311-2020","AUXILIAR DE ARCHIVO ","01 de Junio 2020","   30 de Junio de 2020",1500000,1500000,"REMUNERACION",2844,3795,"SANDRA SANMARTIN","SUBGERENTE ADMINISTRATIVO","2020-06-12","https://www.contratos.gov.co/consultas/detalleProceso.do?numConstancia=20-4-10843190"]
[117,40993662,"YEIMIS ESTHER DE LAS AGUAS ARIZA","2312-2020","AUXILIAR DE ARCHIVO ","01 de Junio 2020","   30 de Junio de 2020",2000000,2000000,"REMUNERACION",2845,3796,"SANDRA SANMARTIN","SUBGERENTE ADMINISTRATIVO","2020-06-12","https://www.contratos.gov.co/consultas/detalleProceso.do?numConstancia=20-4-10843191"]
[118,72098736,"EVARISTO RAFAEL BARRIOS DE LA ROSA","2313-2020","TECNICO DE  ALMACEN","01 de Junio 2020","   30 de Junio de 2020",2300000,2300000,"REMUNERACION",2846,3797,"ESTARLEN LECHUGA","JEFE DE  ALMACEN","2020-06-12","https://www.contratos.gov.co/consultas/detalleProceso.do?numConstancia=20-4-10843192"]
[119,8774531,"MARIANO JOSE UCROS ROMERO ","2314-2020","AUXILIAR DE ARCHIVO ","01 de Junio 2020","   30 de Junio de 2020",1500000,1500000,"REMUNERACION",2847,3798,"SANDRA SANMARTIN","SUBGERENTE ADMINISTRATIVO","2020-06-12","https://www.contratos.gov.co/consultas/detalleProceso.do?numConstancia=20-4-10843193"]
[120,1001893516,"ANDREA ALEJANDRA CERVANTES CORNIN","2315-2020","AUXILIAR DE ARCHIVO ","01 de Junio 2020","   30 de Junio de 2020",1500000,1500000,"REMUNERACION",2848,3799,"SANDRA SANMARTIN","SUBGERENTE ADMINISTRATIVO","2020-06-12","https://www.contratos.gov.co/consultas/detalleProceso.do?numConstancia=20-4-10843197"]
[121,22664852,"VILMAIRA JUDITH BOLANO VALENCIA","2316-2020","GESTION DOCUMENTAL TALENTO HUMANO","01 de Junio 2020","   30 de Junio de 2020",1700000,1700000,"REMUNERACION",2849,3800,"FABIAN  COLPAS OROZCO ","JEFE  TALENTO  HUMANO","2020-06-12","https://www.contratos.gov.co/consultas/detalleProceso.do?numConstancia=20-4-10843200"]
[122,72227312,"HUGO CHARRIS PEREZ ","2317-2020","AUXILIAR DE ARCHIVO ","01 de Junio 2020","   30 de Junio de 2020",1500000,1500000,"REMUNERACION",2850,3801,"SANDRA SANMARTIN","SUBGERENTE ADMINISTRATIVO","2020-06-12","https://www.contratos.gov.co/consultas/detalleProceso.do?numConstancia=20-4-10843201"]
[123,32816898,"ISABEL OSORIO BARRIOS","2318-2020","VACUNADORA PAI WEB ","01 de Junio 2020","   30 de Junio de 2020",1400000,1400000,"REMUNERACION",2851,3802,"YURANIS BONIFAS","COORDINADOR PAIWEB ","2020-06-12","https://www.contratos.gov.co/consultas/detalleProceso.do?numConstancia=20-4-10843202"]
[124,1001800132,"YARIMA CHARRIS BOLAÑO ","2319-2020","GESTION DOCUMENTAL TALENTO HUMANO","01 de Junio 2020","   30 de Junio de 2020",1700000,1700000,"REMUNERACION",2852,3803,"FABIAN  COLPAS OROZCO ","JEFE  TALENTO  HUMANO","2020-06-12","https://www.contratos.gov.co/consultas/detalleProceso.do?numConstancia=20-4-10843206"]
[125,55221348,"MERCEDES SUSANA ESTARITA GUTIERREZ DE PIÑERES","2320-2020","AUXILIAR DE ARCHIVO ","01 de Junio 2020","   30 de Junio de 2020",2000000,2000000,"REMUNERACION",2853,3804,"SANDRA SANMARTIN","SUBGERENTE ADMINISTRATIVO","2020-06-12","https://www.contratos.gov.co/consultas/detalleProceso.do?numConstancia=20-4-10843211"]
[126,1001878251,"MAYRA ALEJANDRA ESCORCIA DE LA HOZ","2321-2020","AUXILIAR DE ARCHIVO ","01 de Junio 2020","   30 de Junio de 2020",1500000,1500000,"REMUNERACION",2854,3805,"SANDRA SANMARTIN","SUBGERENTE ADMINISTRATIVO","2020-06-13","https://www.contratos.gov.co/consultas/detalleProceso.do?numConstancia=20-4-10843464"]
[127,22446125,"GENOVEVA MARIA LLANES JEREZ","2322-2020","VACUNADORA PAI WEB ","01 de Junio 2020","   30 de Junio de 2020",1400000,1400000,"REMUNERACION",2855,3806,"YURANIS BONIFAS","COORDINADOR PAIWEB ","2020-06-13","https://www.contratos.gov.co/consultas/detalleProceso.do?numConstancia=20-4-10843491"]
[128,72098690,"JAVIER ENRIQUE BARANDICA","2323-2020","TECNICO DE  ALMACEN","01 de Junio 2020","   30 de Junio de 2020",2300000,2300000,"REMUNERACION",2856,3807,"ESTARLEN LECHUGA","JEFE DE  ALMACEN","2020-06-13","https://www.contratos.gov.co/consultas/detalleProceso.do?numConstancia=20-4-10843496"]
[129,1043002864,"JAIRO ISACC BARRIOS AVILA","2324-2020","AUXILIAR DE ARCHIVO ","01 de Junio 2020","   30 de Junio de 2020",1900000,{"$f":"+H130*1","v":1900000},"REMUNERACION",2857,3808,"SANDRA SANMARTIN","SUBGERENTE ADMINISTRATIVO","2020-06-13","https://www.contratos.gov.co/consultas/detalleProceso.do?numConstancia=20-4-10843498"]
[130,1001881009,"ARMANDO JOSE JINETE BARRIOS","2325-2020","AUXILIAR DE ARCHIVO ","01 de Junio 2020","   30 de Junio de 2020",1500000,1500000,"REMUNERACION",2858,3809,"SANDRA SANMARTIN","SUBGERENTE ADMINISTRATIVO","2020-06-13","https://www.contratos.gov.co/consultas/detalleProceso.do?numConstancia=20-4-10843502"]
[{"$f":"+A131+1","v":131},55309225,"ADRIANA BALLESTAS MARTINEZ","2326-2020","MEDICO DE URGENCIA","01 de Junio 2020","   30 de Junio de 2020",3072000,3072000,"HONORARIOS",2859,3810,"SERGIO BOVEA MARIN","COORD CENTRO DE SALUD","2020-06-13","https://www.contratos.gov.co/consultas/detalleProceso.do?numConstancia=20-4-10843504"]
[132,1042428171,"ALEX ENRIQUE VILLARREAL IBAÑEZ","2327-2020","ODONTOLOGO","01 de Junio 2020","   30 de Junio de 2020",1900000,1900000,"HONORARIOS",2860,3811,"SERGIO BOVEA MARIN","COORD CENTRO DE SALUD","2020-06-13","https://www.contratos.gov.co/consultas/detalleProceso.do?numConstancia=20-4-10843506"]
[133,22523223,"ALEXANDRA ESTHER MOLINA PEREZ","2328-2020","PERSONAL  LIMPIEZA Y ASEO URGENCIA","01 de Junio 2020","   30 de Junio de 2020",1653600,1653600,"REMUNERACION",2861,3812,"JAIME ALVAREZ NORIEGA","INGENIERO AMBIENTAL ","2020-06-13","https://www.contratos.gov.co/consultas/detalleProceso.do?numConstancia=20-4-10843509"]
[134,72000601,"ALEXIS JAVIER SUAREZ CABALLERO","2329-2020","AUXILIAR DE FACTURACIÓN  URGENCIA","01 de Junio 2020","   30 de Junio de 2020",1680000,1680000,"REMUNERACION",2862,3813,"SANDRA SANMARTIN","SUBGERENTE ADMINISTRATIVO","2020-06-13","https://www.contratos.gov.co/consultas/detalleProceso.do?numConstancia=20-4-10843512"]
[135,8697543,"ALVARO ARENAS GONZALEZ","2330-2020","MEDICO DE RUTA INTEGRAL MATERNO PERINATAL ","01 de Junio 2020","   30 de Junio de 2020",5088000,5088000,"HONORARIOS",2863,3814,"NILSA ARIZA MARQUEZ","COORDINADOR PYP","2020-06-13","https://www.contratos.gov.co/consultas/detalleProceso.do?numConstancia=20-4-10843521"]
[136,8501206,"AUGUSTO RAFAEL VALENCIA OCAMPO","2331-2020","AUXILIAR DE FACTURACIÓN  URGENCIA","01 de Junio 2020","   30 de Junio de 2020",1680000,1680000,"REMUNERACION",2864,3815,"SERGIO BOVEA MARIN","COORD CENTRO DE SALUD","2020-06-13","https://www.contratos.gov.co/consultas/detalleProceso.do?numConstancia=20-4-10843524"]
[137,1140872217,"BLEYDIS LORAINE PELAEZ LOBO","2332-2020","MEDICO DE URGENCIA","01 de Junio 2020","   30 de Junio de 2020",3072000,3072000,"HONORARIOS",2865,3816,"SERGIO BOVEA MARIN","COORD CENTRO DE SALUD","2020-06-13","https://www.contratos.gov.co/consultas/detalleProceso.do?numConstancia=20-4-10843528"]
[138,44158949,"CARMEN PACHECO VARELA","2333-2020","PERSONAL  LIMPIEZA Y ASEO URGENCIA","01 de Junio 2020","   30 de Junio de 2020",1653600,1653600,"REMUNERACION",2866,3817,"JAIME ALVAREZ NORIEGA","INGENIERO AMBIENTAL ","2020-06-13","https://www.contratos.gov.co/consultas/detalleProceso.do?numConstancia=20-4-10843530"]
[139,32712485,"CASILDA LARA SOLANO ","2334-2020","MEDICO DE RUTA INTEGRAL MATERNO PERINATAL ","01 de Junio 2020","   30 de Junio de 2020",2120000,2120000,"HONORARIOS",2867,3818,"NILSA ARIZA MARQUEZ","COORDINADOR PYP","2020-06-13","https://www.contratos.gov.co/consultas/detalleProceso.do?numConstancia=20-4-10843532"]
[140,1042442558,"DANISA PAOLA BARRIOS DE ALBA","2335-2020","NUTRICIONISTA","01 de Junio 2020","   30 de Junio de 2020",2760000,2760000,"HONORARIOS",2868,3819,"SERGIO BOVEA MARIN","COORD CENTRO DE SALUD","2020-06-13","https://www.contratos.gov.co/consultas/detalleProceso.do?numConstancia=20-4-10843533"]
[141,1082405551,"DESIRETH ESTRADA FERNANDEZ","2336-2020","ENFERMERA JEFE DE PROMOCIÓN Y MANTENIMIENTO DE LA SALUD","01 de Junio 2020","   30 de Junio de 2020",{"$f":"2300000","v":2300000},2300000,"HONORARIOS",2869,3820,"NILSA ARIZA MARQUEZ","COORDINADOR PYP","2020-06-13","https://www.contratos.gov.co/consultas/detalleProceso.do?numConstancia=20-4-10843537"]
[142,32818082,"DIVINA LUZ NIETO ZAMBRANO","2337-2020","PERSONAL  LIMPIEZA Y ASEO URGENCIA","01 de Junio 2020","   30 de Junio de 2020",1653600,1653600,"REMUNERACION",2870,3821,"JAIME ALVAREZ NORIEGA","INGENIERO AMBIENTAL ","2020-06-13","https://www.contratos.gov.co/consultas/detalleProceso.do?numConstancia=20-4-10843540"]
[143,32741368,"DOLLYS YERAYS GOMEZ RODRIGUEZ ","2338-2020","ASISTENTE COORDINACIÓN MÉDICA","01 de Junio 2020","   30 de Junio de 2020",1900000,1900000,"REMUNERACION",2871,3822,"SERGIO BOVEA MARIN","COORD CENTRO DE SALUD","2020-06-13","https://www.contratos.gov.co/consultas/detalleProceso.do?numConstancia=20-4-10843542"]
[144,8734956,"EFRAIN CANTILLO GUERRERO","2339-2020","CONDUCTOR DE AMBULANCIA","01 de Junio 2020","   30 de Junio de 2020",2160000,2160000,"REMUNERACION",2872,3823,"BETTY PERTUZ ","SUBGERENTE CIENTIFICO","2020-06-13","https://www.contratos.gov.co/consultas/detalleProceso.do?numConstancia=20-4-10843544"]
[145,8750161,"EFRAIN DE LA HOZ ROCHEL","2340-2020","MEDICO DE URGENCIA","01 de Junio 2020","   30 de Junio de 2020",3072000,3072000,"HONORARIOS",2873,3824,"SERGIO BOVEA MARIN","COORD CENTRO DE SALUD","2020-06-13","https://www.contratos.gov.co/consultas/detalleProceso.do?numConstancia=20-4-10843545"]
[146,1042436156,"EMELY ESCORCIA MARTINEZ","2341-2020","ENFERMERA JEFE URGENCIAS ","01 de Junio 2020","   30 de Junio de 2020",2280000,2280000,"HONORARIOS",2874,3825,"SERGIO BOVEA MARIN","COORD CENTRO DE SALUD","2020-06-13","https://www.contratos.gov.co/consultas/detalleProceso.do?numConstancia=20-4-10843547"]
[147,22693401,"EMILIA ANTONIA BARCELO DE PARRA","2342-2020","PERSONAL  LIMPIEZA Y ASEO URGENCIA","01 de Junio 2020","   30 de Junio de 2020",1653600,1653600,"REMUNERACION",2875,3826,"JAIME ALVAREZ NORIEGA","INGENIERO AMBIENTAL ","2020-06-13","https://www.contratos.gov.co/consultas/detalleProceso.do?numConstancia=20-4-10843548"]
[148,8718276,"ENRIQUE PACHECO PACHECO ","2343-2020","MEDICO DE URGENCIA","01 de Junio 2020","   30 de Junio de 2020",3072000,3072000,"HONORARIOS",2876,3827,"SERGIO BOVEA MARIN","COORD CENTRO DE SALUD","2020-06-13","https://www.contratos.gov.co/consultas/detalleProceso.do?numConstancia=20-4-10843549"]
[149,32821813,"ESPERANZA OROZCO MORENO","2344-2020","AUXILIAR DE ENFERMERIA URGENCIAS","01 de Junio 2020","   30 de Junio de 2020",1653600,1653600,"REMUNERACION",2877,3828,"SERGIO BOVEA MARIN","COORD CENTRO DE SALUD","2020-06-13","https://www.contratos.gov.co/consultas/detalleProceso.do?numConstancia=20-4-10843551"]
[150,1042448518,"GIANINA ANDREA GRAVINI DE LA HOZ","2345-2020","MEDICO DE URGENCIA","01 de Junio 2020","   30 de Junio de 2020",3072000,3072000,"HONORARIOS",2878,3829,"SERGIO BOVEA MARIN","COORD CENTRO DE SALUD","2020-06-13","https://www.contratos.gov.co/consultas/detalleProceso.do?numConstancia=20-4-10843552"]
[151,49555306,"GLADYS DIAZ MARIN","2346-2020","AUXILIAR DE FACTURACION URGENCIA","01 de Junio 2020","   30 de Junio de 2020",1680000,1680000,"REMUNERACION",2879,3830,"SANDRA SANMARTIN","SUBGERENTE ADMINISTRATIVO","2020-06-13","https://www.contratos.gov.co/consultas/detalleProceso.do?numConstancia=20-4-10843553"]
[152,1042440903,"HEIDY MARTINEZ GUTIERREZ","2347-2020","AUXILIAR DE FACTURACION URGENCIA","01 de Junio 2020","   30 de Junio de 2020",1680000,1680000,"REMUNERACION",2880,3831,"SANDRA SANMARTIN","SUBGERENTE ADMINISTRATIVO","2020-06-13","https://www.contratos.gov.co/consultas/detalleProceso.do?numConstancia=20-4-10843554"]
[153,32861543,"INGRID NAVARRO CARRILLO","2348-2020","FISIOTERAPEUTA ","01 de Junio 2020","   30 de Junio de 2020",5800000,5800000,"HONORARIOS",2881,3832,"SERGIO BOVEA MARIN","COORD CENTRO DE SALUD","2020-06-13","https://www.contratos.gov.co/consultas/detalleProceso.do?numConstancia=20-4-10843557"]
[154,32822389,"ISABEL AMÉRICA DE ALBA RODRIGUEZ","2349-2020","AUXILIAR DE FACTURACION","01 de Junio 2020","   30 de Junio de 2020",1400000,1400000,"REMUNERACION",2882,3833,"SANDRA SANMARTIN","SUBGERENTE ADMINISTRATIVO","2020-06-13","https://www.contratos.gov.co/consultas/detalleProceso.do?numConstancia=20-4-10843558"]
[155,72429926,"JAIRO ESCOBAR ROMERO","2350-2020","MEDICO DE URGENCIA","01 de Junio 2020","   30 de Junio de 2020",3072000,3072000,"HONORARIOS",2883,3834,"SERGIO BOVEA MARIN","COORD CENTRO DE SALUD","2020-06-13","https://www.contratos.gov.co/consultas/detalleProceso.do?numConstancia=20-4-10843559"]
[156,32869709,"JENECIS BARRERA MIRANDA","2351-2020","ENFERMERA JEFE DE RUTA INTEGRAL MATERNO PERINATAL","01 de Junio 2020","   30 de Junio de 2020",2760000,2760000,"HONORARIOS",2884,3835,"NILSA ARIZA MARQUEZ","COORDINADOR PYP","2020-06-13","https://www.contratos.gov.co/consultas/detalleProceso.do?numConstancia=20-4-10843561"]
[157,1042444925,"JESUS MORENO DE ALBA","2352-2020","AUXILIAR DE FACTURACION URGENCIA","01 de Junio 2020","   30 de Junio de 2020",1680000,1680000,"REMUNERACION",2885,3836,"SANDRA SANMARTIN","SUBGERENTE ADMINISTRATIVO","2020-06-13","https://www.contratos.gov.co/consultas/detalleProceso.do?numConstancia=20-4-10843562"]
[158,44161544,"JHOANA CATALINA SANDOVAL ESCORCIA","2353-2020","ENFERMERA JEFE URGENCIAS ","01 de Junio 2020","   30 de Junio de 2020",2280000,2280000,"HONORARIOS",2886,3837,"SERGIO BOVEA MARIN","COORD CENTRO DE SALUD","2020-06-13","https://www.contratos.gov.co/consultas/detalleProceso.do?numConstancia=20-4-10843563"]
[159,32810582,"JOSEFINA CARO VITOLA","2354-2020","AUXILIAR DE ENFERMERIA URGENCIAS","01 de Junio 2020","   30 de Junio de 2020",1653600,1653600,"REMUNERACION",2887,3838,"SERGIO BOVEA MARIN","COORD CENTRO DE SALUD","2020-06-13","https://www.contratos.gov.co/consultas/detalleProceso.do?numConstancia=20-4-10843565"]
[160,32771594,"JUANA DIAZ CARABALLO","2355-2020","AUXILIAR DE ENFERMERIA URGENCIAS","01 de Junio 2020","   30 de Junio de 2020",1653600,1653600,"REMUNERACION",2888,3839,"SERGIO BOVEA MARIN","COORD CENTRO DE SALUD","2020-06-13","https://www.contratos.gov.co/consultas/detalleProceso.do?numConstancia=20-4-10843568"]
[161,1043841968,"KAREN DAYANA FONSECA MUÑOZ","2356-2020","MEDICO DE URGENCIA","01 de Junio 2020","   30 de Junio de 2020",3072000,3072000,"HONORARIOS",2889,3840,"SERGIO BOVEA MARIN","COORD CENTRO DE SALUD","2020-06-13","https://www.contratos.gov.co/consultas/detalleProceso.do?numConstancia=20-4-10843573"]
[162,55313269,"KAREN MARTINEZ BRANGO","2357-2020","AUXILIAR DE ENFERMERIA URGENCIAS","01 de Junio 2020","   30 de Junio de 2020",1653600,1653600,"REMUNERACION",2890,3841,"SERGIO BOVEA MARIN","COORD CENTRO DE SALUD","2020-06-13","https://www.contratos.gov.co/consultas/detalleProceso.do?numConstancia=20-4-10843574"]
[163,22534402,"KATERINE RUA SUAREZ","2358-2020","AUXILIAR DE FACTURACION URGENCIA","01 de Junio 2020","   30 de Junio de 2020",1680000,1680000,"REMUNERACION",2891,3842,"SANDRA SANMARTIN","SUBGERENTE ADMINISTRATIVO","2020-06-13","https://www.contratos.gov.co/consultas/detalleProceso.do?numConstancia=20-4-10843575"]
[164,55301340,"KATYA LILIANA NORIEGA BARRIOS","2359-2020","AUXILIAR DE ENFERMERIA URGENCIAS","01 de Junio 2020","   30 de Junio de 2020",1653600,1653600,"REMUNERACION",2892,3843,"SERGIO BOVEA MARIN","COORD CENTRO DE SALUD","2020-06-13","https://www.contratos.gov.co/consultas/detalleProceso.do?numConstancia=20-4-10843576"]
[165,1045697885,"LAURA ALANDETE CASTRO","2360-2020","MEDICO DE URGENCIA","01 de Junio 2020","   30 de Junio de 2020",3072000,3072000,"HONORARIOS",2893,3844,"SERGIO BOVEA MARIN","COORD CENTRO DE SALUD","2020-06-13","https://www.contratos.gov.co/consultas/detalleProceso.do?numConstancia=20-4-10843578"]
[166,1045712889,"LEYDILLY ROJANO GOMEZ","2361-2020","ENFERMERA JEFE URGENCIAS ","01 de Junio 2020","   30 de Junio de 2020",2280000,2280000,"HONORARIOS",2894,3845,"SERGIO BOVEA MARIN","COORD CENTRO DE SALUD","2020-06-13","https://www.contratos.gov.co/consultas/detalleProceso.do?numConstancia=20-4-10843581"]
[167,22533893,"LILIANA VARGAS MONTERO","2362-2020","ENFERMERA JEFE DE PROMOCIÓN Y MANTENIMIENTO DE LA SALUD","01 de Junio 2020","   30 de Junio de 2020",2300000,2300000,"HONORARIOS",2895,3846,"NILSA ARIZA MARQUEZ","COORDINADOR PYP","2020-06-13","https://www.contratos.gov.co/consultas/detalleProceso.do?numConstancia=20-4-10843582"]
[168,1042426533,"LIZ CATERINE ARROYO ROMERO","2363-2020","AUXILIAR DE FARMACIA ","01 de Junio 2020","   30 de Junio de 2020",1524000,1524000,"REMUNERACION",2896,3847,"BETTY PERTUZ ","SUBGERENTE CIENTIFICO","2020-06-13","https://www.contratos.gov.co/consultas/detalleProceso.do?numConstancia=20-4-10843584"]
[169,32716780,"LORAINE PASION ARDILA ","2364-2020","TRABAJADORA SOCIAL","01 de Junio 2020","   30 de Junio de 2020",2760000,2760000,"HONORARIOS",2897,3848,"SERGIO BOVEA MARIN","COORD CENTRO DE SALUD","2020-06-13","https://www.contratos.gov.co/consultas/detalleProceso.do?numConstancia=20-4-10843587"]
[170,8672260,"LUIS MIGUEL REYES LANCE","2365-2020","ORIENTADOR","01 de Junio 2020","   30 de Junio de 2020",1524000,1524000,"REMUNERACION",2898,3849,"SERGIO BOVEA MARIN","COORD CENTRO DE SALUD","2020-06-13","https://www.contratos.gov.co/consultas/detalleProceso.do?numConstancia=20-4-10843589"]
[171,32825666,"LUZ STELLA RUIZ SUAREZ","2366-2020","AUXILIAR DE ENFERMERIA DE RUTA INTEGRAL MATERNO PERINATAL","01 de Junio 2020","   30 de Junio de 2020",1399200,1399200,"REMUNERACION",2899,3850,"NILSA ARIZA MARQUEZ","COORDINADOR PYP","2020-06-13","https://www.contratos.gov.co/consultas/detalleProceso.do?numConstancia=20-4-10843591"]
[172,32697306,"MAGALY POLO ARNEDO ","2367-2020","ODONTOLOGO","01 de Junio 2020","   30 de Junio de 2020",1900000,1900000,"HONORARIOS",2900,3851,"SERGIO BOVEA MARIN","COORD CENTRO DE SALUD","2020-06-13","https://www.contratos.gov.co/consultas/detalleProceso.do?numConstancia=20-4-10843594"]
[173,1140849940,"MAICOL JOSE MOLINA SOTO","2368-2020","MEDICO DE URGENCIA","01 de Junio 2020","   30 de Junio de 2020",3072000,3072000,"HONORARIOS",2901,3852,"SERGIO BOVEA MARIN","COORD CENTRO DE SALUD","2020-06-13","https://www.contratos.gov.co/consultas/detalleProceso.do?numConstancia=20-4-10843595"]
[174,22644933,"MARGARITA PACHECO GUTIERREZ","2369-2020","HIGIENISTA ORAL","01 de Junio 2020","   30 de Junio de 2020",2332000,2332000,"REMUNERACION",2902,3853,"SERGIO BOVEA MARIN","COORD CENTRO DE SALUD","2020-06-13","https://www.contratos.gov.co/consultas/detalleProceso.do?numConstancia=20-4-10843596"]
[175,1042450048,"MARIA ALEJANDRA DE LA HOZ TOSCANO","2370-2020","MEDICO DE URGENCIA","01 de Junio 2020","   30 de Junio de 2020",3072000,3072000,"HONORARIOS",2903,3854,"SERGIO BOVEA MARIN","COORD CENTRO DE SALUD","2020-06-13","https://www.contratos.gov.co/consultas/detalleProceso.do?numConstancia=20-4-10843597"]
[176,1004093696,"MARIA ALTAMAR OROZCO","2371-2020","AUXILIAR DE ENFERMERIA URGENCIAS","01 de Junio 2020","   30 de Junio de 2020",1653600,1653600,"REMUNERACION",2904,3855,"SERGIO BOVEA MARIN","COORD CENTRO DE SALUD","2020-06-13","https://www.contratos.gov.co/consultas/detalleProceso.do?numConstancia=20-4-10843599"]
[177,32789239,"MARIA DEL CARMEN GUERRERO OJEDA","2372-2020","ORIENTADOR","01 de Junio 2020","   30 de Junio de 2020",1524000,1524000,"REMUNERACION",2905,3856,"SERGIO BOVEA MARIN","COORD CENTRO DE SALUD","2020-06-13","https://www.contratos.gov.co/consultas/detalleProceso.do?numConstancia=20-4-10843600"]
[178,1129572439,"SHIRLEY CONSUEGRA OLAYA","2373-2020","REFERENCIA Y CONTRAREFERENCIA","01 de Junio 2020","   30 de Junio de 2020",1524000,1524000,"REMUNERACION",2906,3857,"SERGIO BOVEA MARIN","COORD CENTRO DE SALUD","2020-06-13","https://www.contratos.gov.co/consultas/detalleProceso.do?numConstancia=20-4-10843604"]
[179,32879250,"MARIA SEGURA MEJIA","2374-2020","AUXILIAR FACTURACION URGENCIA","01 de Junio 2020","   30 de Junio de 2020",1680000,1680000,"REMUNERACION",2907,3858,"SANDRA SANMARTIN","SUBGERENTE ADMINISTRATIVO","2020-06-13","https://www.contratos.gov.co/consultas/detalleProceso.do?numConstancia=20-4-10843606"]
[180,72158729,"MARLON CAMILO JORDAN HERRERA","2375-2020","REFERENCIA Y CONTRAREFERENCIA","01 de Junio 2020","   30 de Junio de 2020",1776000,1776000,"REMUNERACION",2908,3859,"SERGIO BOVEA MARIN","COORD CENTRO DE SALUD","2020-06-13","https://www.contratos.gov.co/consultas/detalleProceso.do?numConstancia=20-4-10843608"]
[181,22457575,"MELBA MEZA PERDOMO","2376-2020","TRABAJADORA SOCIAL ","01 de Junio 2020","   30 de Junio de 2020",2200000,2200000,"HONORARIOS",2909,3860,"SERGIO BOVEA MARIN","COORD CENTRO DE SALUD","2020-06-13","https://www.contratos.gov.co/consultas/detalleProceso.do?numConstancia=20-4-10843609"]
[182,8507626,"MIGUEL ALVAREZ SALCEDO","2377-2020","CONDUCTOR DE AMBULANCIA","01 de Junio 2020","   30 de Junio de 2020",2160000,2160000,"REMUNERACION",2910,3861,"BETTY PERTUZ ","SUBGERENTE CIENTIFICO","2020-06-13","https://www.contratos.gov.co/consultas/detalleProceso.do?numConstancia=20-4-10843612"]
[183,32829349,"NADIA BOVEA NIETO","2378-2020","AUXILIAR DE ENFERMERIA URGENCIAS","01 de Junio 2020","   30 de Junio de 2020",1653600,1653600,"REMUNERACION",2911,3862,"SERGIO BOVEA MARIN","COORD CENTRO DE SALUD","2020-06-13","https://www.contratos.gov.co/consultas/detalleProceso.do?numConstancia=20-4-10843613"]
[184,55307414,"NATALY DE LAS SALAS ORTEGA","2379-2020","PSICOLOGA","01 de Junio 2020","   30 de Junio de 2020",3000000,3000000,"HONORARIOS",2912,3863,"BETTY PERTUZ ","SUBGERENTE CIENTIFICO","2020-06-13","https://www.contratos.gov.co/consultas/detalleProceso.do?numConstancia=20-4-10843614"]
[185,32783935,"NELBY CORRALES HOYOS","2380-2020","AUXILIAR DE ENFERMERIA URGENCIAS","01 de Junio 2020","   30 de Junio de 2020",1653600,1653600,"REMUNERACION",2913,3864,"SERGIO BOVEA MARIN","COORD CENTRO DE SALUD","2020-06-13","https://www.contratos.gov.co/consultas/detalleProceso.do?numConstancia=20-4-10843615"]
[186,32819548,"NELLY GALAN HEILBRON","2381-2020","AUXILIAR DE ENFERMERIA PROMOTORA EN SALUD","01 de Junio 2020","   30 de Junio de 2020",1215000,1215000,"REMUNERACION",2914,3865,"NILSA ARIZA MARQUEZ","COORDINADOR PYP","2020-06-13","https://www.contratos.gov.co/consultas/detalleProceso.do?numConstancia=20-4-10843617"]
[187,72222215,"NILSON ALMARALES GARIZABALO","2382-2020","MEDICO  MATERNIDAD SEGURA Y URGENCIA","01 de Junio 2020","   30 de Junio de 2020",6212000,6212000,"HONORARIOS",2915,3866,"NILSA ARIZA MARQUEZ","COORDINADOR PYP","2020-06-13","https://www.contratos.gov.co/consultas/detalleProceso.do?numConstancia=20-4-10843619"]
[188,22646712,"NINI JOHANA SOLANO MORENO","2383-2020","ENFERMERA JEFE URGENCIAS ","01 de Junio 2020","   30 de Junio de 2020",2280000,2280000,"HONORARIOS",2916,3867,"SERGIO BOVEA MARIN","COORD CENTRO DE SALUD","2020-06-13","https://www.contratos.gov.co/consultas/detalleProceso.do?numConstancia=20-4-10843620"]
[189,22564359,"NINI JOHANNA QUIROZ SANTOS","2384-2020","MEDICO DE URGENCIA","01 de Junio 2020","   30 de Junio de 2020",3072000,3072000,"HONORARIOS",2917,3868,"SERGIO BOVEA MARIN","COORD CENTRO DE SALUD","2020-06-13","https://www.contratos.gov.co/consultas/detalleProceso.do?numConstancia=20-4-10843622"]
[190,8737936,"NOE ANIBAL PELAEZ GONZALEZ","2385-2020","REGENTE DE FARMACIA ","01 de Junio 2020","   30 de Junio de 2020",2280000,2280000,"REMUNERACION",2918,3869,"BETTY PERTUZ ","SUBGERENTE CIENTIFICO","2020-06-13","https://www.contratos.gov.co/consultas/detalleProceso.do?numConstancia=20-4-10843623"]
[191,39282489,"NORIS SOFIA BERTEL PEREZ","2386-2020","PERSONAL  LIMPIEZA Y ASEO URGENCIA","01 de Junio 2020","   30 de Junio de 2020",1653600,1653600,"REMUNERACION",2919,3870,"JAIME ALVAREZ NORIEGA","INGENIERO AMBIENTAL ","2020-06-13","https://www.contratos.gov.co/consultas/detalleProceso.do?numConstancia=20-4-10843625"]
[192,8772224,"OLAINER MONTERO CASTRO ","2387-2020","LIDER DE  FACTURACION  EN CENTROS DE SALUD","01 de Junio 2020","   30 de Junio de 2020",2160000,2160000,"HONORARIOS",2920,3871,"SERGIO BOVEA MARIN","COORD CENTRO DE SALUD","2020-06-13","https://www.contratos.gov.co/consultas/detalleProceso.do?numConstancia=20-4-10843627"]
[193,72144602,"RICARDO ISAAC OROZCO BARROS","2388-2020","CONDUCTOR DE AMBULANCIA ","01 de Junio 2020","   30 de Junio de 2020",2160000,{"$f":"+H194*1","v":2160000},"REMUNERACION",2921,3872,"SERGIO BOVEA MARIN","COORD CENTRO DE SALUD","2020-06-13","https://www.contratos.gov.co/consultas/detalleProceso.do?numConstancia=20-4-10843629"]
[194,22527122,"RUBY DEL CARMEN BOSSIO HERRERA","2389-2020","AUXILIAR DE ENFERMERIA URGENCIAS","01 de Junio 2020","   30 de Junio de 2020",1653600,1653600,"REMUNERACION",2922,3873,"SERGIO BOVEA MARIN","COORD CENTRO DE SALUD","2020-06-13","https://www.contratos.gov.co/consultas/detalleProceso.do?numConstancia=20-4-10843630"]
[{"$f":"+A195+1","v":195},1042426990,"SANDRA MARCELA PEREZ BERMEJO","2390-2020","MEDICO DE URGENCIA","01 de Junio 2020","   30 de Junio de 2020",3072000,3072000,"HONORARIOS",2923,3874,"SERGIO BOVEA MARIN","COORD CENTRO DE SALUD","2020-06-13","https://www.contratos.gov.co/consultas/detalleProceso.do?numConstancia=20-4-10843631"]
[196,1042430978,"TATIANA BARRIOSNUEVO CERA","2391-2020","AUXILIAR DE ENFERMERIA URGENCIAS","01 de Junio 2020","   30 de Junio de 2020",1653600,1653600,"REMUNERACION",2924,3875,"SERGIO BOVEA MARIN","COORD CENTRO DE SALUD","2020-06-13","https://www.contratos.gov.co/consultas/detalleProceso.do?numConstancia=20-4-10843632"]
[197,32874863,"TATIANA PAEZ DE LA CRUZ","2392-2020","AUXILIAR DE ENFERMERIA URGENCIAS","01 de Junio 2020","   30 de Junio de 2020",1653600,1653600,"REMUNERACION",2925,3876,"SERGIO BOVEA MARIN","COORD CENTRO DE SALUD","2020-06-13","https://www.contratos.gov.co/consultas/detalleProceso.do?numConstancia=20-4-10843634"]
[198,32884590,"TATIANA SUAREZ CABALLERO ","2393-2020","AUXILIAR DE ENFERMERIA DE RUTA INTEGRAL MATERNO PERINATAL","01 de Junio 2020","   30 de Junio de 2020",1399200,1399200,"REMUNERACION",2926,3877,"NILSA ARIZA MARQUEZ","COORDINADOR PYP","2020-06-13","https://www.contratos.gov.co/consultas/detalleProceso.do?numConstancia=20-4-10843636"]
[199,1048271951,"WENDY OFELIA BARRAZA PUA","2394-2020","AUXILIAR DE ENFERMERIA URGENCIAS","01 de Junio 2020","   30 de Junio de 2020",1653600,1653600,"REMUNERACION",2927,3878,"SERGIO BOVEA MARIN","COORD CENTRO DE SALUD","2020-06-13","https://www.contratos.gov.co/consultas/detalleProceso.do?numConstancia=20-4-10843637"]
[200,1042456068,"XILENA PACHECO OSPINO ","2395-2020","AUXILIAR DE ENFERMERIA URGENCIAS","01 de Junio 2020","   30 de Junio de 2020",1653600,1653600,"REMUNERACION",2928,3879,"SERGIO BOVEA MARIN","COORD CENTRO DE SALUD","2020-06-13","https://www.contratos.gov.co/consultas/detalleProceso.do?numConstancia=20-4-10843640"]
[201,44153255,"XIMENA ESCORCIA CASTRO","2396-2020","MEDICO DE URGENCIA","01 de Junio 2020","   30 de Junio de 2020",3072000,3072000,"HONORARIOS",2929,3880,"SERGIO BOVEA MARIN","COORD CENTRO DE SALUD","2020-06-13","https://www.contratos.gov.co/consultas/detalleProceso.do?numConstancia=20-4-10843642"]
[202,1042437499,"XIOMARA ALEJANDRA MAURY PACHECO ","2397-2020","ENFERMERA JEFE URGENCIAS ","01 de Junio 2020","   30 de Junio de 2020",2280000,2280000,"HONORARIOS",2930,3881,"SERGIO BOVEA MARIN","COORD CENTRO DE SALUD","2020-06-13","https://www.contratos.gov.co/consultas/detalleProceso.do?numConstancia=20-4-10843643"]
[203,1042425681,"YESMITH ALEXI GARIZABALO RETAMOSO ","2398-2020","MEDICO DE URGENCIA","01 de Junio 2020","   30 de Junio de 2020",3072000,3072000,"HONORARIOS",2931,3882,"SERGIO BOVEA MARIN","COORD CENTRO DE SALUD","2020-06-13","https://www.contratos.gov.co/consultas/detalleProceso.do?numConstancia=20-4-10843644"]
[204,32739126,"YIRA DEL CARMEN PEÑALOZA AREVALO","2399-2020","PERSONAL  LIMPIEZA Y ASEO URGENCIA","01 de Junio 2020","   30 de Junio de 2020",1653600,1653600,"REMUNERACION",2932,3883,"JAIME ALVAREZ NORIEGA","INGENIERO AMBIENTAL ","2020-06-13","https://www.contratos.gov.co/consultas/detalleProceso.do?numConstancia=20-4-10843646"]
[205,32896400,"YISEL BEATRIZ ARROYO SUAREZ","2400-2020","AUXILIAR DE FACTURACION URGENCIA","01 de Junio 2020","   30 de Junio de 2020",1680000,1680000,"REMUNERACION",2933,3884,"SERGIO BOVEA MARIN","COORD CENTRO DE SALUD","2020-06-13","https://www.contratos.gov.co/consultas/detalleProceso.do?numConstancia=20-4-10843648"]
[206,55230396,"YORLETH MALENA FLOREZ ABRIL","2401-2020","MEDICO DE URGENCIA","01 de Junio 2020","   30 de Junio de 2020",3072000,3072000,"HONORARIOS",2934,3885,"SERGIO BOVEA MARIN","COORD CENTRO DE SALUD","2020-06-13","https://www.contratos.gov.co/consultas/detalleProceso.do?numConstancia=20-4-10843650"]
[207,44155518,"YURLEY FONTALVO RIVALDO ","2402-2020","MEDICO DE URGENCIA","01 de Junio 2020","   30 de Junio de 2020",3072000,3072000,"HONORARIOS",2935,3886,"SERGIO BOVEA MARIN","COORD CENTRO DE SALUD","2020-06-13","https://www.contratos.gov.co/consultas/detalleProceso.do?numConstancia=20-4-10843651"]
[208,32865503,"ZULAI DONADO PARODIS ","2403-2020","AUXILIAR DE ENFERMERIA DE PROMOCIÓN Y MANTENIMIENTO DE LA SALUD","01 de Junio 2020","   30 de Junio de 2020",1166000,1166000,"REMUNERACION",2936,3887,"NILSA ARIZA MARQUEZ","COORDINADOR PYP","2020-06-13","https://www.contratos.gov.co/consultas/detalleProceso.do?numConstancia=20-4-10843653"]
[209,32703436,"VILMA ZUÑIGA GONZALEZ","2404-2020","AUXILIAR DE ODONTOLOGIA","01 de Junio 2020","   30 de Junio de 2020",1166000,1166000,"REMUNERACION",2937,3888,"SERGIO BOVEA MARIN","COORD CENTRO DE SALUD","2020-06-13","https://www.contratos.gov.co/consultas/detalleProceso.do?numConstancia=20-4-10843654"]
[210,1129519216,"MILAGRO HERRERA MOJICA","2405-2020","MEDICO DE URGENCIA","01 de Junio 2020","   30 de Junio de 2020",3072000,3072000,"HONORARIOS",2938,3889,"SERGIO BOVEA MARIN","COORD CENTRO DE SALUD","2020-06-13","https://www.contratos.gov.co/consultas/detalleProceso.do?numConstancia=20-4-10843656"]
[211,72271914,"LEONARDO DE JESUS ARIZA NIEBLES          ","2406-2020","AUXILIAR DE ARCHIVO ","01 de Junio 2020","   30 de Junio de 2020",1800000,1800000,"REMUNERACION",2939,3890,"SANDRA SANMARTIN","SUBGERENTE ADMINISTRATIVO","2020-06-13","https://www.contratos.gov.co/consultas/detalleProceso.do?numConstancia=20-4-10843657"]
[212,32817343,"MARIELA NIEBLES FREILE","2407-2020","AUXILIAR DE ARCHIVO ","01 de Junio 2020","   30 de Junio de 2020",1800000,1800000,"REMUNERACION",2940,3891,"SANDRA SANMARTIN","SUBGERENTE ADMINISTRATIVO","2020-06-13","https://www.contratos.gov.co/consultas/detalleProceso.do?numConstancia=20-4-10843660"]
[213,1042419634,"SUANY DEL CRISTO CADRAZCO  IMBETT","2408-2020","MEDICO DE URGENCIA","01 de Junio 2020","   30 de Junio de 2020",3072000,3072000,"HONORARIOS",2941,3892,"SERGIO BOVEA MARIN","COORD CENTRO DE SALUD","2020-06-13","https://www.contratos.gov.co/consultas/detalleProceso.do?numConstancia=20-4-10843663"]
[214,22529899,"ZULMA ESTHER MEZA MERCADO","2409-2020","AUXILIAR DE ENFERMERIA DE RUTA INTEGRAL MATERNO PERINATAL","01 de Junio 2020","   30 de Junio de 2020",1600000,1600000,"REMUNERACION",2942,3893,"NILSA ARIZA MARQUEZ","COORDINADOR PYP","2020-06-13","https://www.contratos.gov.co/consultas/detalleProceso.do?numConstancia=20-4-10843666"]
[215,1048279224,"MAICOL LAURENS FABREGAS","2410-2020","ORIENTADOR","01 de Junio 2020","   30 de Junio de 2020",2000000,2000000,"REMUNERACION",2943,3894,"SERGIO BOVEA MARIN","COORD CENTRO DE SALUD","2020-06-13","https://www.contratos.gov.co/consultas/detalleProceso.do?numConstancia=20-4-10843668"]
[216,27895505,"SANDRA GARCIA PEÑA","2411-2020","GESTION DOCUMENTAL JURIDICA","01 de Junio 2020","   30 de Junio de 2020",1500000,1500000,"REMUNERACION",2938,3889,"ORNELLA FIORENTINO","JEFE JURIDICA"]
[217,8770580,"NELSON JULIO SANDOVAL GONZALEZ","2412-2020","AUXILIAR  FACTURACION CENTRAL","01 de Junio 2020","   30 de Junio de 2020",3000000,3000000,"REMUNERACION",2945,3896,"SANDRA SANMARTIN","SUBGERENTE ADMINISTRATIVO","2020-06-13","https://www.contratos.gov.co/consultas/detalleProceso.do?numConstancia=20-4-10843670"]
[218,1140845475,"LAURY DEL CARMEN PACHECO SANCHEZ","2413-2020","ODONTOLOGO","01 de Junio 2020","   30 de Junio de 2020",1900000,1900000,"HONORARIOS",2946,3897,"CARLOS VISBAL JIMENEZ","COORD CENTRO DE SALUD","2020-06-13","https://www.contratos.gov.co/consultas/detalleProceso.do?numConstancia=20-4-10843672"]
[219,36555688,"ALBA SOLANO COCA","2414-2020","ODONTOLOGO","01 de Junio 2020","   30 de Junio de 2020",1900000,1900000,"HONORARIOS",2947,3898,"CARLOS VISBAL JIMENEZ","COORD CENTRO DE SALUD","2020-06-13","https://www.contratos.gov.co/consultas/detalleProceso.do?numConstancia=20-4-10843673"]
[220,8721508,"ALONSO JOSÉ RIQUETT DE LA HOZ","2415-2020","MEDICO DE PROMOCIÓN Y MANTENIMIENTO DE LA SALUD","01 de Junio 2020","   30 de Junio de 2020",2120000,2120000,"HONORARIOS",2948,3899,"NILSA ARIZA MARQUEZ","COORDINADOR PYP","2020-06-13","https://www.contratos.gov.co/consultas/detalleProceso.do?numConstancia=20-4-10843674"]
[221,1045704276,"ANA MILENA HERRERA ALVIS ","2416-2020","ENFERMERA JEFE DE PROMOCIÓN Y MANTENIMIENTO DE LA SALUD- EMERGENCIA COVIC 19","01 de Junio 2020","   30 de Junio de 2020",3810000,3810000,"HONORARIOS",2949,3900,"NILSA ARIZA MARQUEZ","COORDINADOR PYP","2020-06-13","https://www.contratos.gov.co/consultas/detalleProceso.do?numConstancia=20-4-10843675"]
[222,22647051,"EDELMIRA DUQUE LAMADRID","2417-2020","FISIOTERAPEUTA ","01 de Junio 2020","   30 de Junio de 2020",1900000,1900000,"HONORARIOS",2950,3901,"CARLOS VISBAL JIMENEZ","COORD CENTRO DE SALUD","2020-06-13","https://www.contratos.gov.co/consultas/detalleProceso.do?numConstancia=20-4-10843677"]
[223,22644596,"GRACIELA BUSTOS RIVEROS","2418-2020","AUXILIAR ADMINISTRATIVO  FACTURACIÒN","01 de Junio 2020","   30 de Junio de 2020",2000000,2000000,"REMUNERACION",2951,3902,"SANDRA SANMARTIN","SUBGERENTE ADMINISTRATIVO","2020-06-13","https://www.contratos.gov.co/consultas/detalleProceso.do?numConstancia=20-4-10843680"]
[224,26900583,"JANETH JIMENEZ PEÑA","2419-2020","TRABAJADORA SOCIAL ","01 de Junio 2020","   30 de Junio de 2020",2500000,2500000,"HONORARIOS",2952,3903,"CARLOS VISBAL JIMENEZ","COORD CENTRO DE SALUD","2020-06-13","https://www.contratos.gov.co/consultas/detalleProceso.do?numConstancia=20-4-10843681"]
[225,1043001061,"JOCELIN PAOLA GOMEZ AGUIRRE ","2420-2020","AUXILIAR DE ENFERMERIA","01 de Junio 2020","   30 de Junio de 2020",1166000,1166000,"REMUNERACION",2953,3904,"BETTY PERTUZ ","SUBGERENTE CIENTIFICO","2020-06-13","https://www.contratos.gov.co/consultas/detalleProceso.do?numConstancia=20-4-10843683"]
[226,72242552,"JUAN CAMILO CASTILLO ARIZA","2421-2020","MEDICO CONSULTA EXTERNA","01 de Junio 2020","   30 de Junio de 2020",4240000,4240000,"HONORARIOS",2954,3905,"CARLOS VISBAL JIMENEZ","COORD CENTRO DE SALUD","2020-06-13","https://www.contratos.gov.co/consultas/detalleProceso.do?numConstancia=20-4-10843684"]
[227,1042443708,"JULIETH ANDREA CAMACHO CHACON","2422-2020","ENFERMERA JEFE- EMERGENCIA COVIC 19","01 de Junio 2020","   30 de Junio de 2020",3810000,3810000,"HONORARIOS",2955,3906,"CARLOS VISBAL JIMENEZ",{"$f":"+N223","v":"COORD CENTRO DE SALUD"},"2020-06-13","https://www.contratos.gov.co/consultas/detalleProceso.do?numConstancia=20-4-10843686"]
[228,1140853943,"LEIDY VANESSA BUSTILLO FORMARIS","2423-2020","ODONTOLOGO","01 de Junio 2020","   30 de Junio de 2020",1900000,1900000,"HONORARIOS",2956,3907,"DIANA MARTINEZ PACHECO","COORD CENTRO DE SALUD","2020-06-13","https://www.contratos.gov.co/consultas/detalleProceso.do?numConstancia=20-4-10843689"]
[229,1143133250,"LUIS EDUARDO NIEBLES SARMIENTO ","2424-2020","AUXILIAR DE FACTURACION CONSULTA EXTERNA ","01 de Junio 2020","   30 de Junio de 2020",1400000,1400000,"REMUNERACION",2957,3908,"SANDRA SANMARTIN","SUBGERENTE ADMINISTRATIVO","2020-06-13","https://www.contratos.gov.co/consultas/detalleProceso.do?numConstancia=20-4-10843691"]
[230,22646602,"MARTHA CECILIA PICO OROZCO","2425-2020","AUXILIAR DE AUTORIZACIONES ","01 de Junio 2020","   30 de Junio de 2020",1653600,1653600,"REMUNERACION",2958,3909,"BETTY PERTUZ ","SUBGERENTE CIENTIFICO","2020-06-13","https://www.contratos.gov.co/consultas/detalleProceso.do?numConstancia=20-4-10843693"]
[231,1042422315,"MAYRA ALEJANDRA GARCIA CASTILLO","2426-2020","FISIOTERAPEUTA ","01 de Junio 2020","   30 de Junio de 2020",1900000,1900000,"HONORARIOS",2959,3910,"CARLOS VISBAL JIMENEZ","COORD CENTRO DE SALUD","2020-06-13","https://www.contratos.gov.co/consultas/detalleProceso.do?numConstancia=20-4-10843694"]
[232,22693871,"MIRIAM VILLAREAL DE ALBA","2427-2020","PERSONAL  LIMPIEZA Y ASEO","01 de Junio 2020","   30 de Junio de 2020",1215000,1215000,"REMUNERACION",2960,3911,"JAIME ALVAREZ NORIEGA","INGENIERO AMBIENTAL ","2020-06-13","https://www.contratos.gov.co/consultas/detalleProceso.do?numConstancia=20-4-10843695"]
[233,32740234,"NIDIA VEGA CORREA","2428-2020","PERSONAL  LIMPIEZA Y ASEO","01 de Junio 2020","   30 de Junio de 2020",1215000,1215000,"REMUNERACION",2961,3912,"JAIME ALVAREZ NORIEGA","INGENIERO AMBIENTAL ","2020-06-13","https://www.contratos.gov.co/consultas/detalleProceso.do?numConstancia=20-4-10843697"]
[234,8683158,"SMELING ORTIZ CHARRIS","2429-2020","ORIENTADOR","01 de Junio 2020","   30 de Junio de 2020",2000000,2000000,"REMUNERACION",2962,3913,"CARLOS VISBAL JIMENEZ","COORD CENTRO DE SALUD","2020-06-13","https://www.contratos.gov.co/consultas/detalleProceso.do?numConstancia=20-4-10843699"]
[235,1045680952,"WILLIAM RAFAEL DAVIDSON URIETA","2430-2020","MEDICO CONSULTA EXTERNA ","01 de Junio 2020","   30 de Junio de 2020",2120000,2120000,"HONORARIOS",2963,3914,"CARLOS VISBAL JIMENEZ","COORD CENTRO DE SALUD","2020-06-13","https://www.contratos.gov.co/consultas/detalleProceso.do?numConstancia=20-4-10843701"]
[236,32769312,"DORIS PADILLA MOLINA ","2431-2020","AUXILIAR DE ODONTOLOGIA","01 de Junio 2020","   30 de Junio de 2020",1166000,1166000,"REMUNERACION",2964,3915,"CARLOS VISBAL JIMENEZ","COORD CENTRO DE SALUD","2020-06-13","https://www.contratos.gov.co/consultas/detalleProceso.do?numConstancia=20-4-10843706"]
[237,1001934574,"CARLOS MARIO HERAS CORCHO","2432-2020","MEDICO CONSULTA EXTERNA- EMERGENCIA COVID19","01 de Junio 2020","   30 de Junio de 2020",5600000,5600000,"HONORARIOS",2965,3916,"CARLOS VISBAL JIMENEZ","COORD CENTRO DE SALUD","2020-06-13","https://www.contratos.gov.co/consultas/detalleProceso.do?numConstancia=20-4-10843708"]
[238,1045674051,"SHIRLY PAOLA GUZMAN GUZMAN ","2436-2020","ODONTOLOGO","01 de Junio 2020","   30 de Junio de 2020",1900000,1900000,"HONORARIOS",2969,3920,"VICTOR MIRANDA","COORD CENTRO DE SALUD","2020-06-13","https://www.contratos.gov.co/consultas/detalleProceso.do?numConstancia=20-4-10843709"]
[239,8777621,"ALEXANDER MIGUEL SALAZAR CABALLERO","2437-2020","AUXILIAR DE FACTURACION URGENCIA","01 de Junio 2020","   30 de Junio de 2020",1680000,1680000,"REMUNERACION",2970,3921,"SANDRA SANMARTIN","SUBGERENTE ADMINISTRATIVO","2020-06-13","https://www.contratos.gov.co/consultas/detalleProceso.do?numConstancia=20-4-10843711"]
[240,32583401,"ELSY LIZETH CHARRIS CONTRERAS","2438-2020","MEDICO CONSULTA EXTERNA ","01 de Junio 2020","   30 de Junio de 2020",2120000,2120000,"HONORARIOS",2971,3922,"VICTOR MIRANDA","COORD CENTRO DE SALUD","2020-06-13","https://www.contratos.gov.co/consultas/detalleProceso.do?numConstancia=20-4-10843713"]
[241,22551160,"GISELL MILENA HERRERA ZUÑIGA","2439-2020","MEDICO CONSULTA EXTERNA ","01 de Junio 2020","   30 de Junio de 2020",2120000,2120000,"HONORARIOS",2972,3923,"NILSA ARIZA MARQUEZ","COORDINADOR PYP","2020-06-13","https://www.contratos.gov.co/consultas/detalleProceso.do?numConstancia=20-4-10843714"]
[242,1143449271,"HELEN YIRE MALDONADO MIRANDA","2440-2020","AUXILIAR DE ODONTOLOGIA","01 de Junio 2020","   30 de Junio de 2020",1166000,1166000,"REMUNERACION",2973,3924,"VICTOR MIRANDA","COORD CENTRO DE SALUD","2020-06-13","https://www.contratos.gov.co/consultas/detalleProceso.do?numConstancia=20-4-10843715"]
[243,1042444832,"JHONNATAN ALFONSO DE LA HOZ BARRIOS","2441-2020","MEDICO CONSULTA EXTERNA ","01 de Junio 2020","   30 de Junio de 2020",4240000,4240000,"HONORARIOS",2974,3925,"VICTOR MIRANDA","COORD CENTRO DE SALUD","2020-06-13","https://www.contratos.gov.co/consultas/detalleProceso.do?numConstancia=20-4-10843717"]
[244,8704073,"JOSE ALFREDO JIMENEZ CASTRO","2442-2020","ORIENTADOR","01 de Junio 2020","   30 de Junio de 2020",1270000,1270000,"REMUNERACION",2975,3926,"VICTOR MIRANDA","COORD CENTRO DE SALUD","2020-06-13","https://www.contratos.gov.co/consultas/detalleProceso.do?numConstancia=20-4-10843718"]
[245,32814077,"JUDITH TORRES CASTILLO","2443-2020","LIDER DE  FACTURACION  EN CENTROS DE SALUD","01 de Junio 2020","   30 de Junio de 2020",1600000,1600000,"HONORARIOS",2976,3927,"VICTOR MIRANDA","COORD CENTRO DE SALUD","2020-06-13","https://www.contratos.gov.co/consultas/detalleProceso.do?numConstancia=20-4-10843720"]
[246,39013975,"MARTHA MARMOL ARIAS","2444-2020","PERSONAL  LIMPIEZA Y ASEO","01 de Junio 2020","   30 de Junio de 2020",1215000,1215000,"REMUNERACION",2977,3928,"JAIME ALVAREZ NORIEGA","INGENIERO AMBIENTAL ","2020-06-13","https://www.contratos.gov.co/consultas/detalleProceso.do?numConstancia=20-4-10843723"]
[247,32742523,"OSIRIS MARIA SAMUDIO ESCOBAR ","2445-2020","ODONTOLOGO","01 de Junio 2020","   30 de Junio de 2020",1900000,1900000,"HONORARIOS",2978,3929,"VICTOR MIRANDA","COORD CENTRO DE SALUD","2020-06-13","https://www.contratos.gov.co/consultas/detalleProceso.do?numConstancia=20-4-10843726"]
[248,1047228049,"MARIA FERNANDA DE LA HOZ DE MOYA","2446-2020","ENFERMERA JEFE CONSULTA EXTERNA ","01 de Junio 2020","   30 de Junio de 2020",2500000,2500000,"HONORARIOS",2979,3930,"VICTOR MIRANDA","COORD CENTRO DE SALUD","2020-06-13","https://www.contratos.gov.co/consultas/detalleProceso.do?numConstancia=20-4-10843729"]
[249,1140895535,"ADRIANA PAOLA GONZALEZ ROMERO ","2447-2020","ENFERMERA JEFE CONSULTA EXTERNA ","01 de Junio 2020","   30 de Junio de 2020",2120000,2120000,"HONORARIOS",2980,3931,"AIX PALACIO","COORD CENTRO DE SALUD","2020-06-13","https://www.contratos.gov.co/consultas/detalleProceso.do?numConstancia=20-4-10843731"]
[250,1139614174,"ALONSO MATEO LLANES ARIZA","2448-2020","MEDICO CONSULTA EXTERNA ","01 de Junio 2020","   30 de Junio de 2020",2120000,2120000,"HONORARIOS",2981,3932,"AIX PALACIO","COORD CENTRO DE SALUD","2020-06-13","https://www.contratos.gov.co/consultas/detalleProceso.do?numConstancia=20-4-10843732"]
[251,7407679,"AMEFI PACHECO CERA","2449-2020","ORIENTADOR","01 de Junio 2020","   30 de Junio de 2020",1270000,1270000,"REMUNERACION",2982,3933,"AIX PALACIO","COORD CENTRO DE SALUD","2020-06-13","https://www.contratos.gov.co/consultas/detalleProceso.do?numConstancia=20-4-10844003"]
[252,60311278,"EVA FLOREZ PARRA ","2450-2020","MEDICO CONSULTA EXTERNA ","01 de Junio 2020","   30 de Junio de 2020",2500000,2500000,"HONORARIOS",2983,3934,"AIX PALACIO","COORD CENTRO DE SALUD","2020-06-13","https://www.contratos.gov.co/consultas/detalleProceso.do?numConstancia=20-4-10844006"]
[253,32608240,"MARIA DE JESUS VELASQUEZ CAPERA","2451-2020","PERSONAL  LIMPIEZA Y ASEO","01 de Junio 2020","   30 de Junio de 2020",1215000,1215000,"REMUNERACION",2984,3935,"JAIME ALVAREZ NORIEGA","INGENIERO AMBIENTAL ","2020-06-13","https://www.contratos.gov.co/consultas/detalleProceso.do?numConstancia=20-4-10844009"]
[254,32828506,"NINOSKA CELESTE BARCELÓ OVIEDO","2452-2020","PSICOLOGA SIAU","01 de Junio 2020","   30 de Junio de 2020",2200000,2200000,"HONORARIOS",2985,3936,"AIX PALACIO","COORD CENTRO DE SALUD","2020-06-13","https://www.contratos.gov.co/consultas/detalleProceso.do?numConstancia=20-4-10844011"]
[255,44152277,"OLGA GARIZABALO PERTUZ","2453-2020","AUXILIAR DE ODONTOLOGIA","01 de Junio 2020","   30 de Junio de 2020",1166000,1166000,"REMUNERACION",2986,3937,"AIX PALACIO","COORD CENTRO DE SALUD","2020-06-13","https://www.contratos.gov.co/consultas/detalleProceso.do?numConstancia=20-4-10844013"]
[256,32878246,"SHIRLY ISABEL RECIO COLLANTE","2454-2020","AUXILIAR DE ENFERMERIA CONSULTA EXTERNA ","01 de Junio 2020","   30 de Junio de 2020",1166000,1166000,"REMUNERACION",2987,3938,"AIX PALACIO","COORD CENTRO DE SALUD","2020-06-13","https://www.contratos.gov.co/consultas/detalleProceso.do?numConstancia=20-4-10844015"]
[257,32866918,"ZULMA LEONOR MARTINEZ IGLESIAS","2455-2020","ODONTOLOGO","01 de Junio 2020","   30 de Junio de 2020",1900000,{"$f":"+H258*1","v":1900000},"HONORARIOS",2988,3939,"AIX PALACIO","COORD CENTRO DE SALUD","2020-06-13","https://www.contratos.gov.co/consultas/detalleProceso.do?numConstancia=20-4-10844020"]
[258,8667553,"JUAN EMILIO SANDOVAL BOLIVAR ","2456-2020","ODONTOLOGO","01 de Junio 2020","   30 de Junio de 2020",1900000,1900000,"HONORARIOS",2989,3940,"AIX PALACIO","COORD CENTRO DE SALUD","2020-06-13","https://www.contratos.gov.co/consultas/detalleProceso.do?numConstancia=20-4-10844023"]
[{"$f":"+A259+1","v":259},22465848,"ADRIANA OROZCO CANTILLO","2457-2020","PERSONAL  LIMPIEZA Y ASEO","01 de Junio 2020","   30 de Junio de 2020",1215000,1215000,"REMUNERACION",2990,3941,"JAIME ALVAREZ NORIEGA","INGENIERO AMBIENTAL ","2020-06-13","https://www.contratos.gov.co/consultas/detalleProceso.do?numConstancia=20-4-10844024"]
[260,22524112,"DIANA SANDOVAL MANGA","2458-2020","ENFERMERA JEFE PROGRAMAS ESPECIALES","01 de Junio 2020","   30 de Junio de 2020",1900000,1900000,"HONORARIOS",2991,3942,"LUIS CARLOS DE LEON BERNIER","COORD CENTRO DE SALUD","2020-06-13","https://www.contratos.gov.co/consultas/detalleProceso.do?numConstancia=20-4-10844028"]
[261,1045747916,"LEIDY DIANA PAEZ OROZCO","2459-2020","ENFERMERA JEFE  CONSULTA EXTERNA ","01 de Junio 2020","   30 de Junio de 2020",1900000,1900000,"HONORARIOS",2992,3943,"LUIS CARLOS DE LEON BERNIER","COORD CENTRO DE SALUD","2020-06-13","https://www.contratos.gov.co/consultas/detalleProceso.do?numConstancia=20-4-10844029"]
[262,1143450666,"YERLIS PAOLA FONTALVO LAMBRAÑO","2460-2020","AUXILIAR DE FACTURACION","01 de Junio 2020","   30 de Junio de 2020",1680000,1680000,"REMUNERACION",2993,3944,"SANDRA SANMARTIN","SUBGERENTE ADMINISTRATIVO","2020-06-13","https://www.contratos.gov.co/consultas/detalleProceso.do?numConstancia=20-4-10844032"]
[263,1143266403,"YUNERIZ PEREZ DE LA HOZ","2461-2020","AUXILIAR DE ENFERMERIA","01 de Junio 2020","   30 de Junio de 2020",1166000,1166000,"REMUNERACION",2994,3945,"LUIS CARLOS DE LEON BERNIER","COORD CENTRO DE SALUD","2020-06-13","https://www.contratos.gov.co/consultas/detalleProceso.do?numConstancia=20-4-10844035"]
[264,64543985,"ALCIRA GOMEZ ARRIETA ","2462-2020"," COORDINADORA PAI ","01 de Junio 2020","   30 de Junio de 2020",4000000,4000000,"HONORARIOS",2995,3946,"NILSA ARIZA MARQUEZ","COORDINADOR PYP","2020-06-13","https://www.contratos.gov.co/consultas/detalleProceso.do?numConstancia=20-4-10844038"]
[265,32869290,"ARGENEDITH YEPEZ ESCALANTE ","2463-2020","MEDICO DE PROMOCIÓN Y MANTENIMIENTO DE LA SALUD","01 de Junio 2020","   30 de Junio de 2020",2120000,2120000,"HONORARIOS",2996,3947,"NILSA ARIZA MARQUEZ","COORDINADOR PYP","2020-06-13","https://www.contratos.gov.co/consultas/detalleProceso.do?numConstancia=20-4-10844041"]
[266,72153271,"BORIS ARROYO ESCOBAR","2464-2020","ORIENTADOR","01 de Junio 2020","   30 de Junio de 2020",1270000,1270000,"REMUNERACION",2997,3948,"LUIS GRANADOS GOMEZ","COORD CENTRO DE SALUD","2020-06-13","https://www.contratos.gov.co/consultas/detalleProceso.do?numConstancia=20-4-10844043"]
[267,1001875491,"CINDY MILENA VARELA ARIAS ","2465-2020","PERSONAL  LIMPIEZA Y ASEO","01 de Junio 2020","   30 de Junio de 2020",1215000,1215000,"REMUNERACION",2998,3949,"JAIME ALVAREZ NORIEGA","INGENIERO AMBIENTAL ","2020-06-13","https://www.contratos.gov.co/consultas/detalleProceso.do?numConstancia=20-4-10844045"]
[268,32896364,"DAILYS CAROLINA PEREZ GUETTE","2466-2020","ODONTOLOGO","01 de Junio 2020","   30 de Junio de 2020",1900000,1900000,"HONORARIOS",2999,3950,"LUIS GRANADOS GOMEZ","COORD CENTRO DE SALUD","2020-06-13","https://www.contratos.gov.co/consultas/detalleProceso.do?numConstancia=20-4-10844047"]
[269,22585192,"DIANA LUZ ACOSTA DEMARES","2467-2020","AUXILIAR ADMINISTRATIVO COORDINACION MEDICA","01 de Junio 2020","   30 de Junio de 2020",1900000,1900000,"REMUNERACION",3000,3951,"LUIS GRANADOS GOMEZ","COORD CENTRO DE SALUD","2020-06-13","https://www.contratos.gov.co/consultas/detalleProceso.do?numConstancia=20-4-10844048"]
[270,32819600,"DOLIS PEDROZO TORRES","2468-2020","PERSONAL  LIMPIEZA Y ASEO","01 de Junio 2020","   30 de Junio de 2020",1215000,1215000,"REMUNERACION",3001,3952,"JAIME ALVAREZ NORIEGA","INGENIERO AMBIENTAL ","2020-06-13","https://www.contratos.gov.co/consultas/detalleProceso.do?numConstancia=20-4-10844049"]
[271,1074712390,"EVELIN CRISTINA ZULETA SANCHEZ ","2469-2020","ENFERMERA JEFE DE PROMOCIÓN Y MANTENIMIENTO DE LA SALUD","01 de Junio 2020","   30 de Junio de 2020",2300000,2300000,"HONORARIOS",3002,3953,"NILSA ARIZA MARQUEZ","COORDINADOR PYP","2020-06-13","https://www.contratos.gov.co/consultas/detalleProceso.do?numConstancia=20-4-10844051"]
[272,8507198,"FRANCISCO PEÑALOZA PEREZ","2470-2020","MEDICO CONSULTA EXTERNA ","01 de Junio 2020","   30 de Junio de 2020",2120000,2120000,"HONORARIOS",3003,3954,"LUIS GRANADOS GOMEZ","COORD CENTRO DE SALUD","2020-06-13","https://www.contratos.gov.co/consultas/detalleProceso.do?numConstancia=20-4-10844054"]
[273,1042448135,"GISELLA CAMILA ACOSTA SEGURA","2471-2020","AUXILIAR SERVICIOS AMIGABLES ","01 de Junio 2020","   30 de Junio de 2020",1500000,1500000,"REMUNERACION",3004,3955,"NILSA ARIZA MARQUEZ","COORDINADOR PYP","2020-06-13","https://www.contratos.gov.co/consultas/detalleProceso.do?numConstancia=20-4-10844055"]
[274,44154490,"HEIDY LUZ CARRILLO DIAZ","2472-2020","AUXILIAR ADMINISTRATIVO  FACTURACIÒN","01 de Junio 2020","   30 de Junio de 2020",1900000,1900000,"REMUNERACION",3005,3956,"LUIS GRANADOS GOMEZ","COORD CENTRO DE SALUD","2020-06-13","https://www.contratos.gov.co/consultas/detalleProceso.do?numConstancia=20-4-10844059"]
[275,8675558,"JESUS ALFREDO MALDONADO MEJIA ","2473-2020","ORIENTADOR","01 de Junio 2020","   30 de Junio de 2020",1270000,1270000,"REMUNERACION",3006,3957,"LUIS GRANADOS GOMEZ","COORD CENTRO DE SALUD","2020-06-13","https://www.contratos.gov.co/consultas/detalleProceso.do?numConstancia=20-4-10844060"]
[276,1042442139,"JOSHIKY ESTHER AHUMADA PACHECO","2474-2020","ENFERMERA JEFE DE PROMOCIÓN Y MANTENIMIENTO DE LA SALUD","01 de Junio 2020","   30 de Junio de 2020",2300000,2300000,"HONORARIOS",3007,3958,"NILSA ARIZA MARQUEZ","COORDINADOR PYP","2020-06-13","https://www.contratos.gov.co/consultas/detalleProceso.do?numConstancia=20-4-10844062"]
[277,32646304,"LILIAN ESTHER ANTEQUERA MANTILLA","2475-2020","AUXILIAR DE ENFERMERIA","01 de Junio 2020","   30 de Junio de 2020",1166000,1166000,"REMUNERACION",3008,3959,"LUIS GRANADOS GOMEZ","COORD CENTRO DE SALUD","2020-06-13","https://www.contratos.gov.co/consultas/detalleProceso.do?numConstancia=20-4-10844066"]
[278,1044432609,"LUPE MAURY SANTIAGO","2476-2020","MEDICO CONSULTA EXTERNA ","01 de Junio 2020","   30 de Junio de 2020",2120000,2120000,"HONORARIOS",3009,3960,"LUIS GRANADOS GOMEZ","COORD CENTRO DE SALUD","2020-06-13","https://www.contratos.gov.co/consultas/detalleProceso.do?numConstancia=20-4-10844069"]
[279,72142837,"MANUEL GUSTAVO PABA GUETE","2477-2020","PSICOLOGO EN PROMOCION Y PREVENCION","01 de Junio 2020","   30 de Junio de 2020",3000000,3000000,"HONORARIOS",3010,3961,"NILSA ARIZA MARQUEZ","COORDINADOR PYP","2020-06-13","https://www.contratos.gov.co/consultas/detalleProceso.do?numConstancia=20-4-10844071"]
[280,1140883085,"MARIA FATIMA HERNANDEZ ORTIZ","2478-2020","AUXILIAR SERVICIOS AMIGABLES ","01 de Junio 2020","   30 de Junio de 2020",1270000,1270000,"REMUNERACION",3011,3962,"NILSA ARIZA MARQUEZ","COORDINADOR PYP","2020-06-13","https://www.contratos.gov.co/consultas/detalleProceso.do?numConstancia=20-4-10844074"]
[281,32695840,"MARIA HERRERA CUADROS","2479-2020","HIGIENISTA ORAL SERVICIOS AMIGABLES","01 de Junio 2020","   30 de Junio de 2020",2332000,2332000,"REMUNERACION",3012,3963,"LUIS GRANADOS GOMEZ","COORD CENTRO DE SALUD","2020-06-13","https://www.contratos.gov.co/consultas/detalleProceso.do?numConstancia=20-4-10844082"]
[282,32819834,"MARIBEL NIEBLES ESCORCIA","2480-2020","AUXILIAR DE ODONTOLOGIA","01 de Junio 2020","   30 de Junio de 2020",1166000,1166000,"REMUNERACION",3013,3964,"LUIS GRANADOS GOMEZ","COORD CENTRO DE SALUD","2020-06-13","https://www.contratos.gov.co/consultas/detalleProceso.do?numConstancia=20-4-10844084"]
[283,1042418352,"MERJORIE CABEZA CASTILLO","2481-2020","AUXILIAR DE ENFERMERIA DE PROMOCIÓN Y MANTENIMIENTO DE LA SALUD","01 de Junio 2020","   30 de Junio de 2020",1166000,1166000,"REMUNERACION",3014,3965,"NILSA ARIZA MARQUEZ","COORDINADOR PYP","2020-06-13","https://www.contratos.gov.co/consultas/detalleProceso.do?numConstancia=20-4-10844086"]
[284,22468835,"MILAGROS GUZMAN FERNANDEZ ","2482-2020","ODONTOLOGO","01 de Junio 2020","   30 de Junio de 2020",1900000,1900000,"HONORARIOS",3015,3966,"LUIS GRANADOS GOMEZ","COORD CENTRO DE SALUD","2020-06-13","https://www.contratos.gov.co/consultas/detalleProceso.do?numConstancia=20-4-10844088"]
[285,22532699,"MILENA SILVA BARRAZA","2483-2020","AUXILIAR DE FACTURACION","01 de Junio 2020","   30 de Junio de 2020",1300000,1300000,"REMUNERACION",3016,3967,"SANDRA SANMARTIN","SUBGERENTE ADMINISTRATIVO","2020-06-13","https://www.contratos.gov.co/consultas/detalleProceso.do?numConstancia=20-4-10844090"]
[286,32822947,"NOHORA ISABEL POLO ORTIZ","2484-2020","TRABAJADORA SOCIAL ","01 de Junio 2020","   30 de Junio de 2020",2200000,2200000,"HONORARIOS",3017,3968,"LUIS GRANADOS GOMEZ","COORD CENTRO DE SALUD","2020-06-13","https://www.contratos.gov.co/consultas/detalleProceso.do?numConstancia=20-4-10844092"]
[287,8770590,"RAFAEL MOVILLA FLOREZ ","2485-2020","LIDER DE  FACTURACION  EN CENTROS DE SALUD","01 de Junio 2020","   30 de Junio de 2020",1600000,1600000,"HONORARIOS",3018,3969,"LUIS GRANADOS GOMEZ","COORD CENTRO DE SALUD","2020-06-13","https://www.contratos.gov.co/consultas/detalleProceso.do?numConstancia=20-4-10844096"]
[288,1140855017,"STEPHANY LORRAINE NIEBLES ZULUAGA ","2486-2020","ENFERMERA JEFE -SERVICIOS AMIGABLES","01 de Junio 2020","   30 de Junio de 2020",2300000,2300000,"HONORARIOS",3019,3970,"NILSA ARIZA MARQUEZ","COORDINADOR PYP","2020-06-13","https://www.contratos.gov.co/consultas/detalleProceso.do?numConstancia=20-4-10844097"]
[289,56087561,"YAMILZA ESTHER MURGAS ORTIZ","2487-2020","AUXILIAR DE ENFERMERIA","01 de Junio 2020","   30 de Junio de 2020",1166000,1166000,"REMUNERACION",3020,3971,"LUIS GRANADOS GOMEZ","COORD CENTRO DE SALUD","2020-06-13","https://www.contratos.gov.co/consultas/detalleProceso.do?numConstancia=20-4-10844100"]
[290,1042440818,"YISELL PAOLA SANDOVAL BARRETO","2488-2020","MEDICO CONSULTA EXTERNA ","01 de Junio 2020","   30 de Junio de 2020",2120000,2120000,"HONORARIOS",3021,3972,"LUIS GRANADOS GOMEZ","COORD CENTRO DE SALUD","2020-06-13","https://www.contratos.gov.co/consultas/detalleProceso.do?numConstancia=20-4-10844102"]
[291,1047338042,"AMINTA PARDO GUZMAN","2490-2020","AUXILIAR DE ENFERMERIA CONSULTA EXTERNA ","01 de Junio 2020","   30 de Junio de 2020",1166000,1166000,"REMUNERACION",3023,3974,"DIANA MARTINEZ PACHECO","COORD CENTRO DE SALUD","2020-06-13","https://www.contratos.gov.co/consultas/detalleProceso.do?numConstancia=20-4-10844106"]
[292,1045688469,"AMY MOVILLA COMAS","2491-2020","ENFERMERA JEFE CONSULTA EXTERNA ","01 de Junio 2020","   30 de Junio de 2020",2300000,2300000,"HONORARIOS",3024,3975,"DIANA MARTINEZ PACHECO","COORD CENTRO DE SALUD","2020-06-13","https://www.contratos.gov.co/consultas/detalleProceso.do?numConstancia=20-4-10844107"]
[293,32866058,"CLAUDIA CABARCAS ARROYO","2492-2020","TRABAJADORA SOCIAL","01 de Junio 2020","   30 de Junio de 2020",2200000,2200000,"HONORARIOS",3025,3976,"DIANA MARTINEZ PACHECO","COORD CENTRO DE SALUD","2020-06-13","https://www.contratos.gov.co/consultas/detalleProceso.do?numConstancia=20-4-10844108"]
[294,1047358567,"JENNIFER PAULA FRUTO MALDONADO ","2494-2020","MEDICO CONSULTA EXTERNA ","01 de Junio 2020","   30 de Junio de 2020",2120000,2120000,"HONORARIOS",3027,3978,"DIANA MARTINEZ PACHECO","COORD CENTRO DE SALUD","2020-06-13","https://www.contratos.gov.co/consultas/detalleProceso.do?numConstancia=20-4-10844109"]
[295,8754502,"JORGE DE LA HOZ DE LA HOZ","2495-2020","ORIENTADOR","01 de Junio 2020","   30 de Junio de 2020",1270000,1270000,"REMUNERACION",3028,3979,"DIANA MARTINEZ PACHECO","COORD CENTRO DE SALUD","2020-06-13","https://www.contratos.gov.co/consultas/detalleProceso.do?numConstancia=20-4-10844110"]
[296,55220183,"KETTY PILAR INSIGNARES MATOS ","2496-2020","PSICOLOGA","01 de Junio 2020","   30 de Junio de 2020",2800000,2800000,"HONORARIOS",3029,3980,"DIANA MARTINEZ PACHECO","COORD CENTRO DE SALUD","2020-06-13","https://www.contratos.gov.co/consultas/detalleProceso.do?numConstancia=20-4-10844111"]
[297,32796648,"LILIANA OROZCO ROJAS ","2497-2020","ODONTOLOGO","01 de Junio 2020","   30 de Junio de 2020",1900000,1900000,"HONORARIOS",3030,3981,"DIANA MARTINEZ PACHECO","COORD CENTRO DE SALUD","2020-06-13","https://www.contratos.gov.co/consultas/detalleProceso.do?numConstancia=20-4-10844112"]
[298,22738424,"LINA MARGARITA TORO GARCIA","2498-2020","MEDICO PROGRAMA CARDIOVASCULAR","01 de Junio 2020","   30 de Junio de 2020",4600000,4600000,"HONORARIOS",3031,3982,"DIANA MARTINEZ PACHECO","COORD CENTRO DE SALUD","2020-06-13","https://www.contratos.gov.co/consultas/detalleProceso.do?numConstancia=20-4-10844113"]
[299,32666054,"LUCY CHING ANAYA ","2499-2020","MEDICO CONSULTA EXTERNA ","01 de Junio 2020","   30 de Junio de 2020",2120000,2120000,"HONORARIOS",3032,3983,"DIANA MARTINEZ PACHECO","COORD CENTRO DE SALUD","2020-06-13","https://www.contratos.gov.co/consultas/detalleProceso.do?numConstancia=20-4-10844116"]
[300,22444561,"LUZ MARINA DONADO BARRIOS ","2500-2020","LIDER DE  FACTURACION  EN CENTROS DE SALUD","01 de Junio 2020","   30 de Junio de 2020",1600000,1600000,"HONORARIOS",3033,3984,"DIANA MARTINEZ PACHECO","COORD CENTRO DE SALUD","2020-06-13","https://www.contratos.gov.co/consultas/detalleProceso.do?numConstancia=20-4-10844120"]
[301,22616462,"MAIDELIN CORCHO CAICEDO","2501-2020","AUXILIAR DE ENFERMERIA","01 de Junio 2020","   30 de Junio de 2020",1166000,1166000,"REMUNERACION",3034,3985,"DIANA MARTINEZ PACHECO","COORD CENTRO DE SALUD","2020-06-13","https://www.contratos.gov.co/consultas/detalleProceso.do?numConstancia=20-4-10844122"]
[302,22694593,"MARLENE JUDITH GARIZABALO PERTUZ","2502-2020","PERSONAL  LIMPIEZA Y ASEO","01 de Junio 2020","   30 de Junio de 2020",1215000,1215000,"REMUNERACION",3035,3986,"JAIME ALVAREZ NORIEGA","INGENIERO AMBIENTAL ","2020-06-13","https://www.contratos.gov.co/consultas/detalleProceso.do?numConstancia=20-4-10844125"]
[303,32896837,"MARYULIS PATRICIA CRUZ JIMENEZ","2503-2020","ENFERMERA JEFE DE PROMOCIÓN Y MANTENIMIENTO DE LA SALUD","01 de Junio 2020","   30 de Junio de 2020",2300000,2300000,"HONORARIOS",3036,3987,"NILSA ARIZA MARQUEZ","COORDINADOR PYP","2020-06-13","https://www.contratos.gov.co/consultas/detalleProceso.do?numConstancia=20-4-10844126"]
[304,55307582,"PAOLA VALENCIA GUERRERO","2504-2020","MEDICO PROGRAMA CARDIOVASCULAR","01 de Junio 2020","   30 de Junio de 2020",2300000,2300000,"HONORARIOS",3037,3988,"DIANA MARTINEZ PACHECO","COORD CENTRO DE SALUD","2020-06-13","https://www.contratos.gov.co/consultas/detalleProceso.do?numConstancia=20-4-10844127"]
[305,22692801,"SUNILDA ESTHER SAURIT ESCORCIA","2505-2020","AUXILIAR DE ENFERMERIA","01 de Junio 2020","   30 de Junio de 2020",1166000,1166000,"REMUNERACION",3038,3989,"NILSA ARIZA MARQUEZ","COORDINADOR PYP","2020-06-13","https://www.contratos.gov.co/consultas/detalleProceso.do?numConstancia=20-4-10844128"]
[306,1007908949,"VERONICA POLET TODARO PEDROZO","2506-2020","MEDICO CONSULTA EXTERNA /APOYO PROGRAMA CARDIOVASCULAR ","01 de Junio 2020","   30 de Junio de 2020",2300000,2300000,"HONORARIOS",3039,3990,"DIANA MARTINEZ PACHECO","COORD CENTRO DE SALUD","2020-06-13","https://www.contratos.gov.co/consultas/detalleProceso.do?numConstancia=20-4-10844130"]
[307,32876060,"YAKELIN BOLAÑO MIRANDA","2507-2020","AUXILIAR DE ODONTOLOGIA","01 de Junio 2020","   30 de Junio de 2020",1166000,1166000,"REMUNERACION",3040,3991,"DIANA MARTINEZ PACHECO","COORD CENTRO DE SALUD","2020-06-13","https://www.contratos.gov.co/consultas/detalleProceso.do?numConstancia=20-4-10844131"]
[308,26694748,"MARTA LIGIA BARRANCO MEZA ","2508-2020","PERSONAL  LIMPIEZA Y ASEO","01 de Junio 2020","   30 de Junio de 2020",1215000,1215000,"REMUNERACION",3041,3992,"JAIME ALVAREZ NORIEGA","INGENIERO AMBIENTAL ","2020-06-13","https://www.contratos.gov.co/consultas/detalleProceso.do?numConstancia=20-4-10844132"]
[309,1045706259,"ANDREA CAROLINA HERRERA ORTEGA","2509-2020","MEDICO CONSULTA EXTERNA ","01 de Junio 2020","   30 de Junio de 2020",2120000,2120000,"HONORARIOS",3042,3993,"YARELIS GUERRA CORREA","COORD CENTRO DE SALUD","2020-06-13","https://www.contratos.gov.co/consultas/detalleProceso.do?numConstancia=20-4-10844135"]
[310,7938572,"BRAYNERD ALVAREZ JIMENEZ ","2510-2020","MEDICO CONSULTA EXTERNA  Y CARDIOVASCULAR","01 de Junio 2020","   30 de Junio de 2020",4600000,4600000,"HONORARIOS",3043,3994,"YARELIS GUERRA CORREA","COORD CENTRO DE SALUD","2020-06-13","https://www.contratos.gov.co/consultas/detalleProceso.do?numConstancia=20-4-10844137"]
[311,1046873154,"CARLOS AUGUSTO ANGULO BANDERA","2511-2020","ORIENTADOR","01 de Junio 2020","   30 de Junio de 2020",1700000,1700000,"REMUNERACION",3044,3995,"YARELIS GUERRA CORREA","COORD CENTRO DE SALUD","2020-06-13","https://www.contratos.gov.co/consultas/detalleProceso.do?numConstancia=20-4-10844141"]
[312,22732766,"ESMIRIS MARIA JIMENEZ GOMEZ","2512-2020","PERSONAL  LIMPIEZA Y ASEO","01 de Junio 2020","   30 de Junio de 2020",1215000,1215000,"REMUNERACION",3045,3996,"JAIME ALVAREZ NORIEGA","INGENIERO AMBIENTAL ","2020-06-13","https://www.contratos.gov.co/consultas/detalleProceso.do?numConstancia=20-4-10844142"]
[313,44159527,"FLORINDA DE LA HOZ PACHECO ","2513-2020","ENFERMERA JEFE DE PROMOCIÓN Y MANTENIMIENTO DE LA SALUD","01 de Junio 2020","   30 de Junio de 2020",2300000,2300000,"HONORARIOS",3046,3997,"NILSA ARIZA MARQUEZ","COORDINADOR PYP","2020-06-13","https://www.contratos.gov.co/consultas/detalleProceso.do?numConstancia=20-4-10844144"]
[314,24341220,"GLADYS OTALVARO BOTERO","2514-2020","AUXILIAR FACTURACION CONSULTA EXTERNA","01 de Junio 2020","   30 de Junio de 2020",1378000,1378000,"REMUNERACION",3047,3998,"SANDRA SANMARTIN","SUBGERENTE ADMINISTRATIVO","2020-06-13","https://www.contratos.gov.co/consultas/detalleProceso.do?numConstancia=20-4-10844146"]
[315,32703101,"JANETH DEL CARMEN GUZMAN CANTILLO","2515-2020","LIDER DE  FACTURACION  EN CENTROS DE SALUD","01 de Junio 2020","   30 de Junio de 2020",1600000,1600000,"HONORARIOS",3048,3999,"YARELIS GUERRA CORREA","COORD CENTRO DE SALUD","2020-06-13","https://www.contratos.gov.co/consultas/detalleProceso.do?numConstancia=20-4-10844147"]
[316,22739758,"LAURA MELENDEZ SALAZAR","2516-2020","ODONTOLOGO","01 de Junio 2020","   30 de Junio de 2020",1900000,1900000,"HONORARIOS",3049,4000,"YARELIS GUERRA CORREA","COORD CENTRO DE SALUD","2020-06-13","https://www.contratos.gov.co/consultas/detalleProceso.do?numConstancia=20-4-10844148"]
[317,32703976,"MARI ENITH PUELLO BELTRAN","2517-2020","AUXILIAR DE ENFERMERIA CONSULTA EXTERNA ","01 de Junio 2020","   30 de Junio de 2020",1166000,1166000,"REMUNERACION",3050,4001,"BETTY PERTUZ ","SUBGERENTE CIENTIFICO","2020-06-13","https://www.contratos.gov.co/consultas/detalleProceso.do?numConstancia=20-4-10844150"]
[318,26762874,"MARYURIS ALTAHONA  MORENO ","2518-2020","MEDICO DE RUTA INTEGRAL MATERNO PERINATAL ","01 de Junio 2020","   30 de Junio de 2020",2544000,2544000,"HONORARIOS",3051,4002,"NILSA ARIZA MARQUEZ","COORDINADOR PYP","2020-06-13","https://www.contratos.gov.co/consultas/detalleProceso.do?numConstancia=20-4-10844151"]
[319,32729889,"MERLY ISABEL BARRAZA TOLEDO","2519-2020","AUXILIAR DE ENFERMERIA CONSULTA EXTERNA ","01 de Junio 2020","   30 de Junio de 2020",1166000,1166000,"REMUNERACION",3052,4003,"YARELIS GUERRA CORREA","COORD CENTRO DE SALUD","2020-06-13","https://www.contratos.gov.co/consultas/detalleProceso.do?numConstancia=20-4-10844152"]
[320,26910232,"NELCY ALMARALES AYALA","2520-2020","TRABAJADORA SOCIAL ","01 de Junio 2020","   30 de Junio de 2020",2200000,{"$f":"+H321*1","v":2200000},"HONORARIOS",3053,4004,"YARELIS GUERRA CORREA","COORD CENTRO DE SALUD","2020-06-13","https://www.contratos.gov.co/consultas/detalleProceso.do?numConstancia=20-4-10844154"]
[321,32664177,"ROSIRIS MONTES REDONDO","2521-2020","AUXILIAR DE ODONTOLOGIA","01 de Junio 2020","   30 de Junio de 2020",1166000,1166000,"REMUNERACION",3054,4005,"YARELIS GUERRA CORREA","COORD CENTRO DE SALUD","2020-06-13","https://www.contratos.gov.co/consultas/detalleProceso.do?numConstancia=20-4-10844155"]
[322,1143456204,"SANDRA MARCELA OVIEDO ROCA","2522-2020","ENFERMERA JEFE ","01 de Junio 2020","   30 de Junio de 2020",2300000,2300000,"HONORARIOS",3055,4006,"YARELIS GUERRA CORREA","COORD CENTRO DE SALUD","2020-06-13","https://www.contratos.gov.co/consultas/detalleProceso.do?numConstancia=20-4-10844158"]
[{"$f":"+A323+1","v":323},1042441044,"SASKIA STEFANIA SOTOMAYOR SOLANO","2523-2020","PERSONAL  LIMPIEZA Y ASEO","01 de Junio 2020","   30 de Junio de 2020",1270000,1270000,"REMUNERACION",3056,4007,"JAIME ALVAREZ NORIEGA","INGENIERO AMBIENTAL ","2020-06-13","https://www.contratos.gov.co/consultas/detalleProceso.do?numConstancia=20-4-10844161"]
[324,22532041,"SORAYA  MARIA BACA RODRIGUEZ","2524-2020","PSICOLOGA","01 de Junio 2020","   30 de Junio de 2020",2800000,2800000,"HONORARIOS",3057,4008,"YARELIS GUERRA CORREA","COORD CENTRO DE SALUD","2020-06-13","https://www.contratos.gov.co/consultas/detalleProceso.do?numConstancia=20-4-10844162"]
[325,8771123,"TEDDY VARGAS MONTERO","2525-2020","ODONTOLOGO","01 de Junio 2020","   30 de Junio de 2020",1900000,1900000,"HONORARIOS",3058,4009,"YARELIS GUERRA CORREA","COORD CENTRO DE SALUD","2020-06-13","https://www.contratos.gov.co/consultas/detalleProceso.do?numConstancia=20-4-10844163"]
[326,72429429,"YAIR BARRAZA CERVANTES ","2526-2020","MEDICO PROGRAMA CARDIOVASCULAR","01 de Junio 2020","   30 de Junio de 2020",2300000,2300000,"HONORARIOS",3059,4010,"YARELIS GUERRA CORREA","COORD CENTRO DE SALUD","2020-06-13","https://www.contratos.gov.co/consultas/detalleProceso.do?numConstancia=20-4-10844165"]
[327,72238499,"CARLOS ANTONIO MATTOS MIRANDA","2527-2020","REFERENCIA Y CONTRAREFERENCIA","01 de Junio 2020","   30 de Junio de 2020",1776000,1776000,"REMUNERACION",3060,4011,"WILFRAN JIMENEZ DE LA PEÑA","COORD CENTRO DE SALUD","2020-06-13","https://www.contratos.gov.co/consultas/detalleProceso.do?numConstancia=20-4-10844167"]
[328,8505956,"ALBERTO NAVARRO MORALES","2528-2020","AUXILIAR DE FACTURACION URGENCIA","01 de Junio 2020","   30 de Junio de 2020",1680000,1680000,"REMUNERACION",3061,4012,"SANDRA SANMARTIN","SUBGERENTE ADMINISTRATIVO","2020-06-13","https://www.contratos.gov.co/consultas/detalleProceso.do?numConstancia=20-4-10844169"]
[329,1045716759,"ALFREDO ANGULO JULIAO","2529-2020","AUXILIAR DE FACTURACION URGENCIA","01 de Junio 2020","   30 de Junio de 2020",1680000,1680000,"REMUNERACION",3062,4013,"SANDRA SANMARTIN","SUBGERENTE ADMINISTRATIVO","2020-06-13","https://www.contratos.gov.co/consultas/detalleProceso.do?numConstancia=20-4-10844170"]
[330,1001821798,"ANGELA JUDITH BARRIOS MEJIA","2530-2020","AUXILIAR DE ENFERMERIA URGENCIAS","01 de Junio 2020","   30 de Junio de 2020",1653600,1653600,"REMUNERACION",3063,4014,"WILFRAN JIMENEZ DE LA PEÑA","COORD CENTRO DE SALUD","2020-06-13","https://www.contratos.gov.co/consultas/detalleProceso.do?numConstancia=20-4-10844171"]
[331,22641629,"ANGELICA CARCAMO ANAYA","2531-2020","AGENTE CALL CENTER","01 de Junio 2020","   30 de Junio de 2020",1378000,1378000,"REMUNERACION",3064,4015,"WILFRAN JIMENEZ DE LA PEÑA","COORD CENTRO DE SALUD","2020-06-13","https://www.contratos.gov.co/consultas/detalleProceso.do?numConstancia=20-4-10844172"]
[332,32780077,"BELKIS  BOSSIO ESCORCIA","2532-2020","MEDICO DE URGENCIA","01 de Junio 2020","   30 de Junio de 2020",3072000,3072000,"HONORARIOS",3065,4016,"WILFRAN JIMENEZ DE LA PEÑA","COORD CENTRO DE SALUD","2020-06-13","https://www.contratos.gov.co/consultas/detalleProceso.do?numConstancia=20-4-10844174"]
[333,32736237,"BETTY ROMERO RODRIGUEZ ","2533-2020","PERSONAL  LIMPIEZA Y ASEO URGENCIA","01 de Junio 2020","   30 de Junio de 2020",1653600,1653600,"REMUNERACION",3066,4017,"JAIME ALVAREZ NORIEGA","INGENIERO AMBIENTAL ","2020-06-13","https://www.contratos.gov.co/consultas/detalleProceso.do?numConstancia=20-4-10844175"]
[334,1042446319,"BRUNYS DEL CARMEN RAMIREZ MUÑOZ","2534-2020","AUXILIAR DE ENFERMERIA PROMOTORA EN SALUD","01 de Junio 2020","   30 de Junio de 2020",1458000,1458000,"REMUNERACION",3067,4018,"NILSA ARIZA MARQUEZ","COORDINADOR PYP","2020-06-13","https://www.contratos.gov.co/consultas/detalleProceso.do?numConstancia=20-4-10844176"]
[335,32618430,"CARMEN ROBLES DE LASCARRO","2535-2020","PERSONAL  LIMPIEZA Y ASEO URGENCIA","01 de Junio 2020","   30 de Junio de 2020",1653600,1653600,"REMUNERACION",3068,4019,"JAIME ALVAREZ NORIEGA","INGENIERO AMBIENTAL ","2020-06-13","https://www.contratos.gov.co/consultas/detalleProceso.do?numConstancia=20-4-10844177"]
[336,1143138226,"CATTERINNE ESTEFANY ESTRADA CARDENAS","2536-2020","AUXILIAR DE FACTURACION URGENCIA","01 de Junio 2020","   30 de Junio de 2020",1680000,1680000,"REMUNERACION",3069,4020,"SANDRA SANMARTIN","SUBGERENTE ADMINISTRATIVO","2020-06-13","https://www.contratos.gov.co/consultas/detalleProceso.do?numConstancia=20-4-10844178"]
[337,1042418998,"CLAUDIA AREVALO CERVANTES","2537-2020","ENFERMERA JEFE DE PROMOCIÓN Y MANTENIMIENTO DE LA SALUD","01 de Junio 2020","   30 de Junio de 2020",2300000,2300000,"HONORARIOS",3070,4021,"NILSA ARIZA MARQUEZ","COORDINADOR PYP","2020-06-13","https://www.contratos.gov.co/consultas/detalleProceso.do?numConstancia=20-4-10844179"]
[338,32749353,"CLAUDIA VALENCIA AGUDELO ","2538-2020","AUXILIAR DE ENFERMERIA DE RUTA INTEGRAL MATERNO PERINATAL","01 de Junio 2020","   30 de Junio de 2020",1399200,1399200,"REMUNERACION",3071,4022,"NILSA ARIZA MARQUEZ","COORDINADOR PYP","2020-06-13","https://www.contratos.gov.co/consultas/detalleProceso.do?numConstancia=20-4-10844181"]
[339,32818534,"CONSUELO MENDOZA CASTRO ","2539-2020","AUXILIAR DE ENFERMERIA DE RUTA INTEGRAL MATERNO PERINATAL","01 de Junio 2020","   30 de Junio de 2020",1166000,1166000,"REMUNERACION",3072,4023,"NILSA ARIZA MARQUEZ","COORDINADOR PYP","2020-06-13","https://www.contratos.gov.co/consultas/detalleProceso.do?numConstancia=20-4-10844182"]
[340,72436677,"DANILO ENRIQUE GRAVINI DE LA HOZ","2540-2020","AUXILIAR DE ENFERMERIA URGENCIAS","01 de Junio 2020","   30 de Junio de 2020",1653600,1653600,"REMUNERACION",3073,4024,"WILFRAN JIMENEZ DE LA PEÑA","COORD CENTRO DE SALUD","2020-06-13","https://www.contratos.gov.co/consultas/detalleProceso.do?numConstancia=20-4-10844183"]
[341,1042436934,"DAYANA PAOLA TORRES SOLANO","2541-2020","MEDICO DE URGENCIA","01 de Junio 2020","   30 de Junio de 2020",4132000,4132000,"HONORARIOS",3074,4025,"WILFRAN JIMENEZ DE LA PEÑA","COORD CENTRO DE SALUD","2020-06-13","https://www.contratos.gov.co/consultas/detalleProceso.do?numConstancia=20-4-10844184"]
[342,1042436213,"DESIRET PAOLA PINTO NARVAEZ","2542-2020","ENFERMERA JEFE URGENCIAS ","01 de Junio 2020","   30 de Junio de 2020",2280000,2280000,"HONORARIOS",3075,4026,"WILFRAN JIMENEZ DE LA PEÑA","COORD CENTRO DE SALUD","2020-06-13","https://www.contratos.gov.co/consultas/detalleProceso.do?numConstancia=20-4-10844185"]
[343,1042420928,"DINA DEL CARMEN  CUELLO DONADO","2543-2020","AUXILIAR DE FACTURACION URGENCIA","01 de Junio 2020","   30 de Junio de 2020",1680000,1680000,"REMUNERACION",3076,4027,"WILFRAN JIMENEZ DE LA PEÑA","COORD CENTRO DE SALUD","2020-06-13","https://www.contratos.gov.co/consultas/detalleProceso.do?numConstancia=20-4-10844187"]
[344,72432974,"EDER JOSE CASTRO PINTO","2544-2020","ORIENTADOR","01 de Junio 2020","   30 de Junio de 2020",1524000,1524000,"REMUNERACION",3077,4028,"WILFRAN JIMENEZ DE LA PEÑA","LA CENTRAL","2020-06-13","https://www.contratos.gov.co/consultas/detalleProceso.do?numConstancia=20-4-10844189"]
[345,8735248,"EDGAR CERVANTES MELGAREJO","2545-2020","MEDICO DE PROMOCIÓN Y MANTENIMIENTO DE LA SALUD","01 de Junio 2020","   30 de Junio de 2020",2120000,2120000,"HONORARIOS",3078,4029,"NILSA ARIZA MARQUEZ","COORDINADOR PYP","2020-06-13","https://www.contratos.gov.co/consultas/detalleProceso.do?numConstancia=20-4-10844192"]
[346,72181563,"EDGARDO THORNE GLENN","2546-2020","ODONTOLOGO","01 de Junio 2020","   30 de Junio de 2020",1900000,1900000,"HONORARIOS",3079,4030,"WILFRAN JIMENEZ DE LA PEÑA","COORD CENTRO DE SALUD","2020-06-13","https://www.contratos.gov.co/consultas/detalleProceso.do?numConstancia=20-4-10844193"]
[347,78302933,"EDIE JAIR GIL","2547-2020","TECNOLOGO EN RADIOLOGIA","01 de Junio 2020","   30 de Junio de 2020",1800000,1800000,"REMUNERACION",3080,4031,"WILFRAN JIMENEZ DE LA PEÑA","COORD CENTRO DE SALUD","2020-06-13","https://www.contratos.gov.co/consultas/detalleProceso.do?numConstancia=20-4-10844195"]
[348,1045675420,"EIBANIA MOLINA VENERA","2548-2020","AUXILIAR DE ENFERMERIA URGENCIAS","01 de Junio 2020","   30 de Junio de 2020",1653600,1653600,"REMUNERACION",3081,4032,"WILFRAN JIMENEZ DE LA PEÑA","COORD CENTRO DE SALUD","2020-06-13","https://www.contratos.gov.co/consultas/detalleProceso.do?numConstancia=20-4-10844198"]
[349,22570149,"ELENA BAENA PEÑA","2549-2020","AUXILIAR DE FACTURACION URGENCIA","01 de Junio 2020","   30 de Junio de 2020",1680000,1680000,"REMUNERACION",3082,4033,"SANDRA SANMARTIN","SUBGERENTE ADMINISTRATIVO","2020-06-13","https://www.contratos.gov.co/consultas/detalleProceso.do?numConstancia=20-4-10844205"]
[350,32871139,"ELLA VIZCAINO SENIOR","2550-2020","ENFERMERA JEFE DE RUTA INTEGRAL MATERNO PERINATAL","01 de Junio 2020","   30 de Junio de 2020",2760000,2760000,"HONORARIOS",3083,4034,"NILSA ARIZA MARQUEZ","COORDINADOR PYP","2020-06-13","https://www.contratos.gov.co/consultas/detalleProceso.do?numConstancia=20-4-10844206"]
[351,1143147791,"ERNESTO JUNIOR ROJANO MEZA","2551-2020","TECNOLOGO EN RADIOLOGIA","01 de Junio 2020","   30 de Junio de 2020",1800000,1800000,"REMUNERACION",3084,4035,"WILFRAN JIMENEZ DE LA PEÑA","COORD CENTRO DE SALUD","2020-06-13","https://www.contratos.gov.co/consultas/detalleProceso.do?numConstancia=20-4-10844208"]
[352,44157204,"ESTHER CECILIA SOLANO BARROS","2552-2020","MEDICO DE URGENCIA","01 de Junio 2020","   30 de Junio de 2020",3072000,3072000,"HONORARIOS",3085,4036,"WILFRAN JIMENEZ DE LA PEÑA","COORD CENTRO DE SALUD","2020-06-13","https://www.contratos.gov.co/consultas/detalleProceso.do?numConstancia=20-4-10844210"]
[353,8705578,"FERMIN NAVARRO STEFANELL","2553-2020","MEDICO GINECOLOGO DE RUTA INTEGRAL MATERNO PERINATAL","01 de Junio 2020","   30 de Junio de 2020",7500000,7500000,"HONORARIOS",3086,4037,"NILSA ARIZA MARQUEZ","COORDINADOR PYP","2020-06-13","https://www.contratos.gov.co/consultas/detalleProceso.do?numConstancia=20-4-10844211"]
[354,55305321,"GELMIS SARAY MARTINEZ DIPPE","2554-2020","AGENTE CALL CENTER","01 de Junio 2020","   30 de Junio de 2020",1378000,1378000,"REMUNERACION",3087,4038,"WILFRAN JIMENEZ DE LA PEÑA","COORD CENTRO DE SALUD","2020-06-13","https://www.contratos.gov.co/consultas/detalleProceso.do?numConstancia=20-4-10844212"]
[355,32756610,"GENNY GUZMAN NAVARRO","2555-2020","MEDICO DE URGENCIA","01 de Junio 2020","   30 de Junio de 2020",3072000,3072000,"HONORARIOS",3088,4039,"WILFRAN JIMENEZ DE LA PEÑA","COORD CENTRO DE SALUD","2020-06-13","https://www.contratos.gov.co/consultas/detalleProceso.do?numConstancia=20-4-10844214"]
[356,32825276,"GIOVANNA  ESTHER AFRICANO NAVARRO","2556-2020","NUTRICIONISTA","01 de Junio 2020","   30 de Junio de 2020",2760000,2760000,"HONORARIOS",3089,4040,"WILFRAN JIMENEZ DE LA PEÑA","COORD CENTRO DE SALUD","2020-06-13","https://www.contratos.gov.co/consultas/detalleProceso.do?numConstancia=20-4-10844215"]
[357,30568187,"HAIDE MEJIA PRADO","2557-2020","PERSONAL  LIMPIEZA Y ASEO URGENCIA","01 de Junio 2020","   30 de Junio de 2020",1653600,1653600,"REMUNERACION",3090,4041,"JAIME ALVAREZ NORIEGA","INGENIERO AMBIENTAL ","2020-06-13","https://www.contratos.gov.co/consultas/detalleProceso.do?numConstancia=20-4-10844216"]
[358,33005079,"IDALMIS NAVARRO ARROYO","2558-2020","PERSONAL  LIMPIEZA Y ASEO URGENCIA","01 de Junio 2020","   30 de Junio de 2020",1653600,1653600,"REMUNERACION",3091,4042,"JAIME ALVAREZ NORIEGA","INGENIERO AMBIENTAL ","2020-06-13","https://www.contratos.gov.co/consultas/detalleProceso.do?numConstancia=20-4-10844217"]
[359,72428579,"IVAN ANDRES DOMINGUEZ SAGBINI","2559-2020","MEDICO GINECOLOGO DE RUTA INTEGRAL MATERNO PERINATAL","01 de Junio 2020","   30 de Junio de 2020",7500000,7500000,"HONORARIOS",3092,4043,"NILSA ARIZA MARQUEZ","COORDINADOR PYP","2020-06-13","https://www.contratos.gov.co/consultas/detalleProceso.do?numConstancia=20-4-10844218"]
[360,72072808,"JARID BERDUGO COBO ","2560-2020","REFERENCIA Y CONTRAREFERENCIA","01 de Junio 2020","   30 de Junio de 2020",1776000,1776000,"REMUNERACION",3093,4044,"WILFRAN JIMENEZ DE LA PEÑA","COORD CENTRO DE SALUD","2020-06-13","https://www.contratos.gov.co/consultas/detalleProceso.do?numConstancia=20-4-10844220"]
[361,1143453456,"JEAN DAVID MONTALVO ZULETA","2561-2020","AGENTE CALL CENTER","01 de Junio 2020","   30 de Junio de 2020",1378000,1378000,"REMUNERACION",3094,4045,"WILFRAN JIMENEZ DE LA PEÑA","COORD CENTRO DE SALUD","2020-06-13","https://www.contratos.gov.co/consultas/detalleProceso.do?numConstancia=20-4-10844221"]
[362,8740611,"JESUS RECUERO LAMADRID","2562-2020","ORIENTADOR","01 de Junio 2020","   30 de Junio de 2020",1524000,1524000,"REMUNERACION",3095,4046,"WILFRAN JIMENEZ DE LA PEÑA","COORD CENTRO DE SALUD","2020-06-13","https://www.contratos.gov.co/consultas/detalleProceso.do?numConstancia=20-4-10844222"]
[363,1045706679,"JONATHAN ACOSTA MORENO","2563-2020","MEDICO DE URGENCIA","01 de Junio 2020","   30 de Junio de 2020",3072000,3072000,"HONORARIOS",3096,4047,"WILFRAN JIMENEZ DE LA PEÑA","COORD CENTRO DE SALUD","2020-06-13","https://www.contratos.gov.co/consultas/detalleProceso.do?numConstancia=20-4-10844223"]
[364,8532785,"JOSE GUERRERO ORTIZ","2564-2020","AGENTE CALL CENTER","01 de Junio 2020","   30 de Junio de 2020",1378000,1378000,"REMUNERACION",3097,4048,"WILFRAN JIMENEZ DE LA PEÑA","COORD CENTRO DE SALUD","2020-06-13","https://www.contratos.gov.co/consultas/detalleProceso.do?numConstancia=20-4-10844225"]
[365,26853643,"JUDITH CHARRIS MACHADO ","2565-2020","ENFERMERA JEFE URGENCIAS ","01 de Junio 2020","   30 de Junio de 2020",2280000,2280000,"HONORARIOS",3098,4049,"WILFRAN JIMENEZ DE LA PEÑA","COORD CENTRO DE SALUD","2020-06-13","https://www.contratos.gov.co/consultas/detalleProceso.do?numConstancia=20-4-10844226"]
[366,32712489,"JULIA ESTELLA RIVERA TREJOS","2566-2020","MEDICO DE URGENCIA","01 de Junio 2020","   30 de Junio de 2020",3072000,3072000,"HONORARIOS",3099,4050,"WILFRAN JIMENEZ DE LA PEÑA","COORD CENTRO DE SALUD","2020-06-13","https://www.contratos.gov.co/consultas/detalleProceso.do?numConstancia=20-4-10844228"]
[367,1129513283,"KARINE MILENA LEONES MARQUEZ","2567-2020","AUXILIAR DE FARMACIA ","01 de Junio 2020","   30 de Junio de 2020",1524000,1524000,"REMUNERACION",3100,4051,"BETTY PERTUZ ","SUBGERENTE CIENTIFICO","2020-06-13","https://www.contratos.gov.co/consultas/detalleProceso.do?numConstancia=20-4-10844231"]
[368,1083433669,"KARLA MARIA SUAREZ MUÑOZ","2568-2020","AUXILIAR DE ENFERMERIA URGENCIAS","01 de Junio 2020","   30 de Junio de 2020",1653600,1653600,"REMUNERACION",3101,4052,"WILFRAN JIMENEZ DE LA PEÑA","COORD CENTRO DE SALUD","2020-06-13","https://www.contratos.gov.co/consultas/detalleProceso.do?numConstancia=20-4-10844233"]
[369,32894662,"KATTY MACIAS PONTON ","2569-2020","MEDICO DE URGENCIA","01 de Junio 2020","   30 de Junio de 2020",3072000,3072000,"HONORARIOS",3102,4053,"WILFRAN JIMENEZ DE LA PEÑA","COORD CENTRO DE SALUD","2020-06-13","https://www.contratos.gov.co/consultas/detalleProceso.do?numConstancia=20-4-10844234"]
[370,22642874,"KELLYS JOHANA URUETA SUAREZ","2570-2020","PERSONAL  LIMPIEZA Y ASEO URGENCIA","01 de Junio 2020","   30 de Junio de 2020",1653600,1653600,"REMUNERACION",3103,4054,"JAIME ALVAREZ NORIEGA","INGENIERO AMBIENTAL ","2020-06-13","https://www.contratos.gov.co/consultas/detalleProceso.do?numConstancia=20-4-10844235"]
[371,1129581013,"KERLY JHOVELIS PITRE MORENO","2571-2020","ENFERMERA JEFE DE PROMOCIÓN Y MANTENIMIENTO DE LA SALUD","01 de Junio 2020","   30 de Junio de 2020",2300000,2300000,"HONORARIOS",3104,4055,"NILSA ARIZA MARQUEZ","COORDINADOR PYP","2020-06-13","https://www.contratos.gov.co/consultas/detalleProceso.do?numConstancia=20-4-10844238"]
[372,32879736,"LEISYS MARIA CASTRO OLARTE","2572-2020","AUXILIAR DE FACTURACION URGENCIA","01 de Junio 2020","   30 de Junio de 2020",1680000,1680000,"REMUNERACION",3105,4056,"SANDRA SANMARTIN","SUBGERENTE ADMINISTRATIVO","2020-06-13","https://www.contratos.gov.co/consultas/detalleProceso.do?numConstancia=20-4-10844240"]
[373,1002157167,"LEODALIZ SALGADO GUERRERO","2573-2020","AGENTE CALL CENTER","01 de Junio 2020","   30 de Junio de 2020",1400000,1400000,"REMUNERACION",3106,4057,"WILFRAN JIMENEZ DE LA PEÑA","COORD CENTRO DE SALUD","2020-06-13","https://www.contratos.gov.co/consultas/detalleProceso.do?numConstancia=20-4-10844241"]
[374,42205053,"LIBIA ELENA BELEÑO MENDOZA","2574-2020","TRABAJADORA SOCIAL","01 de Junio 2020","   30 de Junio de 2020",2760000,2760000,"HONORARIOS",3107,4058,"WILFRAN JIMENEZ DE LA PEÑA","COORD CENTRO DE SALUD","2020-06-13","https://www.contratos.gov.co/consultas/detalleProceso.do?numConstancia=20-4-10844243"]
[375,32772357,"LIDYS ESTHER REALES CASTRO ","2575-2020","AUXILIAR DE ENFERMERIA URGENCIAS","01 de Junio 2020","   30 de Junio de 2020",1653600,1653600,"REMUNERACION",3108,4059,"WILFRAN JIMENEZ DE LA PEÑA","COORD CENTRO DE SALUD","2020-06-13","https://www.contratos.gov.co/consultas/detalleProceso.do?numConstancia=20-4-10844300"]
[376,1042453991,"LILIANA JUDITH MORENO GUTIERREZ","2576-2020","AGENTE CALL CENTER","01 de Junio 2020","   30 de Junio de 2020",1378000,1378000,"REMUNERACION",3109,4060,"WILFRAN JIMENEZ DE LA PEÑA","COORD CENTRO DE SALUD","2020-06-13","https://www.contratos.gov.co/consultas/detalleProceso.do?numConstancia=20-4-10844302"]
[377,1042436897,"LIZETH PATRICIA BLANQUICETT FERRER","2577-2020","AGENTE CALL CENTER","01 de Junio 2020","   30 de Junio de 2020",1378000,1378000,"REMUNERACION",3110,4061,"WILFRAN JIMENEZ DE LA PEÑA","COORD CENTRO DE SALUD","2020-06-13","https://www.contratos.gov.co/consultas/detalleProceso.do?numConstancia=20-4-10844303"]
[378,32761353,"LORENZA BARRIOS ESTRADA","2578-2020","AUXILIAR DE ENFERMERIA URGENCIAS","01 de Junio 2020","   30 de Junio de 2020",1653600,1653600,"REMUNERACION",3111,4062,"WILFRAN JIMENEZ DE LA PEÑA","COORD CENTRO DE SALUD","2020-06-13","https://www.contratos.gov.co/consultas/detalleProceso.do?numConstancia=20-4-10844306"]
[379,72346265,"LUIS VASQUEZ BALLESTAS","2579-2020","LIDER DE  FACTURACION  EN CENTROS DE SALUD","01 de Junio 2020","   30 de Junio de 2020",2160000,2160000,"HONORARIOS",3112,4063,"WILFRAN JIMENEZ DE LA PEÑA","COORD CENTRO DE SALUD","2020-06-13","https://www.contratos.gov.co/consultas/detalleProceso.do?numConstancia=20-4-10844307"]
[380,51977895,"LUZ HELENA MORALES MARTINEZ","2580-2020","AUXILIAR DE ARCHIVO ","01 de Junio 2020","   30 de Junio de 2020",1800000,1800000,"REMUNERACION",3113,4064,"SANDRA SANMARTIN","SUBGERENTE ADMINISTRATIVO","2020-06-13","https://www.contratos.gov.co/consultas/detalleProceso.do?numConstancia=20-4-10844308"]
[381,32623541,"MAGALYS ESPITIA RAMOS","2581-2020","PERSONAL  LIMPIEZA Y ASEO URGENCIA","01 de Junio 2020","   30 de Junio de 2020",1653600,1653600,"REMUNERACION",3114,4065,"JAIME ALVAREZ NORIEGA","INGENIERO AMBIENTAL ","2020-06-13","https://www.contratos.gov.co/consultas/detalleProceso.do?numConstancia=20-4-10844309"]
[382,1042447096,"MARBELYS AHELL RANGEL MERCADO ","2582-2020","AGENTE CALL CENTER","01 de Junio 2020","   30 de Junio de 2020",1378000,1378000,"REMUNERACION",3115,4066,"WILFRAN JIMENEZ DE LA PEÑA","COORD CENTRO DE SALUD","2020-06-13","https://www.contratos.gov.co/consultas/detalleProceso.do?numConstancia=20-4-10844310"]
[383,22605801,"MARCELA PATRICIA TORRES CARROLL","2583-2020","AUXILIAR DE FACTURACION URGENCIA","01 de Junio 2020","   30 de Junio de 2020",1680000,1680000,"REMUNERACION",3116,4067,"SANDRA SANMARTIN","SUBGERENTE ADMINISTRATIVO","2020-06-13","https://www.contratos.gov.co/consultas/detalleProceso.do?numConstancia=20-4-10844312"]
[384,1047341586,"MARIA GUADALUPE MUÑOZ MORALES","2584-2020","ODONTOLOGO","01 de Junio 2020","   30 de Junio de 2020",1900000,{"$f":"+H385*1","v":1900000},"HONORARIOS",3117,4068,"WILFRAN JIMENEZ DE LA PEÑA","COORD CENTRO DE SALUD","2020-06-13","https://www.contratos.gov.co/consultas/detalleProceso.do?numConstancia=20-4-10844314"]
[385,32668810,"MARIA ISABEL ALVARADO LOBOS","2585-2020","ASISTENTE COORDINACIÓN MÉDICA","01 de Junio 2020","   30 de Junio de 2020",2400000,2400000,"REMUNERACION",3118,4069,"WILFRAN JIMENEZ DE LA PEÑA","COORD CENTRO DE SALUD","2020-06-13","https://www.contratos.gov.co/consultas/detalleProceso.do?numConstancia=20-4-10844317"]
[386,72043527,"MARIANO DE JESUS BARRIOS ELLES ","2586-2020","COORDINADOR CALL CENTER","01 de Junio 2020","   30 de Junio de 2020",3000000,3000000,"HONORARIOS",3119,4070,"BETTY PERTUZ ","SUBGERENTE CIENTIFICO","2020-06-13","https://www.contratos.gov.co/consultas/detalleProceso.do?numConstancia=20-4-10844318"]
[{"$f":"+A387+1","v":387},1140867598,"MARLA HERRERA MERIÑO","2587-2020","AUXILIAR DE ENFERMERIA URGENCIAS","01 de Junio 2020","   30 de Junio de 2020",1653600,1653600,"REMUNERACION",3120,4071,"WILFRAN JIMENEZ DE LA PEÑA","COORD CENTRO DE SALUD","2020-06-13","https://www.contratos.gov.co/consultas/detalleProceso.do?numConstancia=20-4-10844320"]
[388,55227166,"MARYI PEREZ CASSIANI","2588-2020","ENFERMERA JEFE URGENCIAS ","01 de Junio 2020","   30 de Junio de 2020",2280000,2280000,"HONORARIOS",3121,4072,"WILFRAN JIMENEZ DE LA PEÑA","COORD CENTRO DE SALUD","2020-06-13","https://www.contratos.gov.co/consultas/detalleProceso.do?numConstancia=20-4-10844321"]
[389,32769980,"MARYORIS POLO HERRERA","2589-2020","AUXILIAR DE ENFERMERIA URGENCIAS","01 de Junio 2020","   30 de Junio de 2020",1653600,1653600,"REMUNERACION",3122,4073,"WILFRAN JIMENEZ DE LA PEÑA","COORD CENTRO DE SALUD","2020-06-13","https://www.contratos.gov.co/consultas/detalleProceso.do?numConstancia=20-4-10844322"]
[390,32787314,"MILENA HERRERA BENAVIDES","2590-2020","AUXILIAR DE ENFERMERIA MATERNIDAD SEGURA ","01 de Junio 2020","   30 de Junio de 2020",1399200,1399200,"REMUNERACION",3123,4074,"WILFRAN JIMENEZ DE LA PEÑA","COORD CENTRO DE SALUD","2020-06-13","https://www.contratos.gov.co/consultas/detalleProceso.do?numConstancia=20-4-10844324"]
[391,1045689538,"MILLER TEDYS MEDRANO CASTRO","2591-2020","TECNOLOGO EN RADIOLOGIA","01 de Junio 2020","   30 de Junio de 2020",1800000,1800000,"REMUNERACION",3124,4075,"WILFRAN JIMENEZ DE LA PEÑA","COORD CENTRO DE SALUD","2020-06-13","https://www.contratos.gov.co/consultas/detalleProceso.do?numConstancia=20-4-10844325"]
[392,32814938,"MOIRA SANDOVAL PEDRAZA","2592-2020","AUXILIAR DE ENFERMERIA PROMOTORA EN SALUD","01 de Junio 2020","   30 de Junio de 2020",1458000,1458000,"REMUNERACION",3125,4076,"NILSA ARIZA MARQUEZ","COORDINADOR PYP","2020-06-13","https://www.contratos.gov.co/consultas/detalleProceso.do?numConstancia=20-4-10844326"]
[393,22443679,"MONICA PEREZ RODRIGUEZ ","2593-2020","FISIOTERAPEUTA ","01 de Junio 2020","   30 de Junio de 2020",2700000,2700000,"HONORARIOS",3126,4077,"WILFRAN JIMENEZ DE LA PEÑA","COORD CENTRO DE SALUD","2020-06-13","https://www.contratos.gov.co/consultas/detalleProceso.do?numConstancia=20-4-10844328"]
[394,32756032,"MONICA RAMIREZ CORREAL","2594-2020","AUXILIAR DE ENFERMERIA URGENCIAS","01 de Junio 2020","   30 de Junio de 2020",1653600,1653600,"REMUNERACION",3127,4078,"WILFRAN JIMENEZ DE LA PEÑA","COORD CENTRO DE SALUD","2020-06-13","https://www.contratos.gov.co/consultas/detalleProceso.do?numConstancia=20-4-10844330"]
[395,1140877960,"NICAULIS RODRIGUEZ GOMEZ","2595-2020","AUXILIAR DE FACTURACION URGENCIA","01 de Junio 2020","   30 de Junio de 2020",1680000,1680000,"REMUNERACION",3128,4079,"SANDRA SANMARTIN","SUBGERENTE ADMINISTRATIVO","2020-06-13","https://www.contratos.gov.co/consultas/detalleProceso.do?numConstancia=20-4-10844331"]
[396,32637709,"NIDIA ELENA ORTEGA CARO","2596-2020","TRABAJADORA SOCIAL","01 de Junio 2020","   30 de Junio de 2020",2640000,2640000,"HONORARIOS",3129,4080,"WILFRAN JIMENEZ DE LA PEÑA","COORD CENTRO DE SALUD","2020-06-13","https://www.contratos.gov.co/consultas/detalleProceso.do?numConstancia=20-4-10844332"]
[397,1048267612,"OLGA DE AVILA ARRIETA","2597-2020","MEDICO DE RUTA INTEGRAL MATERNO PERINATAL ","01 de Junio 2020","   30 de Junio de 2020",5088000,5088000,"HONORARIOS",3130,4081,"NILSA ARIZA MARQUEZ","COORDINADOR PYP","2020-06-13","https://www.contratos.gov.co/consultas/detalleProceso.do?numConstancia=20-4-10844334"]
[398,32693760,"OMAIRA PLATA VESGA ","2598-2020","ODONTOLOGO","01 de Junio 2020","   30 de Junio de 2020",1900000,1900000,"HONORARIOS",3131,4082,"WILFRAN JIMENEZ DE LA PEÑA","COORD CENTRO DE SALUD","2020-06-13","https://www.contratos.gov.co/consultas/detalleProceso.do?numConstancia=20-4-10844335"]
[399,1081799915,"PAULA ANDREA PIMIENTA ANDRADES","2599-2020","AUXILIAR DE ENFERMERIA URGENCIAS","01 de Junio 2020","   30 de Junio de 2020",1653600,1653600,"REMUNERACION",3132,4083,"WILFRAN JIMENEZ DE LA PEÑA","COORD CENTRO DE SALUD","2020-06-13","https://www.contratos.gov.co/consultas/detalleProceso.do?numConstancia=20-4-10844336"]
[400,72231273,"PEDRO RAFAEL PEREZ HERNANDEZ","2600-2020","AGENTE CALL CENTER","01 de Junio 2020","   30 de Junio de 2020",1378000,1378000,"REMUNERACION",3133,4084,"WILFRAN JIMENEZ DE LA PEÑA","COORD CENTRO DE SALUD","2020-06-13","https://www.contratos.gov.co/consultas/detalleProceso.do?numConstancia=20-4-10844339"]
[401,15074329,"RAFAEL ANTONIO RICO","2601-2020","ORIENTADOR","01 de Junio 2020","   30 de Junio de 2020",1524000,1524000,"REMUNERACION",3134,4085,"WILFRAN JIMENEZ DE LA PEÑA","COORD CENTRO DE SALUD","2020-06-13","https://www.contratos.gov.co/consultas/detalleProceso.do?numConstancia=20-4-10844340"]
[402,9191876,"RAFAEL MOLINA CASTILLO","2602-2020","AUXILIAR DE FACTURACION URGENCIA","01 de Junio 2020","   30 de Junio de 2020",1680000,1680000,"REMUNERACION",3135,4086,"SANDRA SANMARTIN","SUBGERENTE ADMINISTRATIVO","2020-06-13","https://www.contratos.gov.co/consultas/detalleProceso.do?numConstancia=20-4-10844341"]
[403,72147873,"RAMIRO ANTONIO SALAS LARA ","2603-2020","REGENTE DE FARMACIA ","01 de Junio 2020","   30 de Junio de 2020",2280000,2280000,"REMUNERACION",3136,4087,"BETTY PERTUZ ","SUBGERENTE CIENTIFICO","2020-06-13","https://www.contratos.gov.co/consultas/detalleProceso.do?numConstancia=20-4-10844342"]
[404,32613493,"ROSA ESCOBAR FANDIÑO","2604-2020","AUXILIAR DE ENFERMERIA URGENCIAS","01 de Junio 2020","   30 de Junio de 2020",1653600,1653600,"REMUNERACION",3137,4088,"WILFRAN JIMENEZ DE LA PEÑA","COORD CENTRO DE SALUD","2020-06-13","https://www.contratos.gov.co/consultas/detalleProceso.do?numConstancia=20-4-10844344"]
[405,1042435408,"SANDY PATRICIA BRUJES GUERRERO","2605-2020","AGENTE CALL CENTER","01 de Junio 2020","   30 de Junio de 2020",1378000,1378000,"REMUNERACION",3138,4089,"WILFRAN JIMENEZ DE LA PEÑA","COORD CENTRO DE SALUD","2020-06-13","https://www.contratos.gov.co/consultas/detalleProceso.do?numConstancia=20-4-10844345"]
[406,1045724863,"SERGIO ANDRES SALAS SALAS  ","2606-2020","MEDICO DE URGENCIA","01 de Junio 2020","   30 de Junio de 2020",3072000,3072000,"HONORARIOS",3139,4090,"WILFRAN JIMENEZ DE LA PEÑA","COORD CENTRO DE SALUD","2020-06-13","https://www.contratos.gov.co/consultas/detalleProceso.do?numConstancia=20-4-10844346"]
[407,1129577912,"SOLANGI PAOLA FONTALVO JIMENEZ","2607-2020","AGENTE CALL CENTER","01 de Junio 2020","   30 de Junio de 2020",1378000,1378000,"REMUNERACION",3140,4091,"WILFRAN JIMENEZ DE LA PEÑA","COORD CENTRO DE SALUD","2020-06-13","https://www.contratos.gov.co/consultas/detalleProceso.do?numConstancia=20-4-10844347"]
[408,1143143512,"TAIDETH ALEXANDRA BRACHO DAVILA","2608-2020","AUXILIAR DE ENFERMERIA URGENCIAS","01 de Junio 2020","   30 de Junio de 2020",1653600,1653600,"REMUNERACION",3141,4092,"WILFRAN JIMENEZ DE LA PEÑA","COORD CENTRO DE SALUD","2020-06-13","https://www.contratos.gov.co/consultas/detalleProceso.do?numConstancia=20-4-10844348"]
[409,1042447004,"TATIANA MARGARITA NIEBLES PADILLA","2609-2020","MEDICO DE URGENCIA","01 de Junio 2020","15 de  Junio de 2020",{"$f":"3072000/30*15","v":1536000},1536000,"HONORARIOS",3142,4093,"WILFRAN JIMENEZ DE LA PEÑA","COORD CENTRO DE SALUD","2020-06-13","https://www.contratos.gov.co/consultas/detalleProceso.do?numConstancia=20-4-10844349"]
[410,1045692313,"VANESSA CASSIANI PEREZ","2610-2020","RESOLUCION 0273","01 de Junio 2020","   30 de Junio de 2020",1653000,1653000,"REMUNERACION",3143,4094,"NILSA ARIZA MARQUEZ","COORDINADOR PYP","2020-06-13","https://www.contratos.gov.co/consultas/detalleProceso.do?numConstancia=20-4-10844351"]
[411,52703063,"XIOMARA  BELLO ORTEGA","2611-2020","AUXILIAR DE ENFERMERIA URGENCIAS","01 de Junio 2020","   30 de Junio de 2020",1653600,1653600,"REMUNERACION",3144,4095,"WILFRAN JIMENEZ DE LA PEÑA","COORD CENTRO DE SALUD","2020-06-13","https://www.contratos.gov.co/consultas/detalleProceso.do?numConstancia=20-4-10844352"]
[412,32816824,"YANETH CARO VITOLA","2612-2020","AUXILIAR DE ENFERMERIA DE PROMOCIÓN Y MANTENIMIENTO DE LA SALUD","01 de Junio 2020","   30 de Junio de 2020",1166000,1166000,"REMUNERACION",3145,4096,"NILSA ARIZA MARQUEZ","COORDINADOR PYP","2020-06-13","https://www.contratos.gov.co/consultas/detalleProceso.do?numConstancia=20-4-10844353"]
[413,44159754,"YANIRE CARLINA CASTRO ESCALANTE","2613-2020","MEDICO GINECOLOGO DE RUTA INTEGRAL MATERNO PERINATAL","01 de Junio 2020","   30 de Junio de 2020",7500000,7500000,"HONORARIOS",3146,4097,"NILSA ARIZA MARQUEZ","COORDINADOR PYP","2020-06-13","https://www.contratos.gov.co/consultas/detalleProceso.do?numConstancia=20-4-10844354"]
[414,1129516318,"YEIMIS PATRICIA GONZALEZ ARAGON ","2614-2020","AGENTE CALL CENTER","01 de Junio 2020","   30 de Junio de 2020",1378000,1378000,"REMUNERACION",3147,4098,"WILFRAN JIMENEZ DE LA PEÑA","COORD CENTRO DE SALUD","2020-06-13","https://www.contratos.gov.co/consultas/detalleProceso.do?numConstancia=20-4-10844355"]
[415,1143452684,"YEISON MISAEL DUARTE CALDERON","2615-2020","CONDUCTOR DE AMBULANCIA ","01 de Junio 2020","   30 de Junio de 2020",2160000,2160000,"REMUNERACION",3148,4099,"BETTY PERTUZ ","SUBGERENTE CIENTIFICO","2020-06-13","https://www.contratos.gov.co/consultas/detalleProceso.do?numConstancia=20-4-10844356"]
[416,55246222,"YESIKA ANGULO MADRID","2616-2020","FISIOTERAPEUTA ","01 de Junio 2020","   30 de Junio de 2020",2280000,2280000,"HONORARIOS",3149,4100,"WILFRAN JIMENEZ DE LA PEÑA","COORD CENTRO DE SALUD","2020-06-13","https://www.contratos.gov.co/consultas/detalleProceso.do?numConstancia=20-4-10844358"]
[417,1140864808,"YONELIS MARGARITA VILLALVA LUQUE","2617-2020","AGENTE CALL CENTER","01 de Junio 2020","   30 de Junio de 2020",1378000,1378000,"REMUNERACION",3150,4101,"WILFRAN JIMENEZ DE LA PEÑA","COORD CENTRO DE SALUD","2020-06-13","https://www.contratos.gov.co/consultas/detalleProceso.do?numConstancia=20-4-10844359"]
[418,1042436116,"YURANIS SOTO OSORIO","2618-2020","AUXILIAR DE ENFERMERIA URGENCIAS","01 de Junio 2020","   30 de Junio de 2020",1653600,1653600,"REMUNERACION",3151,4102,"WILFRAN JIMENEZ DE LA PEÑA","COORD CENTRO DE SALUD","2020-06-13","https://www.contratos.gov.co/consultas/detalleProceso.do?numConstancia=20-4-10844360"]
[419,1045226744,"YURISABEL CERVANTES VESGA ","2619-2020","MEDICO DE URGENCIA","01 de Junio 2020","   30 de Junio de 2020",3072000,3072000,"HONORARIOS",3152,4103,"WILFRAN JIMENEZ DE LA PEÑA","COORD CENTRO DE SALUD","2020-06-13","https://www.contratos.gov.co/consultas/detalleProceso.do?numConstancia=20-4-10844361"]
[420,1085110564,"LISBETH JOHANA VIVIC GARCIA","2620-2020","AUXILIAR DE ODONTOLOGIA","01 de Junio 2020","   30 de Junio de 2020",1166000,1166000,"REMUNERACION",3153,4104,"WILFRAN JIMENEZ DE LA PEÑA","COORD CENTRO DE SALUD","2020-06-13","https://www.contratos.gov.co/consultas/detalleProceso.do?numConstancia=20-4-10844363"]
[421,19535725,"RAFAEL  ALFONSO PALACIO BLANCO","2621-2020","MEDICO DE URGENCIA","01 de Junio 2020","   30 de Junio de 2020",3072000,3072000,"HONORARIOS",3154,4105,"WILFRAN JIMENEZ DE LA PEÑA","COORD CENTRO DE SALUD","2020-06-13","https://www.contratos.gov.co/consultas/detalleProceso.do?numConstancia=20-4-10844365"]
[422,32771752,"ANETHS CECILIA ARGOTE TORRES","2622-2020","AGENTE CALL CENTER","01 de Junio 2020","   30 de Junio de 2020",1378000,1378000,"REMUNERACION",3155,4106,"WILFRAN JIMENEZ DE LA PEÑA","COORD CENTRO DE SALUD","2020-06-13","https://www.contratos.gov.co/consultas/detalleProceso.do?numConstancia=20-4-10844366"]
[423,72193875,"CRISTIAN DE JESUS BARRAZA VILLALBA","2623-2020","CONDUCTOR DE AMBULANCIA","01 de Junio 2020","   30 de Junio de 2020",2160000,2160000,"REMUNERACION",3156,4107,"BETTY PERTUZ ","SUBGERENTE CIENTIFICO","2020-06-13","https://www.contratos.gov.co/consultas/detalleProceso.do?numConstancia=20-4-10844368"]
[424,72203756,"GUILLERMO DE JESUS MEDINA VASQUEZ ","2624-2020","AGENTE CALL CENTER","01 de Junio 2020","   30 de Junio de 2020",1378000,1378000,"REMUNERACION",3157,4108,"WILFRAN JIMENEZ DE LA PEÑA","COORD CENTRO DE SALUD","2020-06-13","https://www.contratos.gov.co/consultas/detalleProceso.do?numConstancia=20-4-10844370"]
[425,33109830,"CARMEN ELISA LEONES CASTRO","2625-2020","AUXILIAR DE ARCHIVO ","01 de Junio 2020","   30 de Junio de 2020",1800000,1800000,"REMUNERACION",3158,4109,"SANDRA SANMARTIN","SUBGERENTE ADMINISTRATIVO","2020-06-13","https://www.contratos.gov.co/consultas/detalleProceso.do?numConstancia=20-4-10844371"]
[426,32862578,"MILDRIS PATRICIA QUIJANO VILORIA","2626-2020","HIGIENISTA ORAL","01 de Junio 2020","   30 de Junio de 2020",2332000,2332000,"REMUNERACION",3159,4110,"WILFRAN JIMENEZ DE LA PEÑA","COORD CENTRO DE SALUD","2020-06-13","https://www.contratos.gov.co/consultas/detalleProceso.do?numConstancia=20-4-10844373"]
[427,1045731190,"FELIX  ALFONSO ORTIZ GARCIA ","2627-2020","ORIENTADOR","01 de Junio 2020","   30 de Junio de 2020",1524000,1524000,"REMUNERACION",3160,4111,"WILFRAN JIMENEZ DE LA PEÑA","COORD CENTRO DE SALUD","2020-06-13","https://www.contratos.gov.co/consultas/detalleProceso.do?numConstancia=20-4-10844374"]
[428,8749064,"OSVALDO ANTONIO CUENTAS DE LAS SALAS","2628-2020","ODONTOLOGO","01 de Junio 2020","   30 de Junio de 2020",1900000,1900000,"HONORARIOS",3161,4112,"WILFRAN JIMENEZ DE LA PEÑA","COORD CENTRO DE SALUD","2020-06-13","https://www.contratos.gov.co/consultas/detalleProceso.do?numConstancia=20-4-10844375"]
[429,1047230116,"NORIS MARIA GUTIERREZ ACOSTA","2629-2020","AUXILIAR FACTURACION URGENCIAS","01 de Junio 2020","   30 de Junio de 2020",1680000,1680000,"REMUNERACION",3162,4113,"SANDRA SANMARTIN","SUBGERENTE ADMINISTRATIVO","2020-06-13","https://www.contratos.gov.co/consultas/detalleProceso.do?numConstancia=20-4-10844377"]
[430,1042454836,"YARLEYDIS SMITH LIZARAZO MOLINA","2630-2020","PSICOLOGA","01 de Junio 2020","   30 de Junio de 2020",3000000,3000000,"HONORARIOS",3163,4114,"WILFRAN JIMENEZ DE LA PEÑA","COORD CENTRO DE SALUD","2020-06-13","https://www.contratos.gov.co/consultas/detalleProceso.do?numConstancia=20-4-10844378"]
[431,1006745656,"ANGIE FERNANDA BELEÑO RIVERO","2631-2020","MEDICO DE URGENCIA","01 de Junio 2020","   30 de Junio de 2020",3072000,3072000,"HONORARIOS",3164,4115,"WILFRAN JIMENEZ DE LA PEÑA","COORD CENTRO DE SALUD","2020-06-13","https://www.contratos.gov.co/consultas/detalleProceso.do?numConstancia=20-4-10844379"]
[432,1129569382,"DAVID ALEJANDRO MIRANDA TORO","2632-2020","MEDICO DE URGENCIA","01 de Junio 2020","   30 de Junio de 2020",3072000,3072000,"HONORARIOS",3165,4116,"WILFRAN JIMENEZ DE LA PEÑA","COORD CENTRO DE SALUD","2020-06-13","https://www.contratos.gov.co/consultas/detalleProceso.do?numConstancia=20-4-10844380"]
[433,1052949649,"DILIANA GARCIA JIMENEZ","2633-2020","ENFERMERA JEFE URGENCIAS ","01 de Junio 2020","   30 de Junio de 2020",2280000,2280000,"HONORARIOS",3166,4117,"WILFRAN JIMENEZ DE LA PEÑA","COORD CENTRO DE SALUD","2020-06-13","https://www.contratos.gov.co/consultas/detalleProceso.do?numConstancia=20-4-10844381"]
[434,9143862,"JOSE LUIS LEAL CORREA","2634-2020","AUXILIAR DE FARMACIA ","01 de Junio 2020","   30 de Junio de 2020",1270000,1270000,"REMUNERACION",3167,4118,"BETTY PERTUZ ","SUBGERENTE CIENTIFICO","2020-06-13","https://www.contratos.gov.co/consultas/detalleProceso.do?numConstancia=20-4-10844382"]
[435,72303740,"ANDRES JOSE NAVARRO CARBONELL","2635-2020","AUXILIAR  ADMINISTRATIVO  DE FARMACIA ","01 de Junio 2020","   30 de Junio de 2020",1900000,1900000,"REMUNERACION",3168,4119,"BETTY PERTUZ ","SUBGERENTE CIENTIFICO","2020-06-13","https://www.contratos.gov.co/consultas/detalleProceso.do?numConstancia=20-4-10844383"]
[436,9132998,"GABRIEL ARIAS RAMIREZ","2636-2020","QUIMICO FARMACEUTICO","01 de Junio 2020","   30 de Junio de 2020",3600000,3600000,"HONORARIOS",3169,4120,"BETTY PERTUZ ","SUBGERENTE CIENTIFICO","2020-06-13","https://www.contratos.gov.co/consultas/detalleProceso.do?numConstancia=20-4-10844386"]
[437,22515180,"YEIMY JHOANA SALTARIN ACUÑA","2637-2020","AUXILIAR  ADMINISTRATIVO  DE FARMACIA ","01 de Junio 2020","   30 de Junio de 2020",1900000,1900000,"REMUNERACION",3170,4121,"BETTY PERTUZ ","SUBGERENTE CIENTIFICO","2020-06-13","https://www.contratos.gov.co/consultas/detalleProceso.do?numConstancia=20-4-10844387"]
[438,55225095,"YURAIMA GUTIERREZ HERNANDEZ","2638-2020","REGENTE DE FARMACIA ","01 de Junio 2020","   30 de Junio de 2020",2280000,2280000,"REMUNERACION",3171,4122,"BETTY PERTUZ ","SUBGERENTE CIENTIFICO","2020-06-13","https://www.contratos.gov.co/consultas/detalleProceso.do?numConstancia=20-4-10844388"]
[439,37577926,"ALCIRA CAMPO ALCOZER","2639-2020","PERSONAL  LIMPIEZA Y ASEO","01 de Junio 2020","   30 de Junio de 2020",1215000,1215000,"REMUNERACION",3172,4123,"JAIME ALVAREZ NORIEGA","INGENIERO AMBIENTAL ","2020-06-14","https://www.contratos.gov.co/consultas/detalleProceso.do?numConstancia=20-4-10844435"]
[440,1045700355,"EDUARDO LUIS PAUTH HERNANDEZ","2640-2020","MEDICO CONSULTA EXTERNA -EMERGENCIA COVID 19","01 de Junio 2020","   30 de Junio de 2020",4540000,4540000,"HONORARIOS",3173,4124,"CARLOS VISBAL JIMENEZ","SUBGERENTE CIENTIFICO","2020-06-14","https://www.contratos.gov.co/consultas/detalleProceso.do?numConstancia=20-4-10844436"]
[441,22694020,"LEDIS DEL SOCORRO BACA ORTIZ","2641-2020","AUXILIAR DE ENFERMERIA","01 de Junio 2020","   30 de Junio de 2020",1166000,1166000,"REMUNERACION",3174,4125,"BETTY PERTUZ ","SUBGERENTE CIENTIFICO","2020-06-14","https://www.contratos.gov.co/consultas/detalleProceso.do?numConstancia=20-4-10844437"]
[442,7469739,"LEOVALDO MENDOZA PAREJO","2642-2020","ORIENTADOR","01 de Junio 2020","   30 de Junio de 2020",1524000,1524000,"REMUNERACION",3175,4126,"SANDRA SANMARTIN","SUBGERENTE ADMINISTRATIVO","2020-06-14","https://www.contratos.gov.co/consultas/detalleProceso.do?numConstancia=20-4-10844438"]
[443,7438585,"NESTOR CHARRIS MARIN","2643-2020","ORIENTADOR","01 de Junio 2020","   30 de Junio de 2020",1270000,1270000,"REMUNERACION",3176,4127,"SANDRA SANMARTIN","SUBGERENTE ADMINISTRATIVO","2020-06-14","https://www.contratos.gov.co/consultas/detalleProceso.do?numConstancia=20-4-10844439"]
[444,8750360,"OSCAR HUMBERTO  GERALDINO CAPDEVILLA","2644-2020","MEDICO CONSULTA EXTERNA Y APOYO COORDINACION MEDICA ","01 de Junio 2020","   30 de Junio de 2020",4240000,4240000,"HONORARIOS",3177,4128,"BETTY PERTUZ ","SUBGERENTE CIENTIFICO","2020-06-14","https://www.contratos.gov.co/consultas/detalleProceso.do?numConstancia=20-4-10844440"]
[445,55236945,"ADRIANA PATRICIA MARQUEZ CANTILLO","2645-2020","VACUNADOR(A)","01 de Junio 2020","   30 de Junio de 2020",1400000,1400000,"REMUNERACION",3178,4129,"ALCIRA DEL SOCORRO GOMEZ ARRIETA","COORDINADORA PAI","2020-06-14","https://www.contratos.gov.co/consultas/detalleProceso.do?numConstancia=20-4-10844441"]
[446,22643912,"ANGELA ROSA MORALES SANMARTIN","2646-2020","VACUNADOR(A)","01 de Junio 2020","   30 de Junio de 2020",1400000,1400000,"REMUNERACION",3179,4130,"ALCIRA DEL SOCORRO GOMEZ ARRIETA","COORDINADORA PAI","2020-06-14","https://www.contratos.gov.co/consultas/detalleProceso.do?numConstancia=20-4-10844443"]
[447,22467133,"ESMERALDA COTE BORNACELY ","2647-2020","VACUNADOR(A)","01 de Junio 2020","   30 de Junio de 2020",1400000,1400000,"REMUNERACION",3180,4131,"ALCIRA DEL SOCORRO GOMEZ ARRIETA","COORDINADORA PAI","2020-06-14","https://www.contratos.gov.co/consultas/detalleProceso.do?numConstancia=20-4-10844445"]
[448,8767993,"HAROLD MANUEL CABARCAS GONZALEZ","2648-2020","VACUNADOR(A)","01 de Junio 2020","   30 de Junio de 2020",1400000,{"$f":"+H449*1","v":1400000},"REMUNERACION",3181,4132,"ALCIRA DEL SOCORRO GOMEZ ARRIETA","COORDINADORA PAI","2020-06-14","https://www.contratos.gov.co/consultas/detalleProceso.do?numConstancia=20-4-10844446"]
[449,64578458,"ILDA DEL PILAR PACHECO AGUIRRE","2649-2020","VACUNADOR(A)","01 de Junio 2020","   30 de Junio de 2020",1400000,1400000,"REMUNERACION",3182,4133,"ALCIRA DEL SOCORRO GOMEZ ARRIETA","COORDINADORA PAI","2020-06-14","https://www.contratos.gov.co/consultas/detalleProceso.do?numConstancia=20-4-10844447"]
[450,32865375,"LEDIA DEL CARMEN MARTINEZ DE MOYA","2650-2020","VACUNADOR(A)","01 de Junio 2020","   30 de Junio de 2020",1400000,1400000,"REMUNERACION",3183,4134,"ALCIRA DEL SOCORRO GOMEZ ARRIETA","COORDINADORA PAI","2020-06-14","https://www.contratos.gov.co/consultas/detalleProceso.do?numConstancia=20-4-10844448"]
[{"$f":"+A451+1","v":451},44159904,"LIZLEIDYS OSORIO DOMINGUEZ","2651-2020","ENFERMERA-JEFE TERRENO PAI","01 de Junio 2020","   30 de Junio de 2020",2120000,2120000,"HONORARIOS",3184,4135,"ALCIRA DEL SOCORRO GOMEZ ARRIETA","COORDINAODRA PAI","2020-06-14","https://www.contratos.gov.co/consultas/detalleProceso.do?numConstancia=20-4-10844449"]
[452,32812585,"NESLIE OSORIO PARODIS","2652-2020","VACUNADOR(A)","01 de Junio 2020","   30 de Junio de 2020",1400000,1400000,"REMUNERACION",3186,4137,"ALCIRA DEL SOCORRO GOMEZ ARRIETA","COORDINADORA PAI","2020-06-14","https://www.contratos.gov.co/consultas/detalleProceso.do?numConstancia=20-4-10844450"]
[453,32863854,"OLGA BARRIOS BACCA","2653-2020","VACUNADOR(A)","01 de Junio 2020","   30 de Junio de 2020",1400000,1400000,"REMUNERACION",3187,4138,"ALCIRA DEL SOCORRO GOMEZ ARRIETA","COORDINADORA PAI","2020-06-14","https://www.contratos.gov.co/consultas/detalleProceso.do?numConstancia=20-4-10844451"]
[454,22528921,"ROSARIO DEL CARMEN CAMARGO GOMEZ","2654-2020","VACUNADOR(A)","01 de Junio 2020","   30 de Junio de 2020",1400000,1400000,"REMUNERACION",3188,4139,"ALCIRA DEL SOCORRO GOMEZ ARRIETA","COORDINADORA PAI","2020-06-14","https://www.contratos.gov.co/consultas/detalleProceso.do?numConstancia=20-4-10844452"]
[455,32684298,"XIOMARA RODRIGUEZ CANTILLO","2655-2020","VACUNADOR(A)","01 de Junio 2020","   30 de Junio de 2020",1400000,1400000,"REMUNERACION",3189,4140,"ALCIRA DEL SOCORRO GOMEZ ARRIETA","COORDINADORA PAI","2020-06-14","https://www.contratos.gov.co/consultas/detalleProceso.do?numConstancia=20-4-10844454"]
[456,1042428053,"YURANIS DEL CARMEN BLANQUICETT MORENO","2656-2020","VACUNADOR(A)","01 de Junio 2020","   30 de Junio de 2020",1400000,1400000,"REMUNERACION",3190,4141,"ALCIRA DEL SOCORRO GOMEZ ARRIETA","COORDINADORA PAI","2020-06-14","https://www.contratos.gov.co/consultas/detalleProceso.do?numConstancia=20-4-10844455"]
[457,32867404,"PATRICIA DEL CARMEN IBAÑEZ OSORIO","2657-2020","VACUNADOR(A)","01 de Junio 2020","   30 de Junio de 2020",1400000,1400000,"REMUNERACION",3191,4142,"ALCIRA DEL SOCORRO GOMEZ ARRIETA","COORDINADORA PAI","2020-06-14","https://www.contratos.gov.co/consultas/detalleProceso.do?numConstancia=20-4-10844456"]
[458,32788911,"PEGGY ESTHER CARRILLO MUÑOZ","2658-2020","DIGITADOR PAI WEB ","01 de Junio 2020","   30 de Junio de 2020",1458000,1458000,"REMUNERACION",3185,4136,"YURANIS BONIFAS","COORDINADOR PAIWEB ","2020-06-14","https://www.contratos.gov.co/consultas/detalleProceso.do?numConstancia=20-4-10844457"]
[459,32726703,"MARILYN ESTHER PEREZ LIÑAN","2659-2020","AUXILIAR DE ENFERMERIA URGENCIAS","01 de Junio 2020","   30 de Junio de 2020",1653600,1653600,"REMUNERACION",3194,4146,"SERGIO BOVEA MARIN","COORD CENTRO DE SALUD","2020-06-14","https://www.contratos.gov.co/consultas/detalleProceso.do?numConstancia=20-4-10844458"]
[460,8634413,"GIL ANTONIO BERDUGO NOVA","2660-2020","AUXILIAR DE ENFERMERIA URGENCIAS","01 de Junio 2020","30 de Junio de 2020",1653000,1653000,"REMUNERACION",3197,4149,"SERGIO BOVEA","COORD CENTRO DE SALUD","2020-06-14","https://www.contratos.gov.co/consultas/detalleProceso.do?numConstancia=20-4-10844460"]
[461,1042471178,"KAREM OLIANNA MONTOYA GIL ","2661-2020","AUXILIAR ADMINISTRATIVO ","01 de Junio 2020","30 de Junio de 2020",1700000,{"$f":"+H462","v":1700000},"REMUNERACION",3198,4150,"SANDRA SANMARTIN","SUBGERENTE ADMINISTRATIVO","2020-06-14","https://www.contratos.gov.co/consultas/detalleProceso.do?numConstancia=20-4-10844461"]
[462,1002067698,"RUTH MARINA DIAZ MAYORCA","2662-2020","AUXILIAR FACTURACION  CENTRAL ","01 de Junio 2020","30 de Junio de 2020",2500000,{"$f":"+H463","v":2500000},"REMUNERACION",3204,4158,"SANDRA SANMARTIN",{"$f":"+M463","v":"SANDRA SANMARTIN"},"02/07/2020","https://www.contratos.gov.co/consultas/detalleProceso.do?numConstancia=20-4-10881744"]
[463,1042351489,"YISLEY ZARETH BADILLO SARMIENTO","2663-2020","ENFERMERA JEFE","01 de Junio 2020","30 de Junio de 2020",2300000,{"$f":"+H464*1","v":2300000},"HONORARIOS",3205,4159,"BETTY PERTUZ ","SUBGERENTE CIENTIFICO","02/07/2020","https://www.contratos.gov.co/consultas/detalleProceso.do?numConstancia=20-4-10881752"]
[464,1048217027,"ONEIDA SAMIRA MARQUEZ NARVAEZ","2664-2020","PROFESIONAL  TALENTO HUMANO - POLITOLOGA","01 de Junio 2020","30 de Junio de 2020",5000000,5000000,"HONORARIOS",3206,4160,"SANDRA SANMARTIN",{"$f":"+N462","v":"SUBGERENTE ADMINISTRATIVO"},"02/07/2020","https://www.contratos.gov.co/consultas/detalleProceso.do?numConstancia=20-4-10881761"]
[465,22665320,"CLAUDIA DE LA CRUZ LEYVA","2665-2020","AUDITORA  ","01 de Junio 2020","30 de Junio de 2020",5800000,5800000,"HONORARIOS",3022,3973,"JUAN ESTEBAN SANCHEZ PAEZ","GERENTE","02/07/2020","https://www.contratos.gov.co/consultas/detalleProceso.do?numConstancia=20-4-10881768"]
[466,72151642,"RUBEN DARIO LOZADA BARROS","2666-2020","CONTADOR ","15 de junio de 2020","30 de Junio de 2020",{"$f":"4000000/30*15","v":2000000.0000000002},2000000.0000000002,"HONORARIOS",3234,4213,"LUIS DE MOYA","TESORERO","02/07/2020","https://www.contratos.gov.co/consultas/detalleProceso.do?numConstancia=20-4-10881781"]
[467,72236961,"EDWARD ENRIQUE SANCHEZ URZOLA ","2667-2020","MENSAJERO ","15 de junio de 2020","30 de Junio de 2020",{"$f":"1700000/30*15","v":850000},850000,"REMUNERACION",3235,4214,"SANDRA SANMARTIN","SUBGERENTE ADMINISTRATIVO","02/07/2020","https://www.contratos.gov.co/consultas/detalleProceso.do?numConstancia=20-4-10881790"]
[468,1129570673,"JOSE ANTONIO ZAMORA CERA","2668-2020","MEDICO  URGENCIA ","15 de junio de 2020","30 de Junio de 2020",{"$f":"3072000/30*15","v":1536000},1536000,"HONORARIOS",3236,4215,"WILFRAN JIMENEZ DE LA PEÑA",null,"02/07/2020","https://www.contratos.gov.co/consultas/detalleProceso.do?numConstancia=20-4-10881802"]

{"sheet":"PIC  JUNIO 2020","index":1,"n_rows":34,"n_cols":19,"rows_kept":34,"cut":false,"hidden":false,"merged":[]}
["CEDULA","NOMBRE Y APELLIDO","OPS","año","#OPS AÑO","OBJETO DEL CONTRATO","FECHA INICIO","FECHA TERMINACION ","VALOR MENSUAL","VALOR TOTAL ","VALOR LETRAS total","SUPERVISOR ","CARGO","RUBRO PRESUPUESTAL ","CDP","RP","SUPERVISION  DEL CONTRATO ","FECHA SECOK","LINK SECOP "]
[22668428,"ANABELL VELASQUEZ FERNANDEZ ",178,"2020 -PIC","178-2020 -PIC","COORDINADORA  PIC ","01 de Junio 2020","30 de Junio de 2020",5800000,{"$f":"I2*1","v":5800000},{"$f":"PesosMN(J2)","v":"  CINCO MILLONES OCHOCIENTOS MIL PESOS "},"BETTY PERTUZ","SUBGERENTE CIENTIFICO","PIC",2694,3645,"Subgerente Cientifico  de  la E.S.E.","2020-06-14","https://www.contratos.gov.co/consultas/detalleProceso.do?numConstancia=20-4-10844467"]
[32874188,"JALICSSA ARRIETA ORTEGA",179,"2020 -PIC","179-2020 -PIC","APOYO  GESTION  PIC ","01 de Junio 2020","30 de Junio de 2020",3000000,3000000,{"$f":"PesosMN(J3)","v":"  TRES MILLONES PESOS "},"ANABELL VELASQUEZ","COORDINADORA PIC ","PIC",2695,3646,"Coordinador PIC ","2020-06-14","https://www.contratos.gov.co/consultas/detalleProceso.do?numConstancia=20-4-10844468"]
[1045675584,"ISOREIDA PEREZ PALMEIRA",180,"2020 -PIC","180-2020 -PIC","ENFERMERA JEFE - LIDER APS -PIC","01 de Junio 2020","30 de Junio de 2020",2500000,{"$f":"I4*1","v":2500000},"  DOS MILLONES QUINIENTOS MIL PESOS ","ANABELL VELASQUEZ","COORDINADORA PIC ","PIC",2696,3647,"Coordinador PIC ","2020-06-14","https://www.contratos.gov.co/consultas/detalleProceso.do?numConstancia=20-4-10844469"]
[32744712,"CARMEN MARIA CORONADO ESCORCIA",181,"2020 -PIC","181-2020 -PIC","ENFERMERA JEFE -PIC","01 de Junio 2020","30 de Junio de 2020",2500000,2500000,"  DOS MILLONES QUINIENTOS MIL PESOS ","ANABELL VELASQUEZ","COORDINADORA PIC ","PIC",2697,3648,"Coordinador PIC ","2020-06-14","https://www.contratos.gov.co/consultas/detalleProceso.do?numConstancia=20-4-10844470"]
[22506781,"MILDRED TATIANA GOENAGA ALVARADO",182,"2020 -PIC","182-2020 -PIC","ENFERMERA  JEFE  VACUNACION ","01 de Junio 2020","30 de Junio de 2020",2500000,2500000,"  DOS MILLONES QUINIENTOS MIL PESOS ","ANABELL VELASQUEZ","COORDINADORA PIC ","PIC",2698,3649,"Coordinador PIC ","2020-06-14","https://www.contratos.gov.co/consultas/detalleProceso.do?numConstancia=20-4-10844471"]
[22645320,"ADRIANA CRISTINA GARCIA CARRILLO",183,"2020 -PIC","183-2020 -PIC","FISIOTERAPEUTA","01 de Junio 2020","30 de Junio de 2020",2500000,2500000,"  DOS MILLONES QUINIENTOS MIL PESOS ","ANABELL VELASQUEZ","COORDINADORA PIC ","PIC",2699,3650,"Coordinador PIC ","2020-06-14","https://www.contratos.gov.co/consultas/detalleProceso.do?numConstancia=20-4-10844472"]
[32777087,"ROSA MARGARITA SEVILLA",184,"2020 -PIC","184-2020 -PIC","NUTRICIONISTA ","01 de Junio 2020","30 de Junio de 2020",2500000,2500000,"  DOS MILLONES QUINIENTOS MIL PESOS ","ANABELL VELASQUEZ","COORDINADORA PIC ","PIC",2700,3651,"Coordinador PIC ","2020-06-14","https://www.contratos.gov.co/consultas/detalleProceso.do?numConstancia=20-4-10844473"]
[1065575009,"ANDREA TATIANA SERRANO MOLINA ",185,"2020 -PIC","185-2020 -PIC","PSICOLOGO ","01 de Junio 2020","30 de Junio de 2020",2500000,2500000,"  DOS MILLONES QUINIENTOS MIL PESOS ","ANABELL VELASQUEZ","COORDINADORA PIC ","PIC",2701,3652,"Coordinador PIC ","2020-06-14","https://www.contratos.gov.co/consultas/detalleProceso.do?numConstancia=20-4-10844474"]
[22617307,"ETILVIA TERESA DONADO CABALLERO ",186,"2020 -PIC","186-2020 -PIC","PSICOLOGO ","01 de Junio 2020","30 de Junio de 2020",2500000,2500000,"  DOS MILLONES QUINIENTOS MIL PESOS ","ANABELL VELASQUEZ","COORDINADORA PIC ","PIC",2702,3653,"Coordinador PIC ","2020-06-14","https://www.contratos.gov.co/consultas/detalleProceso.do?numConstancia=20-4-10844475"]
[1140873504,"OLMAN JOSHUA BULA TORRES",187,"2020 -PIC","187-2020 -PIC","PSICOLOGO ","01 de Junio 2020","30 de Junio de 2020",2500000,2500000,"  DOS MILLONES QUINIENTOS MIL PESOS ","ANABELL VELASQUEZ","COORDINADORA PIC ","PIC",2703,3654,"Coordinador PIC ","2020-06-14","https://www.contratos.gov.co/consultas/detalleProceso.do?numConstancia=20-4-10844476"]
[1046872703,"LUCELIS DE LA HOZ ESCORCIA",188,"2020 -PIC","188-2020 -PIC","AUXILIAR ADMINISTRATIVO-PIC","01 de Junio 2020","30 de Junio de 2020",1900000,1900000,"  UN MILLON NOVECIENTOS MIL PESOS ","ANABELL VELASQUEZ","COORDINADORA PIC ","PIC",2704,3655,"Coordinador PIC ","2020-06-14","https://www.contratos.gov.co/consultas/detalleProceso.do?numConstancia=20-4-10844477"]
[72429089,"EDER DE JESUS SEGURA BRAVO",189,"2020 -PIC","189-2020 -PIC","HIGIENISTA ORAL","01 de Junio 2020","30 de Junio de 2020",1900000,1900000,"  UN MILLON NOVECIENTOS MIL PESOS ","ANABELL VELASQUEZ","COORDINADORA PIC ","PIC",2705,3656,"Coordinador PIC ","2020-06-14","https://www.contratos.gov.co/consultas/detalleProceso.do?numConstancia=20-4-10844478"]
[72271553,"DAVID ENRIQUE AGRESOT DE LA CRUZ",190,"2020 -PIC","190-2020 -PIC","LIDER DE ZOONOSIS ","01 de Junio 2020","30 de Junio de 2020",1900000,1900000,"  UN MILLON NOVECIENTOS MIL PESOS ","ANABELL VELASQUEZ","COORDINADORA PIC ","PIC",2706,3657,"Coordinador PIC ","2020-06-14","https://www.contratos.gov.co/consultas/detalleProceso.do?numConstancia=20-4-10844481"]
[32876278,"CLAUDIA MARTINEZ RIVAS ",191,"2020 -PIC","191-2020 -PIC","AGENTE PRIMARIA EN SALUD-APS","01 de Junio 2020","30 de Junio de 2020",1400000,1400000,"  UN MILLON CUATROCIENTOS MIL PESOS ","ANABELL VELASQUEZ","COORDINADORA PIC ","PIC",2707,3658,"Coordinador PIC ","2020-06-14","https://www.contratos.gov.co/consultas/detalleProceso.do?numConstancia=20-4-10844483"]
[1143136225,"MARTA CECILIA MARIN ZAPATA",192,"2020 -PIC","192-2020 -PIC","AGENTE PRIMARIA EN SALUD-APS","01 de Junio 2020","30 de Junio de 2020",1400000,1400000,"  UN MILLON CUATROCIENTOS MIL PESOS ","ANABELL VELASQUEZ","COORDINADORA PIC ","PIC",2708,3659,"Coordinador PIC ","2020-06-14","https://www.contratos.gov.co/consultas/detalleProceso.do?numConstancia=20-4-10844484"]
[1043931882,"AREIDIS MEDINA SANJUAN ",193,"2020 -PIC","193-2020 -PIC","AGENTE PRIMARIA EN SALUD-APS","01 de Junio 2020","30 de Junio de 2020",1400000,1400000,"  UN MILLON CUATROCIENTOS MIL PESOS ","ANABELL VELASQUEZ","COORDINADORA PIC ","PIC",2709,3660,"Coordinador PIC ","2020-06-14","https://www.contratos.gov.co/consultas/detalleProceso.do?numConstancia=20-4-10844485"]
[22543666,"DENNYS MARIELA ARZUZAR GALVIS",194,"2020 -PIC","194-2020 -PIC","AGENTE PRIMARIA EN SALUD-APS","01 de Junio 2020","30 de Junio de 2020",1400000,1400000,"  UN MILLON CUATROCIENTOS MIL PESOS ","ANABELL VELASQUEZ","COORDINADORA PIC ","PIC",2710,3661,"Coordinador PIC ","2020-06-14","https://www.contratos.gov.co/consultas/detalleProceso.do?numConstancia=20-4-10844486"]
[44160070,"GLORIA ZAPATA REZA",195,"2020 -PIC","195-2020 -PIC","AGENTE PRIMARIA EN SALUD-APS","01 de Junio 2020","30 de Junio de 2020",1400000,1400000,"  UN MILLON CUATROCIENTOS MIL PESOS ","ANABELL VELASQUEZ","COORDINADORA PIC ","PIC",2711,3662,"Coordinador PIC ","2020-06-14","https://www.contratos.gov.co/consultas/detalleProceso.do?numConstancia=20-4-10844488"]
[44152281,"KAREN JOHANA JIMENEZ RAMOS",196,"2020 -PIC","196-2020 -PIC","AGENTE PRIMARIA EN SALUD-APS","01 de Junio 2020","30 de Junio de 2020",1400000,1400000,"  UN MILLON CUATROCIENTOS MIL PESOS ","ANABELL VELASQUEZ","COORDINADORA PIC ","PIC",2712,3663,"Coordinador PIC ","2020-06-14","https://www.contratos.gov.co/consultas/detalleProceso.do?numConstancia=20-4-10844489"]
[44150081,"MARY LUZ GUERRERO CERVANTES ",197,"2020 -PIC","197-2020 -PIC","AGENTE PRIMARIA EN SALUD-APS","01 de Junio 2020","30 de Junio de 2020",1400000,1400000,"  UN MILLON CUATROCIENTOS MIL PESOS ","ANABELL VELASQUEZ","COORDINADORA PIC ","PIC",2713,3664,"Coordinador PIC ","2020-06-14","https://www.contratos.gov.co/consultas/detalleProceso.do?numConstancia=20-4-10844492"]
[1002162856,"NICOLL PATRICIA NIEBLES RIVERA",198,"2020 -PIC","198-2020 -PIC","AGENTE PRIMARIA EN SALUD-APS","01 de Junio 2020","30 de Junio de 2020",1400000,1400000,"  UN MILLON CUATROCIENTOS MIL PESOS ","ANABELL VELASQUEZ","COORDINADORA PIC ","PIC",2714,3665,"Coordinador PIC ","2020-06-14","https://www.contratos.gov.co/consultas/detalleProceso.do?numConstancia=20-4-10844493"]
[32758730,"NUBIA ESTELA CANO GUILLEN",199,"2020 -PIC","199-2020 -PIC","AGENTE PRIMARIA EN SALUD-APS","01 de Junio 2020","30 de Junio de 2020",1400000,1400000,"  UN MILLON CUATROCIENTOS MIL PESOS ","ANABELL VELASQUEZ","COORDINADORA PIC ","PIC",2715,3666,"Coordinador PIC ","2020-06-14","https://www.contratos.gov.co/consultas/detalleProceso.do?numConstancia=20-4-10844494"]
[1042449446,"SAILIS MARIA FRIA VEGA",200,"2020 -PIC","200-2020 -PIC","AGENTE PRIMARIA EN SALUD-APS","01 de Junio 2020","30 de Junio de 2020",1400000,1400000,"  UN MILLON CUATROCIENTOS MIL PESOS ","ANABELL VELASQUEZ","COORDINADORA PIC ","PIC",2716,3667,"Coordinador PIC ","2020-06-14","https://www.contratos.gov.co/consultas/detalleProceso.do?numConstancia=20-4-10844495"]
[1047337919,"CANDY ISABEL ROJAS SARMIENTO",201,"2020 -PIC","201-2020 -PIC","AGENTE PRIMARIA EN SALUD-ZOONOSIS","01 de Junio 2020","30 de Junio de 2020",1400000,1400000,"  UN MILLON CUATROCIENTOS MIL PESOS ","ANABELL VELASQUEZ","COORDINADORA PIC ","PIC",2717,3668,"Coordinador PIC ","2020-06-14","https://www.contratos.gov.co/consultas/detalleProceso.do?numConstancia=20-4-10844496"]
[8784783,"DAIRO MANRIQUEZ MORALES BOVEA",202,"2020 -PIC","202-2020 -PIC","AGENTE PRIMARIA EN SALUD-ZOONOSIS","01 de Junio 2020","30 de Junio de 2020",1400000,1400000,"  UN MILLON CUATROCIENTOS MIL PESOS ","ANABELL VELASQUEZ","COORDINADORA PIC ","PIC",2718,3669,"Coordinador PIC ","2020-06-14","https://www.contratos.gov.co/consultas/detalleProceso.do?numConstancia=20-4-10844498"]
[3779189,"JAIME ENRIQUE MARQUEZ VILLAFAÑE",203,"2020 -PIC","203-2020 -PIC","AGENTE PRIMARIA EN SALUD-ZOONOSIS","01 de Junio 2020","30 de Junio de 2020",1400000,1400000,"  UN MILLON CUATROCIENTOS MIL PESOS ","ANABELL VELASQUEZ","COORDINADORA PIC ","PIC",2719,3670,"Coordinador PIC ","2020-06-14","https://www.contratos.gov.co/consultas/detalleProceso.do?numConstancia=20-4-10844499"]
[32829868,"JUDITH ISABEL ARCON MEDINA",204,"2020 -PIC","204-2020 -PIC","AGENTE PRIMARIA EN SALUD-ZOONOSIS","01 de Junio 2020","30 de Junio de 2020",1400000,1400000,"  UN MILLON CUATROCIENTOS MIL PESOS ","ANABELL VELASQUEZ","COORDINADORA PIC ","PIC",2720,3671,"Coordinador PIC ","2020-06-14","https://www.contratos.gov.co/consultas/detalleProceso.do?numConstancia=20-4-10844500"]
[1046698080,"LUIS ALFREDO CANTILLO CABALLERO",205,"2020 -PIC","205-2020 -PIC","AGENTE PRIMARIA EN SALUD-ZOONOSIS","01 de Junio 2020","30 de Junio de 2020",1400000,1400000,"  UN MILLON CUATROCIENTOS MIL PESOS ","ANABELL VELASQUEZ","COORDINADORA PIC ","PIC",2721,3672,"Coordinador PIC ","2020-06-14","https://www.contratos.gov.co/consultas/detalleProceso.do?numConstancia=20-4-10844501"]
[1043185696,"MANUEL ZULBARAN ",206,"2020 -PIC","206-2020 -PIC","AGENTE PRIMARIA EN SALUD-ZOONOSIS","01 de Junio 2020","30 de Junio de 2020",1400000,1400000,"  UN MILLON CUATROCIENTOS MIL PESOS ","ANABELL VELASQUEZ","COORDINADORA PIC ","PIC",2722,3673,"Coordinador PIC ","2020-06-14","https://www.contratos.gov.co/consultas/detalleProceso.do?numConstancia=20-4-10844503"]
[30895455,"MARIA CONCEPCION ESPRIELLA BUELVAS",207,"2020 -PIC","207-2020 -PIC","AGENTE PRIMARIA EN SALUD-ZOONOSIS","01 de Junio 2020","30 de Junio de 2020",1400000,1400000,"  UN MILLON CUATROCIENTOS MIL PESOS ","ANABELL VELASQUEZ","COORDINADORA PIC ","PIC",2723,3674,"Coordinador PIC ","2020-06-14","https://www.contratos.gov.co/consultas/detalleProceso.do?numConstancia=20-4-10844504"]
[1143442239,"SAYURIS OCAMPO GARCIA",208,"2020 -PIC","208-2020 -PIC","AGENTE PRIMARIA EN SALUD-ZOONOSIS","01 de Junio 2020","30 de Junio de 2020",1400000,1400000,"  UN MILLON CUATROCIENTOS MIL PESOS ","ANABELL VELASQUEZ","COORDINADORA PIC ","PIC",2724,3675,"Coordinador PIC ","2020-06-14","https://www.contratos.gov.co/consultas/detalleProceso.do?numConstancia=20-4-10844506"]
[32872420,"LUZ MARINA GARIZAO TAPIA",209,"2020 -PIC","209-2020 -PIC","AGENTE PRIMARIA EN SALUD-ZOONOSIS","01 de Junio 2020","30 de Junio de 2020",1400000,1400000,"  UN MILLON CUATROCIENTOS MIL PESOS ","ANABELL VELASQUEZ","COORDINADORA PIC ","PIC",2725,3676,"Coordinador PIC ","2020-06-14","https://www.contratos.gov.co/consultas/detalleProceso.do?numConstancia=20-4-10844507"]
[1042417608,"KELLY DEL CARMEN PARDO RODRIGUEZ",211,"211- 2020 -PIC","211-2020 -PIC","AUXILIAR DE  ENFERMERIA - VACUNACION ","01 de Junio 2020","30 de Junio de 2020",1400000,1400000,"  UN MILLON CUATROCIENTOS MIL PESOS ","ANABELL VELASQUEZ","COORDINADORA PIC ","PIC",2727,3678,"Coordinador PIC ","2020-06-14","https://www.contratos.gov.co/consultas/detalleProceso.do?numConstancia=20-4-10844509"]

{"sheet":"CONTRATOS COVIC  19- JUNIO 2020","index":2,"n_rows":4,"n_cols":17,"rows_kept":4,"cut":false,"hidden":false,"merged":[]}
[null,"LISTADO DE CONTRATACION  OPS  PERSONAL  ASISTENCIAL  EMERGENCIA COVIC 19- TERMINAL DE TRANSPORTE  Y  AEROPUERTO"]
[]
["NO","CEDULA","NOMBRES APELLIDOS CONTRATISTA","OPS ","ops  #año","OBJETO DEL CONTRATO","FECHA INICIO","FECHA TERMINACION ","VALOR MENSUAL","VALOR TOTAL ","SUPERVISOR ","CARGO","RUBRO","CDP","RP","FECHA SECOP","LINK SECOP "]
[3,1045729651,"KAROLAY PAOLA GARCIA OSPINO",2435,"2435-2020-COVIC -19","MEDICO- EMERGENCIA COVIC  19","01 de Junio 2020","   30 de Junio de 2020",4240000,{"$f":"+I4*1","v":4240000},"CESAR ARRIETA","COORDINADOR URGENCIAS","HONORARIOS",2968,3919,"2020-06-14","https://www.contratos.gov.co/consultas/detalleProceso.do?numConstancia=20-4-10844466"]